Workbook

Sheet Cover
A1: =RIGHT(CELL("filename", $A$1), LEN(CELL("filename", $A$1)) - SEARCH("]", CELL("filename", $A$1))) -> Cover
A3: Workbook title: | B3: Cost of new debt indexation model
A4: Version: | B4: 6.2
A5: Filename:
A6: Date: | B6: 03.03.2020
A7: Author: | B7: Ofwat
A8: Author contact information: | B8: PR19Reconciliationrulebook@ofwat.gov.uk
A11: Summary of workbook: | B11: This model calculates the reconciliation which will be applied to the PR19 allowed cost of new debt for the wholesale controls as part of PR24.
A13: Known limitations: | B13: None.
A15: Instructions: | B15: Users should populate 'InpC', 'InpR' and 'InpIndex' sections with final determination parameters, IHS Markit (iBoxx) and ONS data.
A17: Amendments: | B17: 03.03.2020 - Updated cover page, restructured table of contents.
B18: 06.02.2020 - Some tidying up, deletion of superfluous formulas
B19: 16.12.2019 - Addition of dummy control tab and company-specific adjustments flags
A21: References: | B21: Generic PR19 parameters: 'PR19 Final Determinations: Allowed return on capital technical appendix'
B22: Company-specific PR19 parameters: PR19 Final Determinations
B23: iBoxx A/BBB inputs: IHS Markit
B24: CPIH index values: Office for National Statistics (ONS)
A26: Error Checks: | B26: N/A
A28: Feedback: | B28: We would welcome feedback on this workbook. Please send any feedback to the following email address:
B29: PR19Reconciliationrulebook@ofwat.gov.uk
A32: The following information is for Ofwat internal use only. To be deleted before publication.
A34: Author(s): | B34: Martin Malinowski
A36: Sponsor: | B36: Andy Chesworth
A38: Work completed: | B38: Updated cover sheet and table of contents 03.03.2019
A40: Work to follow: | B40: To test model with a dry run
A42: Iteration cycle: | B42: Last signed off by Andy Chesworth on 07.02.2020
A44: Quality assurance: | B44: QA consistency review by Jag Rayat on 26.02.2020
B45: QA review by Rob Thorp 05.02.2020
A48: END OF SHEET

Sheet ToC
A1: =RIGHT(CELL("filename", $A$1), LEN(CELL("filename", $A$1)) - SEARCH("]", CELL("filename", $A$1))) -> ToC
B3: ASSUMPTIONS: | D3: INPUTS: | F3: CALCULATIONS: | H3: OUTPUTS:
B5: =Cover!A1 -> Cover | D5: =InpC!$A$1 -> InpC | F5: ='RCV and post 2020 investment'!A1 -> RCV and post 2020 investment | H5: =Output!A1 -> Output
B6: Model documentation sheet | D6: Inputs - column format | F6: Calculation of RCV and notional debt balances for return | H6: Outputs to other models
B8: =$A$1 -> ToC | D8: =InpR!$A$1 -> InpR | F8: ='Cost of Debt'!A1 -> Cost of Debt
B9: Table of contents | D9: Inputs - row format | F9: Allowed cost of debt calculations
B11: ='Model formatting'!$A$1 -> Model formatting | D11: =InpIndex!A1 -> InpIndex | F11: ='Water resources'!A1 -> Water resources
B12: Explanation of different formatting types | D12: Inputs - row from index | F12: Water Resources cost of debt reconciliation
B14: =Time!A1 -> Time | F14: ='Water network +'!A1 -> Water network +
B15: Treatment of time in model | F15: Water Network plus cost of debt reconciliation
F17: ='Wastewater network +'!A1 -> Wastewater network +
F18: Wastewater Network plus cost of debt reconciliation
F20: =Bioresources!A1 -> Bioresources
F21: Bioresources cost of debt reconciliation
F23: Dummy
F24: Dummy control cost of debt reconciliation
A31: END

Sheet Model formatting
A1: =RIGHT(CELL("filename", $A$1), LEN(CELL("filename", $A$1)) - SEARCH("]", CELL("filename", $A$1))) -> Model formatting
A3: CELL / ROW / COLUMN COLOUR
B5: Font Colour
E6: Blue Font (no shade) | G6: Imported from another sheet / section
E8: Red Font (no shade) | G8: Exported to another sheet/section *
E10: Black Font (no shade) | G10: Neither imported nor exported
E12: * Except from input sheets (sheets with 'Inp' prefix)
E13: * Except to Track sheet
E15: Green Italics (no shade) | G15: Documentation
B17: Font + Shade Combinations
E18: Black Font + Light Yellow Shade | G18: Inputs
E20: Black Font + Light Gray Shade on ENTIRE row | G20: Within-worksheet counter-flow
E22: Blue Font + Light Gray Shade | G22: Between-worksheet counter-flow
E24: Light Turquoise | G24: Stored/dead/hard coded outputs
E26: 0 | G26: Conditional formatting for error checks*
E28: * returns green when value is zero. For all other values it returns red
B30: Other
E31: Empty Cell with Light Gray Shade | G31: Empty cells being referenced/used
B33: Checks and Administrative
E35: [Yellow Shade and/or square brackets] | G35: Values or logic to be reviewed / discussed
A37: WORKSHEET TAB COLOUR CODING
E39: Light Yellow | G39: Input Sheets
E41: Turquoise | G41: Assumptions sheets
E43: Light Gray | G43: Calculations sheets
E45: Gold | G45: Output sheets
A47: END

Sheet Time
A1: =RIGHT(CELL("filename", $A$1), LEN(CELL("filename", $A$1)) - SEARCH("]", CELL("filename", $A$1))) -> Time
J2: =Time!J$22 -> 2020-03-31 | K2: =Time!K$22 -> 2021-03-31 | L2: =Time!L$22 -> 2022-03-31 | M2: =Time!M$22 -> 2023-03-31 | N2: =Time!N$22 -> 2024-03-31 | O2: =Time!O$22 -> 2025-03-31 | P2: =Time!P$22 -> 2026-03-31
J3: =Time!J$58 -> Pre Fcst | K3: =Time!K$58 -> Forecast | L3: =Time!L$58 -> Forecast | M3: =Time!M$58 -> Forecast | N3: =Time!N$58 -> Forecast | O3: =Time!O$58 -> Forecast | P3: =Time!P$58 -> Post-Fcst
E4: =Time!E$86 -> Financial Year Ending | J4: =Time!J$86 -> 2020 | K4: =Time!K$86 -> 2021 | L4: =Time!L$86 -> 2022 | M4: =Time!M$86 -> 2023 | N4: =Time!N$86 -> 2024 | O4: =Time!O$86 -> 2025 | P4: =Time!P$86 -> 2026
E5: =Time!E$10 -> Model column counter | F5: Constant | G5: Unit | H5: Total | J5: =Time!J$10 -> 1 | K5: =Time!K$10 -> 2 | L5: =Time!L$10 -> 3 | M5: =Time!M$10 -> 4 | N5: =Time!N$10 -> 5 | O5: =Time!O$10 -> 6 | P5: =Time!P$10 -> 7
A7: MODEL PERIOD
B9: Model Column Counter
E10: Model column counter | G10: counter | J10: =I10 + 1 -> 1 | K10: 2 | L10: 3 | M10: 4 | N10: 5 | O10: 6 | P10: 7
E11: Model Column Total | F11: =MAX(J10:BX10) -> 7 | G11: column
E13: =E$10 -> Model column counter | F13: 0 | G13: counter | H13: 0 | I13: 0 | J13: 1 | K13: 2 | L13: 3 | M13: 4 | N13: 5 | O13: 6 | P13: 7
E14: First model column flag | G14: flag | H14: =SUM(J14:BX14) -> 1 | J14: =IF( J13 = 1, 1, 0) -> 1 | K14: 0 | L14: 0 | M14: 0 | N14: 0 | O14: 0 | P14: 0
E16: =InpC!E$15 -> First date of time ruler | F16: =InpC!F$15 -> 2019-04-01 | G16: =InpC!G$15 -> date
E17: First model period BEG | F17: =DATE(YEAR(F16), MONTH(F16), 1) -> 2019-04-01 | G17: month
E19: =E$17 -> First model period BEG | F19: =F$17 -> 2019-04-01 | G19: =G$17 -> month
E20: =E$14 -> First model column flag | F20: 0 | G20: flag | H20: 1 | I20: 0 | J20: 1 | K20: 0 | L20: 0 | M20: 0 | N20: 0 | O20: 0 | P20: 0
E21: Model Period BEG | G21: date | J21: =IF( J20 = 1, $F19, I22 + 1) -> 2019-04-01 | K21: 2020-04-01 | L21: 2021-04-01 | M21: 2022-04-01 | N21: 2023-04-01 | O21: 2024-04-01 | P21: 2025-04-01
E22: Model Period END | G22: date | J22: =DATE(YEAR(J21), MONTH(J21) + 12, DAY(1) - 1) -> 2020-03-31 | K22: =DATE(YEAR(K21), MONTH(K21) + 12, DAY(1) - 1) -> 2021-03-31 | L22: 2022-03-31 | M22: 2023-03-31 | N22: 2024-03-31 | O22: 2025-03-31 | P22: 2026-03-31
E24: =E$22 -> Model Period END | F24: 00:00:00 | G24: date | H24: 00:00:00 | I24: 00:00:00 | J24: 2020-03-31 | K24: 2021-03-31 | L24: 2022-03-31 | M24: 2023-03-31 | N24: 2024-03-31 | O24: 2025-03-31 | P24: 2026-03-31
E25: =E$21 -> Model Period BEG | F25: 00:00:00 | G25: date | H25: 00:00:00 | I25: 00:00:00 | J25: 2019-04-01 | K25: 2020-04-01 | L25: 2021-04-01 | M25: 2022-04-01 | N25: 2023-04-01 | O25: 2024-04-01 | P25: 2025-04-01
E26: Days in Model Period | G26: days | H26: =SUM(J26:BX26) -> 2557 | J26: =J24 - J25 + 1 -> 366 | K26: 365 | L26: 365 | M26: 365 | N26: 366 | O26: 365 | P26: 365
A29: PRE FORECAST PERIOD
E31: =InpC!E$17 -> Last Pre Forecast Date | F31: =InpC!F$17 -> 2020-03-31 | G31: =InpC!G$17 -> date
E32: =E$22 -> Model Period END | F32: 00:00:00 | G32: date | H32: 00:00:00 | I32: 00:00:00 | J32: 2020-03-31 | K32: 2021-03-31 | L32: 2022-03-31 | M32: 2023-03-31 | N32: 2024-03-31 | O32: 2025-03-31 | P32: 2026-03-31
E33: Last Pre Forecast Flag | G33: flag | H33: =SUM(J33:BX33) -> 1 | J33: =IF(J32 = $F31, 1, 0) -> 1 | K33: =IF(K32 = $F31, 1, 0) -> 0 | L33: 0 | M33: 0 | N33: 0 | O33: 0 | P33: 0
E34: Pre Forecast Period Flag | G34: flag | H34: =SUM(J34:BX34) -> 1 | J34: =IF($F31 >= J32, 1, 0) -> 1 | K34: 0 | L34: 0 | M34: 0 | N34: 0 | O34: 0 | P34: 0
E35: Pre Forecast Period Total | F35: =SUM(J34:BX34) -> 1 | G35: columns
E37: =InpC!E$19 -> Acquisition date (midnight) | F37: =InpC!F$19 -> 2020-03-31 | G37: =InpC!G$19 -> date
E38: =E$22 -> Model Period END | F38: 00:00:00 | G38: date | H38: 00:00:00 | I38: 00:00:00 | J38: 2020-03-31 | K38: 2021-03-31 | L38: 2022-03-31 | M38: 2023-03-31 | N38: 2024-03-31 | O38: 2025-03-31 | P38: 2026-03-31
E39: Acquisition / initial balance date flag | G39: flag | H39: =SUM(J39:BX39) -> 1 | J39: =IF(J38 = $F37, 1, 0) -> 1 | K39: 0 | L39: 0 | M39: 0 | N39: 0 | O39: 0 | P39: 0
A42: FORECAST PERIOD
E44: =E$33 -> Last Pre Forecast Flag | F44: 0 | G44: flag | H44: 1 | I44: 0 | J44: 1 | K44: 0 | L44: 0 | M44: 0 | N44: 0 | O44: 0 | P44: 0
E45: 1st Forecast Period Flag | G45: flag | H45: =SUM(J45:BX45) -> 1 | J45: =I44 -> 0 | K45: 1 | L45: 0 | M45: 0 | N45: 0 | O45: 0 | P45: 0
E47: =InpC!E$21 -> Last forecast date | F47: =InpC!F$21 -> 2025-03-31 | G47: =InpC!G$21 -> date
E48: =E$22 -> Model Period END | F48: 00:00:00 | G48: date | H48: 00:00:00 | I48: 00:00:00 | J48: 2020-03-31 | K48: 2021-03-31 | L48: 2022-03-31 | M48: 2023-03-31 | N48: 2024-03-31 | O48: 2025-03-31 | P48: 2026-03-31
E49: Last Forecast Period Flag | G49: flag | H49: =SUM(J49:BX49) -> 1 | J49: =IF(AND($F47 > I48, $F47 <= J48), 1, 0) -> 0 | K49: 0 | L49: 0 | M49: 0 | N49: 0 | O49: 1 | P49: 0
E51: =E$45 -> 1st Forecast Period Flag | F51: 0 | G51: flag | H51: 1 | I51: 0 | J51: 0 | K51: =K$45 -> 1 | L51: 0 | M51: 0 | N51: 0 | O51: 0 | P51: 0
E52: =E$49 -> Last Forecast Period Flag | F52: 0 | G52: flag | H52: 1 | I52: 0 | J52: 0 | K52: 0 | L52: 0 | M52: 0 | N52: 0 | O52: 1 | P52: 0
E53: Forecast Period Flag | G53: flag | H53: =SUM(J53:BX53) -> 5 | J53: =J51 - I52 + I53 -> 0 | K53: 1 | L53: 1 | M53: 1 | N53: 1 | O53: 1 | P53: 0
E54: Forecast Period Total | F54: =SUM(J53:BX53) -> 5 | G54: columns
E56: =E$34 -> Pre Forecast Period Flag | F56: 0 | G56: flag | H56: 1 | I56: 0 | J56: 1 | K56: 0 | L56: 0 | M56: 0 | N56: 0 | O56: 0 | P56: 0
E57: =E$53 -> Forecast Period Flag | F57: 0 | G57: flag | H57: 5 | I57: 0 | J57: 0 | K57: 1 | L57: 1 | M57: 1 | N57: 1 | O57: 1 | P57: 0
E58: Pre Forecast vs Forecast | G58: flag | J58: =IF(J56 = 1, "Pre Fcst", IF(J57 = 1, "Forecast", "Post-Fcst")) -> Pre Fcst | K58: Forecast | L58: Forecast | M58: Forecast | N58: Forecast | O58: Forecast | P58: Post-Fcst
A61: POST FORECAST PERIOD
E63: =E$49 -> Last Forecast Period Flag | F63: 0 | G63: flag | H63: 1 | I63: 0 | J63: 0 | K63: 0 | L63: 0 | M63: 0 | N63: 0 | O63: 1 | P63: 0
E64: 1st Post Last Forecast Period Flag | G64: flag | H64: =SUM(J64:BX64) -> 1 | J64: =I63 -> 0 | K64: 0 | L64: 0 | M64: 0 | N64: 0 | O64: 0 | P64: 1
E66: =E$64 -> 1st Post Last Forecast Period Flag | F66: 0 | G66: flag | H66: 1 | I66: 0 | J66: 0 | K66: 0 | L66: 0 | M66: 0 | N66: 0 | O66: 0 | P66: 1
E67: Post Forecast Period Flag | G67: flag | H67: =SUM(J67:BX67) -> 1 | J67: =I67 + J66 -> 0 | K67: 0 | L67: 0 | M67: 0 | N67: 0 | O67: 0 | P67: 1
E68: Post Forecast Period Total | F68: =SUM(J67:BX67) -> 1 | G68: columns
A71: MODELLING PERIOD CHECK
E73: =E$11 -> Model Column Total | F73: =F$11 -> 7 | G73: =G$11 -> column
D74: less | E74: =E$35 -> Pre Forecast Period Total | F74: =F$35 -> 1 | G74: =G$35 -> columns
D75: less | E75: =E$54 -> Forecast Period Total | F75: =F$54 -> 5 | G75: =G$54 -> columns
D76: less | E76: =E$68 -> Post Forecast Period Total | F76: =F$68 -> 1 | G76: =G$68 -> columns
E77: Modelling Period Check | F77: =IF(F73 - SUM(F74:F76) <> 0, 1, 0) -> 0 | G77: check
A80: FINANCIAL YEAR
E82: =InpC!E26 -> First Modelling Column Financial Year Number | F82: =InpC!F26 -> 2020 | G82: =InpC!G26 -> year
E83: =InpC!E27 -> Financial Year End Month Number | F83: =InpC!F27 -> 3 | G83: =InpC!G27 -> month #
E84: =E$22 -> Model Period END | F84: 00:00:00 | G84: date | H84: 00:00:00 | I84: 00:00:00 | J84: 2020-03-31 | K84: 2021-03-31 | L84: 2022-03-31 | M84: 2023-03-31 | N84: 2024-03-31 | O84: 2025-03-31 | P84: 2026-03-31
E85: =E$14 -> First model column flag | F85: 0 | G85: flag | H85: 1 | I85: 0 | J85: 1 | K85: 0 | L85: 0 | M85: 0 | N85: 0 | O85: 0 | P85: 0
E86: Financial Year Ending | G86: year # | J86: =IF(J85 = 1, $F82, IF(J84 > (DATE(I86, $F83 + 1, 1) - 1), I86 + 1, I86)) -> 2020 | K86: 2021 | L86: 2022 | M86: 2023 | N86: 2024 | O86: 2025 | P86: 2026
A88: CURRENT YEAR FLAG
E90: =InpC!E$31 -> First modelling period end year | F90: =InpC!F$31 -> 2021 | G90: =InpC!G$31 -> year
E91: =E$86 -> Financial Year Ending | F91: =F$86 -> 0 | G91: year # | H91: 0 | I91: 0 | J91: 2020 | K91: 2021 | L91: 2022 | M91: 2023 | N91: 2024 | O91: 2025 | P91: 2026
E92: First modelling period flag | F92: =F$10 -> 0 | G92: flag | H92: =H$10 -> 0 | I92: =I$10 -> 0 | J92: =IF(J91 = $F90, 1, 0) -> 0 | K92: =IF(K91 = $F90, 1, 0) -> 1 | L92: 0 | M92: 0 | N92: 0 | O92: 0 | P92: 0
E94: =InpC!E$32 -> Second modelling period end year | F94: =InpC!F$32 -> 2022 | G94: =InpC!G$32 -> year
E95: =E$86 -> Financial Year Ending | F95: =F$86 -> 0 | G95: year # | H95: 0 | I95: 0 | J95: 2020 | K95: 2021 | L95: 2022 | M95: 2023 | N95: 2024 | O95: 2025 | P95: 2026
E96: Second modelling period flag | F96: =F$10 -> 0 | G96: flag | H96: =H$10 -> 0 | I96: =I$10 -> 0 | J96: =IF(J95 = $F94, 1, 0) -> 0 | K96: 0 | L96: 1 | M96: 0 | N96: 0 | O96: 0 | P96: 0
E98: =InpC!E$33 -> Third modelling period end year | F98: =InpC!F$33 -> 2023 | G98: =InpC!G$33 -> year
E99: =E$86 -> Financial Year Ending | F99: =F$86 -> 0 | G99: year # | H99: 0 | I99: 0 | J99: 2020 | K99: 2021 | L99: 2022 | M99: 2023 | N99: 2024 | O99: 2025 | P99: 2026
E100: Third modelling period flag | F100: =F$10 -> 0 | G100: flag | H100: =H$10 -> 0 | I100: =I$10 -> 0 | J100: =IF(J99 = $F98, 1, 0) -> 0 | K100: 0 | L100: 0 | M100: 1 | N100: 0 | O100: 0 | P100: 0
E102: =InpC!E$34 -> Fourth modelling period end year | F102: =InpC!F$34 -> 2024 | G102: =InpC!G$34 -> year
E103: =E$86 -> Financial Year Ending | F103: =F$86 -> 0 | G103: year # | H103: 0 | I103: 0 | J103: 2020 | K103: 2021 | L103: 2022 | M103: 2023 | N103: 2024 | O103: 2025 | P103: 2026
E104: Fourth modelling period flag | F104: =F$10 -> 0 | G104: flag | H104: =H$10 -> 0 | I104: =I$10 -> 0 | J104: =IF(J103 = $F102, 1, 0) -> 0 | K104: 0 | L104: 0 | M104: 0 | N104: 1 | O104: 0 | P104: 0
E106: =InpC!E$35 -> Fifth modelling period end year | F106: =InpC!F$35 -> 2025 | G106: =InpC!G$35 -> year
E107: =E$86 -> Financial Year Ending | F107: =F$86 -> 0 | G107: year # | H107: 0 | I107: 0 | J107: 2020 | K107: 2021 | L107: 2022 | M107: 2023 | N107: 2024 | O107: 2025 | P107: 2026
E108: Fifth modelling period flag | F108: =F$10 -> 0 | G108: flag | H108: =H$10 -> 0 | I108: =I$10 -> 0 | J108: =IF(J107 = $F106, 1, 0) -> 0 | K108: 0 | L108: 0 | M108: 0 | N108: 0 | O108: 1 | P108: 0

Sheet InpC
A1: =RIGHT(CELL("filename", $A$1), LEN(CELL("filename", $A$1)) - SEARCH("]", CELL("filename", $A$1))) -> InpC
F5: Input | G5: Unit | H5: Comment
E7: Total Comparison Column Differences
E9: Option Name
E11: [don't delete row]
A13: TIME
E15: First date of time ruler | F15: 2019-04-01 | G15: date | H15: Suggested default: (as entered)
E17: Last Pre Forecast Date | F17: 2020-03-31 | G17: date | H17: Suggested default: (as entered)
E19: Acquisition date (midnight) | F19: 2020-03-31 | G19: date | H19: Suggested default: (as entered)
E20: Length of forecast period | F20: 5 | G20: years | H20: Suggested default: (as entered)
E21: Last forecast date | F21: =DATE(YEAR(F19)+F20,MONTH(F19),DAY(F19)) -> 2025-03-31 | G21: date
E24: Operation Start Date (midnight) | F24: 2020-03-31 | G24: date | H24: Suggested default: (as entered)
E25: Operation Finish Date (midnight) | F25: 2025-03-31 | G25: date | H25: Suggested default: (as entered)
E26: First Modelling Column Financial Year Number | F26: 2020 | G26: year | H26: Suggested default: (as entered)
E27: Financial Year End Month Number | F27: 3 | G27: month # | H27: Suggested default: (as entered)
E28: Financial Year Start Month Number | F28: 4 | G28: month # | H28: Suggested default: (as entered)
E30: Modelling period flags
E31: First modelling period end year | F31: 2021 | G31: year | H31: Suggested default: (as entered)
E32: Second modelling period end year | F32: 2022 | G32: year | H32: Suggested default: (as entered)
E33: Third modelling period end year | F33: 2023 | G33: year | H33: Suggested default: (as entered)
E34: Fourth modelling period end year | F34: 2024 | G34: year | H34: Suggested default: (as entered)
E35: Fifth modelling period end year | F35: 2025 | G35: year | H35: Suggested default: (as entered)
A38: NON CHANGEABLE INPUTS
B40: Model Tolerance
E41: Model Check Tolerance Level | F41: 0.001 | G41: tolerance
E43: Model Track Tolerance Level | F43: 0.001 | G43: tolerance
E45: % Model Check Tolerance Level | F45: 1e-05 | G45: %
A47: FINANCIAL CALC INPUTS
E49: Notional % of 'new' debt over period | F49: 0.2 | G49: percentage | H49: Suggested default: 20% (see: 'PR19 Final Determinations, Allowed Return on Capital Technical Appendix')
E50: Proportion of notional debt subject to indexation - intial balance | G50: percentage | H50: Suggested default: blank
E51: Long-term CPIH assumption | F51: 0.02 | G51: percentage | H51: Suggested default: 2.0% (see: 'PR19 Final Determinations, Allowed Return on Capital Technical Appendix')
E52: Mid-point of the AMP | F52: 2.5 | G52: years
E53: Ex-ante 'outperformance wedge' for notional company vs. average A/BBB iBoXX 10+ non-financial index (new debt only) | F53: 0.0015 | G53: percentage | H53: Suggested default: 0.15% (see: 'PR19 Final Determinations, Allowed Return on Capital Technical Appendix')
E54: PR19 appointee allowed return on capital (CPIH-deflated using long-term assumption) | F54: 0.0296 | G54: percentage | H54: Suggested default: 2.96% (see: 'PR19 Final Determinations, Allowed Return on Capital Technical Appendix')
E55: Notional gearing | F55: 0.6 | G55: percentage | H55: Suggested default: 60% (see: 'PR19 Final Determinations, Allowed Return on Capital Technical Appendix')
E57: Units in 100% | F57: 100 | G57: units | H57: Suggested default: 100
E59: PV base date | F59: 2025-03-31 | G59: date | H59: Suggested default: 31 Mar 25
E60: Days in a year | F60: 365 | G60: days | H60: Suggested default: 365
E62: Company-specific adjustment (new debt) | G62: percentage | H62: Suggested default: 0.25% (see: 'PR19 Final Determinations, Allowed Return on Capital Technical Appendix')
E63: Company-specific adjustment (embedded debt) | G63: percentage | H63: Suggested default: 0.35% (see: 'PR19 Final Determinations, Allowed Return on Capital Technical Appendix')
E64: Company-specific adjustment applies to Water Resources | G64: Yes / No | H64: Company-specific input
E65: Company-specific adjustment applies to Water Network Plus | G65: Yes / No | H65: Company-specific input
E66: Company-specific adjustment applies to Wastewater Network Plus | G66: Yes / No | H66: Company-specific input
E67: Company-specific adjustment applies to Bioresources | G67: Yes / No | H67: Company-specific input
E68: Company-specific adjustment applies to Dummy | G68: Yes / No | H68: Company-specific input
E72: [don't delete row]

Sheet InpR
A1: =RIGHT(CELL("filename", $A$1), LEN(CELL("filename", $A$1)) - SEARCH("]", CELL("filename", $A$1))) -> InpR
E2: =Time!E$21 -> Model Period BEG | J2: =Time!J$21 -> 2019-04-01 | K2: =Time!K$21 -> 2020-04-01 | L2: =Time!L$21 -> 2021-04-01 | M2: =Time!M$21 -> 2022-04-01 | N2: =Time!N$21 -> 2023-04-01 | O2: =Time!O$21 -> 2024-04-01 | P2: =Time!P$21 -> 2025-04-01
E3: =Time!E$22 -> Model Period END | J3: =Time!J$22 -> 2020-03-31 | K3: =Time!K$22 -> 2021-03-31 | L3: =Time!L$22 -> 2022-03-31 | M3: =Time!M$22 -> 2023-03-31 | N3: =Time!N$22 -> 2024-03-31 | O3: =Time!O$22 -> 2025-03-31 | P3: =Time!P$22 -> 2026-03-31
E4: =Time!E$58 -> Pre Forecast vs Forecast | J4: =Time!J$58 -> Pre Fcst | K4: =Time!K$58 -> Forecast | L4: =Time!L$58 -> Forecast | M4: =Time!M$58 -> Forecast | N4: =Time!N$58 -> Forecast | O4: =Time!O$58 -> Forecast | P4: =Time!P$58 -> Post-Fcst | Q4: Notes:
E5: =Time!E$86 -> Financial Year Ending | J5: =Time!J$86 -> 2020 | K5: =Time!K$86 -> 2021 | L5: =Time!L$86 -> 2022 | M5: =Time!M$86 -> 2023 | N5: =Time!N$86 -> 2024 | O5: =Time!O$86 -> 2025 | P5: =Time!P$86 -> 2026
E6: =Time!E$10 -> Model column counter | J6: =Time!J$10 -> 1 | K6: =Time!K$10 -> 2 | L6: =Time!L$10 -> 3 | M6: =Time!M$10 -> 4 | N6: =Time!N$10 -> 5 | O6: =Time!O$10 -> 6 | P6: =Time!P$10 -> 7
F7: Constant | G7: Unit | H7: Total
E13: [don't delete row] | I13: [range starts]
A14: RCV - Water Resources
E15: Water resources RCV year start | G15: £m, (CPIH, 2017/18 prices) | K15: 127.01 | L15: 143.66 | M15: 166.94 | N15: 190.89 | O15: 223.16 | Q15: Suggested default: figures from last price control determination
E16: Water Resources RCV year end | G16: £m, (CPIH, 2017/18 prices) | K16: 143.11 | L16: 166.36 | M16: 190.34 | N16: 222.66 | O16: 226.57 | Q16: Suggested default: figures from last price control determination
A18: RCV - Water Network Plus
E19: Water Network Plus RCV year start | G19: £m, (CPIH, 2017/18 prices) | K19: 1040.51 | L19: 1101.72 | M19: 1156.25 | N19: 1201.86 | O19: 1220.07 | Q19: Suggested default: figures from last price control determination
E20: Water Network Plus RCV year end | G20: £m, (CPIH, 2017/18 prices) | K20: 1097.03 | L20: 1151.14 | M20: 1196.8 | N20: 1215.19 | O20: 1227.5 | Q20: Suggested default: figures from last price control determination
A22: RCV - Wastewater Network Plus
E23: Watewater Network Plus RCV year start | G23: £m, (CPIH, 2017/18 prices) | Q23: Suggested default: figures from last price control determination
E24: Watewater Network Plus RCV year end | G24: £m, (CPIH, 2017/18 prices) | Q24: Suggested default: figures from last price control determination
A26: RCV - Bioresources
E27: Bioresources RCV year start | G27: £m, (CPIH, 2017/18 prices) | Q27: Suggested default: figures from last price control determination
E28: Bioresources RCV year end | G28: £m, (CPIH, 2017/18 prices) | Q28: Suggested default: figures from last price control determination
A30: RCV - Dummy
E31: Dummy RCV year start | G31: £m, (CPIH, 2017/18 prices) | Q31: Suggested default: figures from last price control determination
E32: Dummy RCV year end | G32: £m, (CPIH, 2017/18 prices) | Q32: Suggested default: figures from last price control determination
A35: COD
E36: Allowed sector new debt cost (not inc. CSA) - final determination (CPIH real) | G36: percentage | K36: 0.0053 | L36: 0.0053 | M36: 0.0053 | N36: 0.0053 | O36: 0.0053 | Q36: Suggested default: figures from last price control determination
E37: Allowed sector embedded debt cost (not inc. CSA) - final determination (CPIH real) | G37: percentage | K37: 0.0242 | L37: 0.0242 | M37: 0.0242 | N37: 0.0242 | O37: 0.0242 | Q37: Suggested default: figures from last price control determination
E39: =InpC!E$57 -> Units in 100% | F39: =InpC!F$57 -> 100 | G39: =InpC!G$57 -> units
E40: 1 Year average of iBoxx adjusted for 'outperformance wedge' (base) | G40: Percentage | K40: =AVERAGEIFS( InpIndex!$M:$M, InpIndex!$G:$G, K5) / $F39 -> 0.02013974363 | L40: =AVERAGEIFS( InpIndex!$M:$M, InpIndex!$G:$G, L5) / $F39 -> 0.02296005109 | M40: =AVERAGEIFS( InpIndex!$M:$M, InpIndex!$G:$G, M5) / $F39 -> 0.04669417725 | N40: =AVERAGEIFS( InpIndex!$M:$M, InpIndex!$G:$G, N5) / $F39 -> 0.05730557786 | O40: =AVERAGEIFS( InpIndex!$M:$M, InpIndex!$G:$G, O5) / $F39 -> 0.05805653817
E43: =InpC!E$50 -> Proportion of notional debt subject to indexation - intial balance | F43: =InpC!F$50 -> 0 | G43: =InpC!G$50 -> percentage | I43: =InpC!I$50 -> 0 | J43: =InpC!J$50 -> 0 | K43: =InpC!K$50 -> 0 | L43: =InpC!L$50 -> 0 | M43: =InpC!M$50 -> 0 | N43: =InpC!N$50 -> 0 | O43: =InpC!O$50 -> 0 | P43: =InpC!P$50 -> 0
E44: =InpC!E$49 -> Notional % of 'new' debt over period | F44: =InpC!F$49 -> 0.2 | G44: =InpC!G$49 -> percentage | I44: =InpC!I$49 -> 0 | J44: =InpC!J$49 -> 0 | K44: =InpC!K$49 -> 0 | L44: =InpC!L$49 -> 0 | M44: =InpC!M$49 -> 0 | N44: =InpC!N$49 -> 0 | O44: =InpC!O$49 -> 0 | P44: =InpC!P$49 -> 0
E45: =InpC!E$52 -> Mid-point of the AMP | F45: =InpC!F$52 -> 2.5 | G45: =InpC!G$52 -> years | H45: =InpC!H$52 -> 0 | I45: =InpC!I$52 -> 0 | J45: =InpC!J$52 -> 0 | K45: =InpC!K$52 -> 0 | L45: =InpC!L$52 -> 0 | M45: =InpC!M$52 -> 0 | N45: =InpC!N$52 -> 0 | O45: =InpC!O$52 -> 0 | P45: =InpC!P$52 -> 0
E47: =Time!E$44 -> Last Pre Forecast Flag | F47: =Time!F$44 -> 0 | G47: =Time!G$44 -> flag | H47: =Time!H$44 -> 1 | I47: =Time!I$44 -> 0 | J47: =Time!J$44 -> 1 | K47: =Time!K$44 -> 0 | L47: =Time!L$44 -> 0 | M47: =Time!M$44 -> 0 | N47: =Time!N$44 -> 0 | O47: =Time!O$44 -> 0 | P47: =Time!P$44 -> 0
E49: Proportion of notional debt subject to indexation BEG | G49: Percentage | J49: =I50 -> 0 | K49: =J50 -> 0 | L49: 0.08 | M49: 0.16 | N49: 0.24 | O49: 0.32 | P49: =O50 -> 0.4
E50: Proportion of notional debt subject to indexation END | G50: Percentage | J50: =IF( J47 = 1, $F43, J49 + ($F44 / $F45) ) -> 0 | K50: =IF( K47 = 1, $F43, K49 + ($F44 / $F45) ) -> 0.08 | L50: =IF( L47 = 1, $F43, L49 + ($F44 / $F45) ) -> 0.16 | M50: =IF( M47 = 1, $F43, M49 + ($F44 / $F45) ) -> 0.24 | N50: 0.32 | O50: 0.4 | P50: 0.48
E54: =E$49 -> Proportion of notional debt subject to indexation BEG | F54: =F$49 -> 0 | G54: Percentage | H54: 0 | I54: 0 | J54: 0 | K54: =K$49 -> 0 | L54: 0.08 | M54: 0.16 | N54: 0.24 | O54: 0.32 | P54: 0.4
E55: =E$50 -> Proportion of notional debt subject to indexation END | F55: =F$50 -> 0 | G55: Percentage | H55: 0 | I55: 0 | J55: 0 | K55: 0.08 | L55: 0.16 | M55: 0.24 | N55: 0.32 | O55: 0.4 | P55: 0.48
E56: Proportion of notional debt subject to indexation (year average) | G56: percentage | J56: =IFERROR( AVERAGE( J54:J55), 0) -> 0 | K56: 0.04 | L56: 0.12 | M56: 0.2 | N56: 0.28 | O56: 0.36 | P56: 0.44
E58: CPIH inflation allowance (long-term assumption) | F58: =InpC!F51 -> 0.02 | G58: percentage | K58: =$F$58 -> 0.02 | L58: =$F$58 -> 0.02 | M58: 0.02 | N58: 0.02 | O58: 0.02
E59: CPIH financial year-average index value | G59: Number | K59: 109.1083333 | L59: 113.1166667 | M59: 123.0416667 | N59: 129.6916667 | O59: 130.4 | Q59: Suggested default: CPIH index value provided by ONS
E61: Notional % of 'new' debt over period - initial balance
B63: Average debt cost weightings
E64: Average debt cost weighting 2021 | G64: Weighting | K64: 1 | L64: 0 | M64: 0 | N64: 0 | O64: 0 | Q64: Suggested default: Leave as populated
E65: Average debt cost weighting 2022 | G65: Weighting | K65: 1 | L65: 0.5 | M65: 0 | N65: 0 | O65: 0 | Q65: Suggested default: Leave as populated
E66: Average debt cost weighting 2023 | G66: Weighting | K66: 1 | L66: 1 | M66: 0.5 | N66: 0 | O66: 0 | Q66: Suggested default: Leave as populated
E67: Average debt cost weighting 2024 | G67: Weighting | K67: 1 | L67: 1 | M67: 1 | N67: 0.5 | O67: 0 | Q67: Suggested default: Leave as populated
E68: Average debt cost weighting 2025 | G68: Weighting | K68: 1 | L68: 1 | M68: 1 | N68: 1 | O68: 0.5 | Q68: Suggested default: Leave as populated
I71: [range ends]

Sheet InpIndex
A1: =RIGHT(CELL("filename", $A$1), LEN(CELL("filename", $A$1)) - SEARCH("]", CELL("filename", $A$1))) -> InpIndex
E5: Date | F5: Financial Year Month Start | G5: Fiscal Year | H5: iBoxx £ Non-Financials A 10+ | I5: iBoxx £ Non-Financials BBB 10+ | J5: Average of A and BBB | K5: Ex-ante outperformance wedge | L5: Company-specific adjustment | M5: Adjusted A/BBB average (base) | N5: Adjusted A/BBB average (CSA)
E6: 2016-01-04 | F6: =InpC!$F$28 -> 4 | G6: =YEAR(E6) + IF(MONTH(E6) >= F6, 1, 0) -> 2016 | H6: =INDEX('[3]iBoxx £ Non-Financials A 10+'!$M$17:$M$1927,MATCH(E6,'[3]iBoxx £ Non-Financials A 10+'!$A$17:$A$1927,0)) ->  | I6: =INDEX('[3]iBoxx £ Non-Financials BBB 10+'!$M$17:$M$1927,MATCH(E6,'[3]iBoxx £ Non-Financials BBB 10+'!$A$17:$A$1927,0)) ->  | J6: =IFERROR(AVERAGE(H6:I6),"") ->  | K6: =InpC!$F$53*100 -> 0.15 | L6: =InpC!$F$62*100 -> 0 | M6: =IFERROR(J6 - K6,"") ->  | N6: =IFERROR(J6-K6+L6,"") -> 
E7: =WORKDAY(E6,1,) -> 2016-01-05 | F7: =InpC!$F$28 -> 4 | G7: =YEAR(E7) + IF(MONTH(E7) >= F7, 1, 0) -> 2016 | H7: =INDEX('[3]iBoxx £ Non-Financials A 10+'!$M$17:$M$1927,MATCH(E7,'[3]iBoxx £ Non-Financials A 10+'!$A$17:$A$1927,0)) ->  | I7: =INDEX('[3]iBoxx £ Non-Financials BBB 10+'!$M$17:$M$1927,MATCH(E7,'[3]iBoxx £ Non-Financials BBB 10+'!$A$17:$A$1927,0)) ->  | J7: =IFERROR(AVERAGE(H7:I7),"") ->  | K7: =InpC!$F$53*100 -> 0.15 | L7: =InpC!$F$62*100 -> 0 | M7: =IFERROR(J7 - K7,"") ->  | N7: =IFERROR(J7-K7+L7,"") -> 
E8: =WORKDAY(E7,1,) -> 2016-01-06 | F8: =InpC!$F$28 -> 4 | G8: 2016 | H8: =INDEX('[3]iBoxx £ Non-Financials A 10+'!$M$17:$M$1927,MATCH(E8,'[3]iBoxx £ Non-Financials A 10+'!$A$17:$A$1927,0)) ->  | I8: =INDEX('[3]iBoxx £ Non-Financials BBB 10+'!$M$17:$M$1927,MATCH(E8,'[3]iBoxx £ Non-Financials BBB 10+'!$A$17:$A$1927,0)) ->  | K8: =InpC!$F$53*100 -> 0.15 | L8: =InpC!$F$62*100 -> 0
E9: 2016-01-07 | F9: =InpC!$F$28 -> 4 | G9: 2016 | H9: =INDEX('[3]iBoxx £ Non-Financials A 10+'!$M$17:$M$1927,MATCH(E9,'[3]iBoxx £ Non-Financials A 10+'!$A$17:$A$1927,0)) ->  | I9: =INDEX('[3]iBoxx £ Non-Financials BBB 10+'!$M$17:$M$1927,MATCH(E9,'[3]iBoxx £ Non-Financials BBB 10+'!$A$17:$A$1927,0)) ->  | K9: =InpC!$F$53*100 -> 0.15 | L9: =InpC!$F$62*100 -> 0
E10: 2016-01-08 | F10: =InpC!$F$28 -> 4 | G10: 2016 | H10: =INDEX('[3]iBoxx £ Non-Financials A 10+'!$M$17:$M$1927,MATCH(E10,'[3]iBoxx £ Non-Financials A 10+'!$A$17:$A$1927,0)) ->  | I10: =INDEX('[3]iBoxx £ Non-Financials BBB 10+'!$M$17:$M$1927,MATCH(E10,'[3]iBoxx £ Non-Financials BBB 10+'!$A$17:$A$1927,0)) ->  | K10: =InpC!$F$53*100 -> 0.15 | L10: =InpC!$F$62*100 -> 0
E11: 2016-01-11 | F11: =InpC!$F$28 -> 4 | G11: 2016 | H11: =INDEX('[3]iBoxx £ Non-Financials A 10+'!$M$17:$M$1927,MATCH(E11,'[3]iBoxx £ Non-Financials A 10+'!$A$17:$A$1927,0)) ->  | I11: =INDEX('[3]iBoxx £ Non-Financials BBB 10+'!$M$17:$M$1927,MATCH(E11,'[3]iBoxx £ Non-Financials BBB 10+'!$A$17:$A$1927,0)) ->  | K11: =InpC!$F$53*100 -> 0.15 | L11: =InpC!$F$62*100 -> 0
E12: 2016-01-12 | F12: =InpC!$F$28 -> 4 | G12: 2016 | H12: =INDEX('[3]iBoxx £ Non-Financials A 10+'!$M$17:$M$1927,MATCH(E12,'[3]iBoxx £ Non-Financials A 10+'!$A$17:$A$1927,0)) ->  | I12: =INDEX('[3]iBoxx £ Non-Financials BBB 10+'!$M$17:$M$1927,MATCH(E12,'[3]iBoxx £ Non-Financials BBB 10+'!$A$17:$A$1927,0)) ->  | K12: =InpC!$F$53*100 -> 0.15 | L12: =InpC!$F$62*100 -> 0
E13: 2016-01-13 | F13: =InpC!$F$28 -> 4 | G13: 2016 | H13: =INDEX('[3]iBoxx £ Non-Financials A 10+'!$M$17:$M$1927,MATCH(E13,'[3]iBoxx £ Non-Financials A 10+'!$A$17:$A$1927,0)) ->  | I13: =INDEX('[3]iBoxx £ Non-Financials BBB 10+'!$M$17:$M$1927,MATCH(E13,'[3]iBoxx £ Non-Financials BBB 10+'!$A$17:$A$1927,0)) ->  | K13: =InpC!$F$53*100 -> 0.15 | L13: =InpC!$F$62*100 -> 0
E14: 2016-01-14 | F14: =InpC!$F$28 -> 4 | G14: 2016 | H14: =INDEX('[3]iBoxx £ Non-Financials A 10+'!$M$17:$M$1927,MATCH(E14,'[3]iBoxx £ Non-Financials A 10+'!$A$17:$A$1927,0)) ->  | I14: =INDEX('[3]iBoxx £ Non-Financials BBB 10+'!$M$17:$M$1927,MATCH(E14,'[3]iBoxx £ Non-Financials BBB 10+'!$A$17:$A$1927,0)) ->  | K14: =InpC!$F$53*100 -> 0.15 | L14: =InpC!$F$62*100 -> 0
E15: 2016-01-15 | F15: =InpC!$F$28 -> 4 | G15: 2016 | H15: =INDEX('[3]iBoxx £ Non-Financials A 10+'!$M$17:$M$1927,MATCH(E15,'[3]iBoxx £ Non-Financials A 10+'!$A$17:$A$1927,0)) ->  | I15: =INDEX('[3]iBoxx £ Non-Financials BBB 10+'!$M$17:$M$1927,MATCH(E15,'[3]iBoxx £ Non-Financials BBB 10+'!$A$17:$A$1927,0)) ->  | K15: =InpC!$F$53*100 -> 0.15 | L15: =InpC!$F$62*100 -> 0
E16: 2016-01-18 | F16: =InpC!$F$28 -> 4 | G16: 2016 | H16: =INDEX('[3]iBoxx £ Non-Financials A 10+'!$M$17:$M$1927,MATCH(E16,'[3]iBoxx £ Non-Financials A 10+'!$A$17:$A$1927,0)) ->  | I16: =INDEX('[3]iBoxx £ Non-Financials BBB 10+'!$M$17:$M$1927,MATCH(E16,'[3]iBoxx £ Non-Financials BBB 10+'!$A$17:$A$1927,0)) ->  | K16: =InpC!$F$53*100 -> 0.15 | L16: =InpC!$F$62*100 -> 0
E17: 2016-01-19 | F17: =InpC!$F$28 -> 4 | G17: 2016 | H17: =INDEX('[3]iBoxx £ Non-Financials A 10+'!$M$17:$M$1927,MATCH(E17,'[3]iBoxx £ Non-Financials A 10+'!$A$17:$A$1927,0)) ->  | I17: =INDEX('[3]iBoxx £ Non-Financials BBB 10+'!$M$17:$M$1927,MATCH(E17,'[3]iBoxx £ Non-Financials BBB 10+'!$A$17:$A$1927,0)) ->  | K17: =InpC!$F$53*100 -> 0.15 | L17: =InpC!$F$62*100 -> 0
E18: 2016-01-20 | F18: =InpC!$F$28 -> 4 | G18: 2016 | H18: =INDEX('[3]iBoxx £ Non-Financials A 10+'!$M$17:$M$1927,MATCH(E18,'[3]iBoxx £ Non-Financials A 10+'!$A$17:$A$1927,0)) ->  | I18: =INDEX('[3]iBoxx £ Non-Financials BBB 10+'!$M$17:$M$1927,MATCH(E18,'[3]iBoxx £ Non-Financials BBB 10+'!$A$17:$A$1927,0)) ->  | K18: =InpC!$F$53*100 -> 0.15 | L18: =InpC!$F$62*100 -> 0
E19: 2016-01-21 | F19: =InpC!$F$28 -> 4 | G19: 2016 | H19: =INDEX('[3]iBoxx £ Non-Financials A 10+'!$M$17:$M$1927,MATCH(E19,'[3]iBoxx £ Non-Financials A 10+'!$A$17:$A$1927,0)) ->  | I19: =INDEX('[3]iBoxx £ Non-Financials BBB 10+'!$M$17:$M$1927,MATCH(E19,'[3]iBoxx £ Non-Financials BBB 10+'!$A$17:$A$1927,0)) ->  | K19: =InpC!$F$53*100 -> 0.15 | L19: =InpC!$F$62*100 -> 0
E20: 2016-01-22 | F20: =InpC!$F$28 -> 4 | G20: 2016 | H20: =INDEX('[3]iBoxx £ Non-Financials A 10+'!$M$17:$M$1927,MATCH(E20,'[3]iBoxx £ Non-Financials A 10+'!$A$17:$A$1927,0)) ->  | I20: =INDEX('[3]iBoxx £ Non-Financials BBB 10+'!$M$17:$M$1927,MATCH(E20,'[3]iBoxx £ Non-Financials BBB 10+'!$A$17:$A$1927,0)) ->  | K20: =InpC!$F$53*100 -> 0.15 | L20: =InpC!$F$62*100 -> 0
E21: 2016-01-25 | F21: =InpC!$F$28 -> 4 | G21: 2016 | H21: =INDEX('[3]iBoxx £ Non-Financials A 10+'!$M$17:$M$1927,MATCH(E21,'[3]iBoxx £ Non-Financials A 10+'!$A$17:$A$1927,0)) ->  | I21: =INDEX('[3]iBoxx £ Non-Financials BBB 10+'!$M$17:$M$1927,MATCH(E21,'[3]iBoxx £ Non-Financials BBB 10+'!$A$17:$A$1927,0)) ->  | K21: =InpC!$F$53*100 -> 0.15 | L21: =InpC!$F$62*100 -> 0
E22: 2016-01-26 | F22: =InpC!$F$28 -> 4 | G22: 2016 | H22: =INDEX('[3]iBoxx £ Non-Financials A 10+'!$M$17:$M$1927,MATCH(E22,'[3]iBoxx £ Non-Financials A 10+'!$A$17:$A$1927,0)) ->  | I22: =INDEX('[3]iBoxx £ Non-Financials BBB 10+'!$M$17:$M$1927,MATCH(E22,'[3]iBoxx £ Non-Financials BBB 10+'!$A$17:$A$1927,0)) ->  | K22: =InpC!$F$53*100 -> 0.15 | L22: =InpC!$F$62*100 -> 0
E23: 2016-01-27 | F23: =InpC!$F$28 -> 4 | G23: 2016 | H23: =INDEX('[3]iBoxx £ Non-Financials A 10+'!$M$17:$M$1927,MATCH(E23,'[3]iBoxx £ Non-Financials A 10+'!$A$17:$A$1927,0)) ->  | I23: =INDEX('[3]iBoxx £ Non-Financials BBB 10+'!$M$17:$M$1927,MATCH(E23,'[3]iBoxx £ Non-Financials BBB 10+'!$A$17:$A$1927,0)) ->  | K23: =InpC!$F$53*100 -> 0.15 | L23: =InpC!$F$62*100 -> 0
E24: 2016-01-28 | F24: =InpC!$F$28 -> 4 | G24: 2016 | H24: =INDEX('[3]iBoxx £ Non-Financials A 10+'!$M$17:$M$1927,MATCH(E24,'[3]iBoxx £ Non-Financials A 10+'!$A$17:$A$1927,0)) ->  | I24: =INDEX('[3]iBoxx £ Non-Financials BBB 10+'!$M$17:$M$1927,MATCH(E24,'[3]iBoxx £ Non-Financials BBB 10+'!$A$17:$A$1927,0)) ->  | K24: =InpC!$F$53*100 -> 0.15 | L24: =InpC!$F$62*100 -> 0
E25: 2016-01-29 | F25: =InpC!$F$28 -> 4 | G25: 2016 | H25: =INDEX('[3]iBoxx £ Non-Financials A 10+'!$M$17:$M$1927,MATCH(E25,'[3]iBoxx £ Non-Financials A 10+'!$A$17:$A$1927,0)) ->  | I25: =INDEX('[3]iBoxx £ Non-Financials BBB 10+'!$M$17:$M$1927,MATCH(E25,'[3]iBoxx £ Non-Financials BBB 10+'!$A$17:$A$1927,0)) ->  | K25: =InpC!$F$53*100 -> 0.15 | L25: =InpC!$F$62*100 -> 0
E26: 2016-02-01 | F26: =InpC!$F$28 -> 4 | G26: 2016 | H26: =INDEX('[3]iBoxx £ Non-Financials A 10+'!$M$17:$M$1927,MATCH(E26,'[3]iBoxx £ Non-Financials A 10+'!$A$17:$A$1927,0)) ->  | I26: =INDEX('[3]iBoxx £ Non-Financials BBB 10+'!$M$17:$M$1927,MATCH(E26,'[3]iBoxx £ Non-Financials BBB 10+'!$A$17:$A$1927,0)) ->  | K26: =InpC!$F$53*100 -> 0.15 | L26: =InpC!$F$62*100 -> 0
E27: 2016-02-02 | F27: =InpC!$F$28 -> 4 | G27: 2016 | H27: =INDEX('[3]iBoxx £ Non-Financials A 10+'!$M$17:$M$1927,MATCH(E27,'[3]iBoxx £ Non-Financials A 10+'!$A$17:$A$1927,0)) ->  | I27: =INDEX('[3]iBoxx £ Non-Financials BBB 10+'!$M$17:$M$1927,MATCH(E27,'[3]iBoxx £ Non-Financials BBB 10+'!$A$17:$A$1927,0)) ->  | K27: =InpC!$F$53*100 -> 0.15 | L27: =InpC!$F$62*100 -> 0
E28: 2016-02-03 | F28: =InpC!$F$28 -> 4 | G28: 2016 | H28: =INDEX('[3]iBoxx £ Non-Financials A 10+'!$M$17:$M$1927,MATCH(E28,'[3]iBoxx £ Non-Financials A 10+'!$A$17:$A$1927,0)) ->  | I28: =INDEX('[3]iBoxx £ Non-Financials BBB 10+'!$M$17:$M$1927,MATCH(E28,'[3]iBoxx £ Non-Financials BBB 10+'!$A$17:$A$1927,0)) ->  | K28: =InpC!$F$53*100 -> 0.15 | L28: =InpC!$F$62*100 -> 0
E29: 2016-02-04 | F29: =InpC!$F$28 -> 4 | G29: 2016 | H29: =INDEX('[3]iBoxx £ Non-Financials A 10+'!$M$17:$M$1927,MATCH(E29,'[3]iBoxx £ Non-Financials A 10+'!$A$17:$A$1927,0)) ->  | I29: =INDEX('[3]iBoxx £ Non-Financials BBB 10+'!$M$17:$M$1927,MATCH(E29,'[3]iBoxx £ Non-Financials BBB 10+'!$A$17:$A$1927,0)) ->  | K29: =InpC!$F$53*100 -> 0.15 | L29: =InpC!$F$62*100 -> 0
E30: 2016-02-05 | F30: =InpC!$F$28 -> 4 | G30: 2016 | H30: =INDEX('[3]iBoxx £ Non-Financials A 10+'!$M$17:$M$1927,MATCH(E30,'[3]iBoxx £ Non-Financials A 10+'!$A$17:$A$1927,0)) ->  | I30: =INDEX('[3]iBoxx £ Non-Financials BBB 10+'!$M$17:$M$1927,MATCH(E30,'[3]iBoxx £ Non-Financials BBB 10+'!$A$17:$A$1927,0)) ->  | K30: =InpC!$F$53*100 -> 0.15 | L30: =InpC!$F$62*100 -> 0
E31: 2016-02-08 | F31: =InpC!$F$28 -> 4 | G31: 2016 | H31: =INDEX('[3]iBoxx £ Non-Financials A 10+'!$M$17:$M$1927,MATCH(E31,'[3]iBoxx £ Non-Financials A 10+'!$A$17:$A$1927,0)) ->  | I31: =INDEX('[3]iBoxx £ Non-Financials BBB 10+'!$M$17:$M$1927,MATCH(E31,'[3]iBoxx £ Non-Financials BBB 10+'!$A$17:$A$1927,0)) ->  | K31: =InpC!$F$53*100 -> 0.15 | L31: =InpC!$F$62*100 -> 0
E32: 2016-02-09 | F32: =InpC!$F$28 -> 4 | G32: 2016 | H32: =INDEX('[3]iBoxx £ Non-Financials A 10+'!$M$17:$M$1927,MATCH(E32,'[3]iBoxx £ Non-Financials A 10+'!$A$17:$A$1927,0)) ->  | I32: =INDEX('[3]iBoxx £ Non-Financials BBB 10+'!$M$17:$M$1927,MATCH(E32,'[3]iBoxx £ Non-Financials BBB 10+'!$A$17:$A$1927,0)) ->  | K32: =InpC!$F$53*100 -> 0.15 | L32: =InpC!$F$62*100 -> 0
E33: 2016-02-10 | F33: =InpC!$F$28 -> 4 | G33: 2016 | H33: =INDEX('[3]iBoxx £ Non-Financials A 10+'!$M$17:$M$1927,MATCH(E33,'[3]iBoxx £ Non-Financials A 10+'!$A$17:$A$1927,0)) ->  | I33: =INDEX('[3]iBoxx £ Non-Financials BBB 10+'!$M$17:$M$1927,MATCH(E33,'[3]iBoxx £ Non-Financials BBB 10+'!$A$17:$A$1927,0)) ->  | K33: =InpC!$F$53*100 -> 0.15 | L33: =InpC!$F$62*100 -> 0
E34: 2016-02-11 | F34: =InpC!$F$28 -> 4 | G34: 2016 | H34: =INDEX('[3]iBoxx £ Non-Financials A 10+'!$M$17:$M$1927,MATCH(E34,'[3]iBoxx £ Non-Financials A 10+'!$A$17:$A$1927,0)) ->  | I34: =INDEX('[3]iBoxx £ Non-Financials BBB 10+'!$M$17:$M$1927,MATCH(E34,'[3]iBoxx £ Non-Financials BBB 10+'!$A$17:$A$1927,0)) ->  | K34: =InpC!$F$53*100 -> 0.15 | L34: =InpC!$F$62*100 -> 0
E35: 2016-02-12 | F35: =InpC!$F$28 -> 4 | G35: 2016 | H35: =INDEX('[3]iBoxx £ Non-Financials A 10+'!$M$17:$M$1927,MATCH(E35,'[3]iBoxx £ Non-Financials A 10+'!$A$17:$A$1927,0)) ->  | I35: =INDEX('[3]iBoxx £ Non-Financials BBB 10+'!$M$17:$M$1927,MATCH(E35,'[3]iBoxx £ Non-Financials BBB 10+'!$A$17:$A$1927,0)) ->  | K35: =InpC!$F$53*100 -> 0.15 | L35: =InpC!$F$62*100 -> 0
E36: 2016-02-15 | F36: =InpC!$F$28 -> 4 | G36: 2016 | H36: =INDEX('[3]iBoxx £ Non-Financials A 10+'!$M$17:$M$1927,MATCH(E36,'[3]iBoxx £ Non-Financials A 10+'!$A$17:$A$1927,0)) ->  | I36: =INDEX('[3]iBoxx £ Non-Financials BBB 10+'!$M$17:$M$1927,MATCH(E36,'[3]iBoxx £ Non-Financials BBB 10+'!$A$17:$A$1927,0)) ->  | K36: =InpC!$F$53*100 -> 0.15 | L36: =InpC!$F$62*100 -> 0
E37: 2016-02-16 | F37: =InpC!$F$28 -> 4 | G37: 2016 | H37: =INDEX('[3]iBoxx £ Non-Financials A 10+'!$M$17:$M$1927,MATCH(E37,'[3]iBoxx £ Non-Financials A 10+'!$A$17:$A$1927,0)) ->  | I37: =INDEX('[3]iBoxx £ Non-Financials BBB 10+'!$M$17:$M$1927,MATCH(E37,'[3]iBoxx £ Non-Financials BBB 10+'!$A$17:$A$1927,0)) ->  | K37: =InpC!$F$53*100 -> 0.15 | L37: =InpC!$F$62*100 -> 0
E38: 2016-02-17 | F38: =InpC!$F$28 -> 4 | G38: 2016 | H38: =INDEX('[3]iBoxx £ Non-Financials A 10+'!$M$17:$M$1927,MATCH(E38,'[3]iBoxx £ Non-Financials A 10+'!$A$17:$A$1927,0)) ->  | I38: =INDEX('[3]iBoxx £ Non-Financials BBB 10+'!$M$17:$M$1927,MATCH(E38,'[3]iBoxx £ Non-Financials BBB 10+'!$A$17:$A$1927,0)) ->  | K38: =InpC!$F$53*100 -> 0.15 | L38: =InpC!$F$62*100 -> 0
E39: 2016-02-18 | F39: =InpC!$F$28 -> 4 | G39: 2016 | H39: =INDEX('[3]iBoxx £ Non-Financials A 10+'!$M$17:$M$1927,MATCH(E39,'[3]iBoxx £ Non-Financials A 10+'!$A$17:$A$1927,0)) ->  | I39: =INDEX('[3]iBoxx £ Non-Financials BBB 10+'!$M$17:$M$1927,MATCH(E39,'[3]iBoxx £ Non-Financials BBB 10+'!$A$17:$A$1927,0)) ->  | K39: =InpC!$F$53*100 -> 0.15 | L39: =InpC!$F$62*100 -> 0
E40: 2016-02-19 | F40: =InpC!$F$28 -> 4 | G40: 2016 | H40: =INDEX('[3]iBoxx £ Non-Financials A 10+'!$M$17:$M$1927,MATCH(E40,'[3]iBoxx £ Non-Financials A 10+'!$A$17:$A$1927,0)) ->  | I40: =INDEX('[3]iBoxx £ Non-Financials BBB 10+'!$M$17:$M$1927,MATCH(E40,'[3]iBoxx £ Non-Financials BBB 10+'!$A$17:$A$1927,0)) ->  | K40: =InpC!$F$53*100 -> 0.15 | L40: =InpC!$F$62*100 -> 0
E41: 2016-02-22 | F41: =InpC!$F$28 -> 4 | G41: 2016 | H41: =INDEX('[3]iBoxx £ Non-Financials A 10+'!$M$17:$M$1927,MATCH(E41,'[3]iBoxx £ Non-Financials A 10+'!$A$17:$A$1927,0)) ->  | I41: =INDEX('[3]iBoxx £ Non-Financials BBB 10+'!$M$17:$M$1927,MATCH(E41,'[3]iBoxx £ Non-Financials BBB 10+'!$A$17:$A$1927,0)) ->  | K41: =InpC!$F$53*100 -> 0.15 | L41: =InpC!$F$62*100 -> 0
E42: 2016-02-23 | F42: =InpC!$F$28 -> 4 | G42: 2016 | H42: =INDEX('[3]iBoxx £ Non-Financials A 10+'!$M$17:$M$1927,MATCH(E42,'[3]iBoxx £ Non-Financials A 10+'!$A$17:$A$1927,0)) ->  | I42: =INDEX('[3]iBoxx £ Non-Financials BBB 10+'!$M$17:$M$1927,MATCH(E42,'[3]iBoxx £ Non-Financials BBB 10+'!$A$17:$A$1927,0)) ->  | K42: =InpC!$F$53*100 -> 0.15 | L42: =InpC!$F$62*100 -> 0
E43: 2016-02-24 | F43: =InpC!$F$28 -> 4 | G43: 2016 | H43: =INDEX('[3]iBoxx £ Non-Financials A 10+'!$M$17:$M$1927,MATCH(E43,'[3]iBoxx £ Non-Financials A 10+'!$A$17:$A$1927,0)) ->  | I43: =INDEX('[3]iBoxx £ Non-Financials BBB 10+'!$M$17:$M$1927,MATCH(E43,'[3]iBoxx £ Non-Financials BBB 10+'!$A$17:$A$1927,0)) ->  | K43: =InpC!$F$53*100 -> 0.15 | L43: =InpC!$F$62*100 -> 0
E44: 2016-02-25 | F44: =InpC!$F$28 -> 4 | G44: 2016 | H44: =INDEX('[3]iBoxx £ Non-Financials A 10+'!$M$17:$M$1927,MATCH(E44,'[3]iBoxx £ Non-Financials A 10+'!$A$17:$A$1927,0)) ->  | I44: =INDEX('[3]iBoxx £ Non-Financials BBB 10+'!$M$17:$M$1927,MATCH(E44,'[3]iBoxx £ Non-Financials BBB 10+'!$A$17:$A$1927,0)) ->  | K44: =InpC!$F$53*100 -> 0.15 | L44: =InpC!$F$62*100 -> 0
E45: 2016-02-26 | F45: =InpC!$F$28 -> 4 | G45: 2016 | H45: =INDEX('[3]iBoxx £ Non-Financials A 10+'!$M$17:$M$1927,MATCH(E45,'[3]iBoxx £ Non-Financials A 10+'!$A$17:$A$1927,0)) ->  | I45: =INDEX('[3]iBoxx £ Non-Financials BBB 10+'!$M$17:$M$1927,MATCH(E45,'[3]iBoxx £ Non-Financials BBB 10+'!$A$17:$A$1927,0)) ->  | K45: =InpC!$F$53*100 -> 0.15 | L45: =InpC!$F$62*100 -> 0
E46: 2016-02-29 | F46: =InpC!$F$28 -> 4 | G46: 2016 | H46: =INDEX('[3]iBoxx £ Non-Financials A 10+'!$M$17:$M$1927,MATCH(E46,'[3]iBoxx £ Non-Financials A 10+'!$A$17:$A$1927,0)) ->  | I46: =INDEX('[3]iBoxx £ Non-Financials BBB 10+'!$M$17:$M$1927,MATCH(E46,'[3]iBoxx £ Non-Financials BBB 10+'!$A$17:$A$1927,0)) ->  | K46: =InpC!$F$53*100 -> 0.15 | L46: =InpC!$F$62*100 -> 0
E47: 2016-03-01 | F47: =InpC!$F$28 -> 4 | G47: 2016 | H47: =INDEX('[3]iBoxx £ Non-Financials A 10+'!$M$17:$M$1927,MATCH(E47,'[3]iBoxx £ Non-Financials A 10+'!$A$17:$A$1927,0)) ->  | I47: =INDEX('[3]iBoxx £ Non-Financials BBB 10+'!$M$17:$M$1927,MATCH(E47,'[3]iBoxx £ Non-Financials BBB 10+'!$A$17:$A$1927,0)) ->  | K47: =InpC!$F$53*100 -> 0.15 | L47: =InpC!$F$62*100 -> 0
E48: 2016-03-02 | F48: =InpC!$F$28 -> 4 | G48: 2016 | H48: =INDEX('[3]iBoxx £ Non-Financials A 10+'!$M$17:$M$1927,MATCH(E48,'[3]iBoxx £ Non-Financials A 10+'!$A$17:$A$1927,0)) ->  | I48: =INDEX('[3]iBoxx £ Non-Financials BBB 10+'!$M$17:$M$1927,MATCH(E48,'[3]iBoxx £ Non-Financials BBB 10+'!$A$17:$A$1927,0)) ->  | K48: =InpC!$F$53*100 -> 0.15 | L48: =InpC!$F$62*100 -> 0
E49: 2016-03-03 | F49: =InpC!$F$28 -> 4 | G49: 2016 | H49: =INDEX('[3]iBoxx £ Non-Financials A 10+'!$M$17:$M$1927,MATCH(E49,'[3]iBoxx £ Non-Financials A 10+'!$A$17:$A$1927,0)) ->  | I49: =INDEX('[3]iBoxx £ Non-Financials BBB 10+'!$M$17:$M$1927,MATCH(E49,'[3]iBoxx £ Non-Financials BBB 10+'!$A$17:$A$1927,0)) ->  | K49: =InpC!$F$53*100 -> 0.15 | L49: =InpC!$F$62*100 -> 0
E50: 2016-03-04 | F50: =InpC!$F$28 -> 4 | G50: 2016 | H50: =INDEX('[3]iBoxx £ Non-Financials A 10+'!$M$17:$M$1927,MATCH(E50,'[3]iBoxx £ Non-Financials A 10+'!$A$17:$A$1927,0)) ->  | I50: =INDEX('[3]iBoxx £ Non-Financials BBB 10+'!$M$17:$M$1927,MATCH(E50,'[3]iBoxx £ Non-Financials BBB 10+'!$A$17:$A$1927,0)) ->  | K50: =InpC!$F$53*100 -> 0.15 | L50: =InpC!$F$62*100 -> 0
E51: 2016-03-07 | F51: =InpC!$F$28 -> 4 | G51: 2016 | H51: =INDEX('[3]iBoxx £ Non-Financials A 10+'!$M$17:$M$1927,MATCH(E51,'[3]iBoxx £ Non-Financials A 10+'!$A$17:$A$1927,0)) ->  | I51: =INDEX('[3]iBoxx £ Non-Financials BBB 10+'!$M$17:$M$1927,MATCH(E51,'[3]iBoxx £ Non-Financials BBB 10+'!$A$17:$A$1927,0)) ->  | K51: =InpC!$F$53*100 -> 0.15 | L51: =InpC!$F$62*100 -> 0
E52: 2016-03-08 | F52: =InpC!$F$28 -> 4 | G52: 2016 | H52: =INDEX('[3]iBoxx £ Non-Financials A 10+'!$M$17:$M$1927,MATCH(E52,'[3]iBoxx £ Non-Financials A 10+'!$A$17:$A$1927,0)) ->  | I52: =INDEX('[3]iBoxx £ Non-Financials BBB 10+'!$M$17:$M$1927,MATCH(E52,'[3]iBoxx £ Non-Financials BBB 10+'!$A$17:$A$1927,0)) ->  | K52: =InpC!$F$53*100 -> 0.15 | L52: =InpC!$F$62*100 -> 0
E53: 2016-03-09 | F53: =InpC!$F$28 -> 4 | G53: 2016 | H53: =INDEX('[3]iBoxx £ Non-Financials A 10+'!$M$17:$M$1927,MATCH(E53,'[3]iBoxx £ Non-Financials A 10+'!$A$17:$A$1927,0)) ->  | I53: =INDEX('[3]iBoxx £ Non-Financials BBB 10+'!$M$17:$M$1927,MATCH(E53,'[3]iBoxx £ Non-Financials BBB 10+'!$A$17:$A$1927,0)) ->  | K53: =InpC!$F$53*100 -> 0.15 | L53: =InpC!$F$62*100 -> 0
E54: 2016-03-10 | F54: =InpC!$F$28 -> 4 | G54: 2016 | H54: =INDEX('[3]iBoxx £ Non-Financials A 10+'!$M$17:$M$1927,MATCH(E54,'[3]iBoxx £ Non-Financials A 10+'!$A$17:$A$1927,0)) ->  | I54: =INDEX('[3]iBoxx £ Non-Financials BBB 10+'!$M$17:$M$1927,MATCH(E54,'[3]iBoxx £ Non-Financials BBB 10+'!$A$17:$A$1927,0)) ->  | K54: =InpC!$F$53*100 -> 0.15 | L54: =InpC!$F$62*100 -> 0
E55: 2016-03-11 | F55: =InpC!$F$28 -> 4 | G55: 2016 | H55: =INDEX('[3]iBoxx £ Non-Financials A 10+'!$M$17:$M$1927,MATCH(E55,'[3]iBoxx £ Non-Financials A 10+'!$A$17:$A$1927,0)) ->  | I55: =INDEX('[3]iBoxx £ Non-Financials BBB 10+'!$M$17:$M$1927,MATCH(E55,'[3]iBoxx £ Non-Financials BBB 10+'!$A$17:$A$1927,0)) ->  | K55: =InpC!$F$53*100 -> 0.15 | L55: =InpC!$F$62*100 -> 0
E56: 2016-03-14 | F56: =InpC!$F$28 -> 4 | G56: 2016 | H56: =INDEX('[3]iBoxx £ Non-Financials A 10+'!$M$17:$M$1927,MATCH(E56,'[3]iBoxx £ Non-Financials A 10+'!$A$17:$A$1927,0)) ->  | I56: =INDEX('[3]iBoxx £ Non-Financials BBB 10+'!$M$17:$M$1927,MATCH(E56,'[3]iBoxx £ Non-Financials BBB 10+'!$A$17:$A$1927,0)) ->  | K56: =InpC!$F$53*100 -> 0.15 | L56: =InpC!$F$62*100 -> 0
E57: 2016-03-15 | F57: =InpC!$F$28 -> 4 | G57: 2016 | H57: =INDEX('[3]iBoxx £ Non-Financials A 10+'!$M$17:$M$1927,MATCH(E57,'[3]iBoxx £ Non-Financials A 10+'!$A$17:$A$1927,0)) ->  | I57: =INDEX('[3]iBoxx £ Non-Financials BBB 10+'!$M$17:$M$1927,MATCH(E57,'[3]iBoxx £ Non-Financials BBB 10+'!$A$17:$A$1927,0)) ->  | K57: =InpC!$F$53*100 -> 0.15 | L57: =InpC!$F$62*100 -> 0
E58: 2016-03-16 | F58: =InpC!$F$28 -> 4 | G58: 2016 | H58: =INDEX('[3]iBoxx £ Non-Financials A 10+'!$M$17:$M$1927,MATCH(E58,'[3]iBoxx £ Non-Financials A 10+'!$A$17:$A$1927,0)) ->  | I58: =INDEX('[3]iBoxx £ Non-Financials BBB 10+'!$M$17:$M$1927,MATCH(E58,'[3]iBoxx £ Non-Financials BBB 10+'!$A$17:$A$1927,0)) ->  | K58: =InpC!$F$53*100 -> 0.15 | L58: =InpC!$F$62*100 -> 0
E59: 2016-03-17 | F59: =InpC!$F$28 -> 4 | G59: 2016 | H59: =INDEX('[3]iBoxx £ Non-Financials A 10+'!$M$17:$M$1927,MATCH(E59,'[3]iBoxx £ Non-Financials A 10+'!$A$17:$A$1927,0)) ->  | I59: =INDEX('[3]iBoxx £ Non-Financials BBB 10+'!$M$17:$M$1927,MATCH(E59,'[3]iBoxx £ Non-Financials BBB 10+'!$A$17:$A$1927,0)) ->  | K59: =InpC!$F$53*100 -> 0.15 | L59: =InpC!$F$62*100 -> 0
E60: 2016-03-18 | F60: =InpC!$F$28 -> 4 | G60: 2016 | H60: =INDEX('[3]iBoxx £ Non-Financials A 10+'!$M$17:$M$1927,MATCH(E60,'[3]iBoxx £ Non-Financials A 10+'!$A$17:$A$1927,0)) ->  | I60: =INDEX('[3]iBoxx £ Non-Financials BBB 10+'!$M$17:$M$1927,MATCH(E60,'[3]iBoxx £ Non-Financials BBB 10+'!$A$17:$A$1927,0)) ->  | K60: =InpC!$F$53*100 -> 0.15 | L60: =InpC!$F$62*100 -> 0
E61: 2016-03-21 | F61: =InpC!$F$28 -> 4 | G61: 2016 | H61: =INDEX('[3]iBoxx £ Non-Financials A 10+'!$M$17:$M$1927,MATCH(E61,'[3]iBoxx £ Non-Financials A 10+'!$A$17:$A$1927,0)) ->  | I61: =INDEX('[3]iBoxx £ Non-Financials BBB 10+'!$M$17:$M$1927,MATCH(E61,'[3]iBoxx £ Non-Financials BBB 10+'!$A$17:$A$1927,0)) ->  | K61: =InpC!$F$53*100 -> 0.15 | L61: =InpC!$F$62*100 -> 0
E62: 2016-03-22 | F62: =InpC!$F$28 -> 4 | G62: 2016 | H62: =INDEX('[3]iBoxx £ Non-Financials A 10+'!$M$17:$M$1927,MATCH(E62,'[3]iBoxx £ Non-Financials A 10+'!$A$17:$A$1927,0)) ->  | I62: =INDEX('[3]iBoxx £ Non-Financials BBB 10+'!$M$17:$M$1927,MATCH(E62,'[3]iBoxx £ Non-Financials BBB 10+'!$A$17:$A$1927,0)) ->  | K62: =InpC!$F$53*100 -> 0.15 | L62: =InpC!$F$62*100 -> 0
E63: 2016-03-23 | F63: =InpC!$F$28 -> 4 | G63: 2016 | H63: =INDEX('[3]iBoxx £ Non-Financials A 10+'!$M$17:$M$1927,MATCH(E63,'[3]iBoxx £ Non-Financials A 10+'!$A$17:$A$1927,0)) ->  | I63: =INDEX('[3]iBoxx £ Non-Financials BBB 10+'!$M$17:$M$1927,MATCH(E63,'[3]iBoxx £ Non-Financials BBB 10+'!$A$17:$A$1927,0)) ->  | K63: =InpC!$F$53*100 -> 0.15 | L63: =InpC!$F$62*100 -> 0
E64: 2016-03-24 | F64: =InpC!$F$28 -> 4 | G64: 2016 | H64: =INDEX('[3]iBoxx £ Non-Financials A 10+'!$M$17:$M$1927,MATCH(E64,'[3]iBoxx £ Non-Financials A 10+'!$A$17:$A$1927,0)) ->  | I64: =INDEX('[3]iBoxx £ Non-Financials BBB 10+'!$M$17:$M$1927,MATCH(E64,'[3]iBoxx £ Non-Financials BBB 10+'!$A$17:$A$1927,0)) ->  | K64: =InpC!$F$53*100 -> 0.15 | L64: =InpC!$F$62*100 -> 0
E65: 2016-03-25 | F65: =InpC!$F$28 -> 4 | G65: 2016 | H65: =INDEX('[3]iBoxx £ Non-Financials A 10+'!$M$17:$M$1927,MATCH(E65,'[3]iBoxx £ Non-Financials A 10+'!$A$17:$A$1927,0)) ->  | I65: =INDEX('[3]iBoxx £ Non-Financials BBB 10+'!$M$17:$M$1927,MATCH(E65,'[3]iBoxx £ Non-Financials BBB 10+'!$A$17:$A$1927,0)) ->  | K65: =InpC!$F$53*100 -> 0.15 | L65: =InpC!$F$62*100 -> 0
E66: 2016-03-28 | F66: =InpC!$F$28 -> 4 | G66: 2016 | H66: =INDEX('[3]iBoxx £ Non-Financials A 10+'!$M$17:$M$1927,MATCH(E66,'[3]iBoxx £ Non-Financials A 10+'!$A$17:$A$1927,0)) ->  | I66: =INDEX('[3]iBoxx £ Non-Financials BBB 10+'!$M$17:$M$1927,MATCH(E66,'[3]iBoxx £ Non-Financials BBB 10+'!$A$17:$A$1927,0)) ->  | K66: =InpC!$F$53*100 -> 0.15 | L66: =InpC!$F$62*100 -> 0
E67: 2016-03-29 | F67: =InpC!$F$28 -> 4 | G67: 2016 | H67: =INDEX('[3]iBoxx £ Non-Financials A 10+'!$M$17:$M$1927,MATCH(E67,'[3]iBoxx £ Non-Financials A 10+'!$A$17:$A$1927,0)) ->  | I67: =INDEX('[3]iBoxx £ Non-Financials BBB 10+'!$M$17:$M$1927,MATCH(E67,'[3]iBoxx £ Non-Financials BBB 10+'!$A$17:$A$1927,0)) ->  | K67: =InpC!$F$53*100 -> 0.15 | L67: =InpC!$F$62*100 -> 0
E68: 2016-03-30 | F68: =InpC!$F$28 -> 4 | G68: 2016 | H68: =INDEX('[3]iBoxx £ Non-Financials A 10+'!$M$17:$M$1927,MATCH(E68,'[3]iBoxx £ Non-Financials A 10+'!$A$17:$A$1927,0)) ->  | I68: =INDEX('[3]iBoxx £ Non-Financials BBB 10+'!$M$17:$M$1927,MATCH(E68,'[3]iBoxx £ Non-Financials BBB 10+'!$A$17:$A$1927,0)) ->  | K68: =InpC!$F$53*100 -> 0.15 | L68: =InpC!$F$62*100 -> 0
E69: 2016-03-31 | F69: =InpC!$F$28 -> 4 | G69: 2016 | H69: =INDEX('[3]iBoxx £ Non-Financials A 10+'!$M$17:$M$1927,MATCH(E69,'[3]iBoxx £ Non-Financials A 10+'!$A$17:$A$1927,0)) ->  | I69: =INDEX('[3]iBoxx £ Non-Financials BBB 10+'!$M$17:$M$1927,MATCH(E69,'[3]iBoxx £ Non-Financials BBB 10+'!$A$17:$A$1927,0)) ->  | K69: =InpC!$F$53*100 -> 0.15 | L69: =InpC!$F$62*100 -> 0
E70: 2016-04-01 | F70: =InpC!$F$28 -> 4 | G70: 2017 | H70: =INDEX('[3]iBoxx £ Non-Financials A 10+'!$M$17:$M$1927,MATCH(E70,'[3]iBoxx £ Non-Financials A 10+'!$A$17:$A$1927,0)) -> 3.683950468 | I70: =INDEX('[3]iBoxx £ Non-Financials BBB 10+'!$M$17:$M$1927,MATCH(E70,'[3]iBoxx £ Non-Financials BBB 10+'!$A$17:$A$1927,0)) -> 4.055294098 | J70: 3.869622283 | K70: =InpC!$F$53*100 -> 0.15 | L70: =InpC!$F$62*100 -> 0 | M70: 3.719622283 | N70: 3.719622283
E71: 2016-04-04 | F71: =InpC!$F$28 -> 4 | G71: =YEAR(E71) + IF(MONTH(E71) >= F71, 1, 0) -> 2017 | H71: =INDEX('[3]iBoxx £ Non-Financials A 10+'!$M$17:$M$1927,MATCH(E71,'[3]iBoxx £ Non-Financials A 10+'!$A$17:$A$1927,0)) -> 3.667462884 | I71: =INDEX('[3]iBoxx £ Non-Financials BBB 10+'!$M$17:$M$1927,MATCH(E71,'[3]iBoxx £ Non-Financials BBB 10+'!$A$17:$A$1927,0)) -> 4.034428521 | J71: =IFERROR(AVERAGE(H71:I71),"") -> 3.850945702 | K71: =InpC!$F$53*100 -> 0.15 | L71: =InpC!$F$62*100 -> 0 | M71: =IFERROR(J71 - K71,"") -> 3.700945702 | N71: =IFERROR(J71-K71+L71,"") -> 3.700945702
E72: =WORKDAY(E71,1,) -> 2016-04-05 | F72: =InpC!$F$28 -> 4 | G72: 2017 | H72: =INDEX('[3]iBoxx £ Non-Financials A 10+'!$M$17:$M$1927,MATCH(E72,'[3]iBoxx £ Non-Financials A 10+'!$A$17:$A$1927,0)) -> 3.621385101 | I72: =INDEX('[3]iBoxx £ Non-Financials BBB 10+'!$M$17:$M$1927,MATCH(E72,'[3]iBoxx £ Non-Financials BBB 10+'!$A$17:$A$1927,0)) -> 3.987152363 | J72: 3.804268732 | K72: =InpC!$F$53*100 -> 0.15 | L72: =InpC!$F$62*100 -> 0 | M72: 3.654268732 | N72: 3.654268732
E73: 2016-04-06 | F73: =InpC!$F$28 -> 4 | G73: 2017 | H73: =INDEX('[3]iBoxx £ Non-Financials A 10+'!$M$17:$M$1927,MATCH(E73,'[3]iBoxx £ Non-Financials A 10+'!$A$17:$A$1927,0)) -> 3.620143998 | I73: =INDEX('[3]iBoxx £ Non-Financials BBB 10+'!$M$17:$M$1927,MATCH(E73,'[3]iBoxx £ Non-Financials BBB 10+'!$A$17:$A$1927,0)) -> 3.98602656 | J73: 3.803085279 | K73: =InpC!$F$53*100 -> 0.15 | L73: =InpC!$F$62*100 -> 0 | M73: 3.653085279 | N73: 3.653085279
E74: 2016-04-07 | F74: =InpC!$F$28 -> 4 | G74: 2017 | H74: =INDEX('[3]iBoxx £ Non-Financials A 10+'!$M$17:$M$1927,MATCH(E74,'[3]iBoxx £ Non-Financials A 10+'!$A$17:$A$1927,0)) -> 3.564411546 | I74: =INDEX('[3]iBoxx £ Non-Financials BBB 10+'!$M$17:$M$1927,MATCH(E74,'[3]iBoxx £ Non-Financials BBB 10+'!$A$17:$A$1927,0)) -> 3.916984519 | J74: 3.740698033 | K74: =InpC!$F$53*100 -> 0.15 | L74: =InpC!$F$62*100 -> 0 | M74: 3.590698033 | N74: 3.590698033
E75: 2016-04-08 | F75: =InpC!$F$28 -> 4 | G75: 2017 | H75: =INDEX('[3]iBoxx £ Non-Financials A 10+'!$M$17:$M$1927,MATCH(E75,'[3]iBoxx £ Non-Financials A 10+'!$A$17:$A$1927,0)) -> 3.601028969 | I75: =INDEX('[3]iBoxx £ Non-Financials BBB 10+'!$M$17:$M$1927,MATCH(E75,'[3]iBoxx £ Non-Financials BBB 10+'!$A$17:$A$1927,0)) -> 3.953773913 | J75: 3.777401441 | K75: =InpC!$F$53*100 -> 0.15 | L75: =InpC!$F$62*100 -> 0 | M75: 3.627401441 | N75: 3.627401441
E76: 2016-04-11 | F76: =InpC!$F$28 -> 4 | G76: 2017 | H76: =INDEX('[3]iBoxx £ Non-Financials A 10+'!$M$17:$M$1927,MATCH(E76,'[3]iBoxx £ Non-Financials A 10+'!$A$17:$A$1927,0)) -> 3.633952779 | I76: =INDEX('[3]iBoxx £ Non-Financials BBB 10+'!$M$17:$M$1927,MATCH(E76,'[3]iBoxx £ Non-Financials BBB 10+'!$A$17:$A$1927,0)) -> 3.987374779 | J76: 3.810663779 | K76: =InpC!$F$53*100 -> 0.15 | L76: =InpC!$F$62*100 -> 0 | M76: 3.660663779 | N76: 3.660663779
E77: 2016-04-12 | F77: =InpC!$F$28 -> 4 | G77: 2017 | H77: =INDEX('[3]iBoxx £ Non-Financials A 10+'!$M$17:$M$1927,MATCH(E77,'[3]iBoxx £ Non-Financials A 10+'!$A$17:$A$1927,0)) -> 3.675589987 | I77: =INDEX('[3]iBoxx £ Non-Financials BBB 10+'!$M$17:$M$1927,MATCH(E77,'[3]iBoxx £ Non-Financials BBB 10+'!$A$17:$A$1927,0)) -> 4.029701162 | J77: 3.852645575 | K77: =InpC!$F$53*100 -> 0.15 | L77: =InpC!$F$62*100 -> 0 | M77: 3.702645575 | N77: 3.702645575
E78: 2016-04-13 | F78: =InpC!$F$28 -> 4 | G78: 2017 | H78: =INDEX('[3]iBoxx £ Non-Financials A 10+'!$M$17:$M$1927,MATCH(E78,'[3]iBoxx £ Non-Financials A 10+'!$A$17:$A$1927,0)) -> 3.642780938 | I78: =INDEX('[3]iBoxx £ Non-Financials BBB 10+'!$M$17:$M$1927,MATCH(E78,'[3]iBoxx £ Non-Financials BBB 10+'!$A$17:$A$1927,0)) -> 3.996264527 | J78: 3.819522733 | K78: =InpC!$F$53*100 -> 0.15 | L78: =InpC!$F$62*100 -> 0 | M78: 3.669522733 | N78: 3.669522733
E79: 2016-04-14 | F79: =InpC!$F$28 -> 4 | G79: 2017 | H79: =INDEX('[3]iBoxx £ Non-Financials A 10+'!$M$17:$M$1927,MATCH(E79,'[3]iBoxx £ Non-Financials A 10+'!$A$17:$A$1927,0)) -> 3.646530327 | I79: =INDEX('[3]iBoxx £ Non-Financials BBB 10+'!$M$17:$M$1927,MATCH(E79,'[3]iBoxx £ Non-Financials BBB 10+'!$A$17:$A$1927,0)) -> 3.996481024 | J79: 3.821505676 | K79: =InpC!$F$53*100 -> 0.15 | L79: =InpC!$F$62*100 -> 0 | M79: 3.671505676 | N79: 3.671505676
E80: 2016-04-15 | F80: =InpC!$F$28 -> 4 | G80: 2017 | H80: =INDEX('[3]iBoxx £ Non-Financials A 10+'!$M$17:$M$1927,MATCH(E80,'[3]iBoxx £ Non-Financials A 10+'!$A$17:$A$1927,0)) -> 3.621642195 | I80: =INDEX('[3]iBoxx £ Non-Financials BBB 10+'!$M$17:$M$1927,MATCH(E80,'[3]iBoxx £ Non-Financials BBB 10+'!$A$17:$A$1927,0)) -> 3.96775034 | J80: 3.794696267 | K80: =InpC!$F$53*100 -> 0.15 | L80: =InpC!$F$62*100 -> 0 | M80: 3.644696268 | N80: 3.644696268
E81: 2016-04-18 | F81: =InpC!$F$28 -> 4 | G81: 2017 | H81: =INDEX('[3]iBoxx £ Non-Financials A 10+'!$M$17:$M$1927,MATCH(E81,'[3]iBoxx £ Non-Financials A 10+'!$A$17:$A$1927,0)) -> 3.67822511 | I81: =INDEX('[3]iBoxx £ Non-Financials BBB 10+'!$M$17:$M$1927,MATCH(E81,'[3]iBoxx £ Non-Financials BBB 10+'!$A$17:$A$1927,0)) -> 4.023895408 | J81: 3.851060259 | K81: =InpC!$F$53*100 -> 0.15 | L81: =InpC!$F$62*100 -> 0 | M81: 3.701060259 | N81: 3.701060259
E82: 2016-04-19 | F82: =InpC!$F$28 -> 4 | G82: 2017 | H82: =INDEX('[3]iBoxx £ Non-Financials A 10+'!$M$17:$M$1927,MATCH(E82,'[3]iBoxx £ Non-Financials A 10+'!$A$17:$A$1927,0)) -> 3.701183086 | I82: =INDEX('[3]iBoxx £ Non-Financials BBB 10+'!$M$17:$M$1927,MATCH(E82,'[3]iBoxx £ Non-Financials BBB 10+'!$A$17:$A$1927,0)) -> 4.040156099 | J82: 3.870669592 | K82: =InpC!$F$53*100 -> 0.15 | L82: =InpC!$F$62*100 -> 0 | M82: 3.720669592 | N82: 3.720669592
E83: 2016-04-20 | F83: =InpC!$F$28 -> 4 | G83: 2017 | H83: =INDEX('[3]iBoxx £ Non-Financials A 10+'!$M$17:$M$1927,MATCH(E83,'[3]iBoxx £ Non-Financials A 10+'!$A$17:$A$1927,0)) -> 3.640066371 | I83: =INDEX('[3]iBoxx £ Non-Financials BBB 10+'!$M$17:$M$1927,MATCH(E83,'[3]iBoxx £ Non-Financials BBB 10+'!$A$17:$A$1927,0)) -> 3.975735318 | J83: 3.807900844 | K83: =InpC!$F$53*100 -> 0.15 | L83: =InpC!$F$62*100 -> 0 | M83: 3.657900844 | N83: 3.657900844
E84: 2016-04-21 | F84: =InpC!$F$28 -> 4 | G84: 2017 | H84: =INDEX('[3]iBoxx £ Non-Financials A 10+'!$M$17:$M$1927,MATCH(E84,'[3]iBoxx £ Non-Financials A 10+'!$A$17:$A$1927,0)) -> 3.704757346 | I84: =INDEX('[3]iBoxx £ Non-Financials BBB 10+'!$M$17:$M$1927,MATCH(E84,'[3]iBoxx £ Non-Financials BBB 10+'!$A$17:$A$1927,0)) -> 4.030059153 | J84: 3.867408249 | K84: =InpC!$F$53*100 -> 0.15 | L84: =InpC!$F$62*100 -> 0 | M84: 3.71740825 | N84: 3.71740825
E85: 2016-04-22 | F85: =InpC!$F$28 -> 4 | G85: 2017 | H85: =INDEX('[3]iBoxx £ Non-Financials A 10+'!$M$17:$M$1927,MATCH(E85,'[3]iBoxx £ Non-Financials A 10+'!$A$17:$A$1927,0)) -> 3.705108085 | I85: =INDEX('[3]iBoxx £ Non-Financials BBB 10+'!$M$17:$M$1927,MATCH(E85,'[3]iBoxx £ Non-Financials BBB 10+'!$A$17:$A$1927,0)) -> 4.025071085 | J85: 3.865089585 | K85: =InpC!$F$53*100 -> 0.15 | L85: =InpC!$F$62*100 -> 0 | M85: 3.715089585 | N85: 3.715089585
E86: 2016-04-25 | F86: =InpC!$F$28 -> 4 | G86: 2017 | H86: =INDEX('[3]iBoxx £ Non-Financials A 10+'!$M$17:$M$1927,MATCH(E86,'[3]iBoxx £ Non-Financials A 10+'!$A$17:$A$1927,0)) -> 3.68832972 | I86: =INDEX('[3]iBoxx £ Non-Financials BBB 10+'!$M$17:$M$1927,MATCH(E86,'[3]iBoxx £ Non-Financials BBB 10+'!$A$17:$A$1927,0)) -> 4.005336725 | J86: 3.846833222 | K86: =InpC!$F$53*100 -> 0.15 | L86: =InpC!$F$62*100 -> 0 | M86: 3.696833223 | N86: 3.696833223
E87: 2016-04-26 | F87: =InpC!$F$28 -> 4 | G87: 2017 | H87: =INDEX('[3]iBoxx £ Non-Financials A 10+'!$M$17:$M$1927,MATCH(E87,'[3]iBoxx £ Non-Financials A 10+'!$A$17:$A$1927,0)) -> 3.733532947 | I87: =INDEX('[3]iBoxx £ Non-Financials BBB 10+'!$M$17:$M$1927,MATCH(E87,'[3]iBoxx £ Non-Financials BBB 10+'!$A$17:$A$1927,0)) -> 4.055406865 | J87: 3.894469906 | K87: =InpC!$F$53*100 -> 0.15 | L87: =InpC!$F$62*100 -> 0 | M87: 3.744469906 | N87: 3.744469906
E88: 2016-04-27 | F88: =InpC!$F$28 -> 4 | G88: 2017 | H88: =INDEX('[3]iBoxx £ Non-Financials A 10+'!$M$17:$M$1927,MATCH(E88,'[3]iBoxx £ Non-Financials A 10+'!$A$17:$A$1927,0)) -> 3.687649113 | I88: =INDEX('[3]iBoxx £ Non-Financials BBB 10+'!$M$17:$M$1927,MATCH(E88,'[3]iBoxx £ Non-Financials BBB 10+'!$A$17:$A$1927,0)) -> 4.003478059 | J88: 3.845563586 | K88: =InpC!$F$53*100 -> 0.15 | L88: =InpC!$F$62*100 -> 0 | M88: 3.695563586 | N88: 3.695563586
E89: 2016-04-28 | F89: =InpC!$F$28 -> 4 | G89: 2017 | H89: =INDEX('[3]iBoxx £ Non-Financials A 10+'!$M$17:$M$1927,MATCH(E89,'[3]iBoxx £ Non-Financials A 10+'!$A$17:$A$1927,0)) -> 3.657338718 | I89: =INDEX('[3]iBoxx £ Non-Financials BBB 10+'!$M$17:$M$1927,MATCH(E89,'[3]iBoxx £ Non-Financials BBB 10+'!$A$17:$A$1927,0)) -> 3.972037544 | J89: 3.814688131 | K89: =InpC!$F$53*100 -> 0.15 | L89: =InpC!$F$62*100 -> 0 | M89: 3.664688131 | N89: 3.664688131
E90: 2016-04-29 | F90: =InpC!$F$28 -> 4 | G90: 2017 | H90: =INDEX('[3]iBoxx £ Non-Financials A 10+'!$M$17:$M$1927,MATCH(E90,'[3]iBoxx £ Non-Financials A 10+'!$A$17:$A$1927,0)) -> 3.643727069 | I90: =INDEX('[3]iBoxx £ Non-Financials BBB 10+'!$M$17:$M$1927,MATCH(E90,'[3]iBoxx £ Non-Financials BBB 10+'!$A$17:$A$1927,0)) -> 3.958858924 | J90: 3.801292996 | K90: =InpC!$F$53*100 -> 0.15 | L90: =InpC!$F$62*100 -> 0 | M90: 3.651292997 | N90: 3.651292997
E91: 2016-05-02 | F91: =InpC!$F$28 -> 4 | G91: 2017 | H91: =INDEX('[3]iBoxx £ Non-Financials A 10+'!$M$17:$M$1927,MATCH(E91,'[3]iBoxx £ Non-Financials A 10+'!$A$17:$A$1927,0)) ->  | I91: =INDEX('[3]iBoxx £ Non-Financials BBB 10+'!$M$17:$M$1927,MATCH(E91,'[3]iBoxx £ Non-Financials BBB 10+'!$A$17:$A$1927,0)) ->  | K91: =InpC!$F$53*100 -> 0.15 | L91: =InpC!$F$62*100 -> 0
E92: 2016-05-03 | F92: =InpC!$F$28 -> 4 | G92: 2017 | H92: =INDEX('[3]iBoxx £ Non-Financials A 10+'!$M$17:$M$1927,MATCH(E92,'[3]iBoxx £ Non-Financials A 10+'!$A$17:$A$1927,0)) -> 3.565652294 | I92: =INDEX('[3]iBoxx £ Non-Financials BBB 10+'!$M$17:$M$1927,MATCH(E92,'[3]iBoxx £ Non-Financials BBB 10+'!$A$17:$A$1927,0)) -> 3.882539483 | J92: 3.724095888 | K92: =InpC!$F$53*100 -> 0.15 | L92: =InpC!$F$62*100 -> 0 | M92: 3.574095889 | N92: 3.574095889
E93: 2016-05-04 | F93: =InpC!$F$28 -> 4 | G93: 2017 | H93: =INDEX('[3]iBoxx £ Non-Financials A 10+'!$M$17:$M$1927,MATCH(E93,'[3]iBoxx £ Non-Financials A 10+'!$A$17:$A$1927,0)) -> 3.576029659 | I93: =INDEX('[3]iBoxx £ Non-Financials BBB 10+'!$M$17:$M$1927,MATCH(E93,'[3]iBoxx £ Non-Financials BBB 10+'!$A$17:$A$1927,0)) -> 3.893423618 | J93: 3.734726638 | K93: =InpC!$F$53*100 -> 0.15 | L93: =InpC!$F$62*100 -> 0 | M93: 3.584726638 | N93: 3.584726638
E94: 2016-05-05 | F94: =InpC!$F$28 -> 4 | G94: 2017 | H94: =INDEX('[3]iBoxx £ Non-Financials A 10+'!$M$17:$M$1927,MATCH(E94,'[3]iBoxx £ Non-Financials A 10+'!$A$17:$A$1927,0)) -> 3.545868815 | I94: =INDEX('[3]iBoxx £ Non-Financials BBB 10+'!$M$17:$M$1927,MATCH(E94,'[3]iBoxx £ Non-Financials BBB 10+'!$A$17:$A$1927,0)) -> 3.859364174 | J94: 3.702616494 | K94: =InpC!$F$53*100 -> 0.15 | L94: =InpC!$F$62*100 -> 0 | M94: 3.552616495 | N94: 3.552616495
E95: 2016-05-06 | F95: =InpC!$F$28 -> 4 | G95: 2017 | H95: =INDEX('[3]iBoxx £ Non-Financials A 10+'!$M$17:$M$1927,MATCH(E95,'[3]iBoxx £ Non-Financials A 10+'!$A$17:$A$1927,0)) -> 3.503631896 | I95: =INDEX('[3]iBoxx £ Non-Financials BBB 10+'!$M$17:$M$1927,MATCH(E95,'[3]iBoxx £ Non-Financials BBB 10+'!$A$17:$A$1927,0)) -> 3.825082618 | J95: 3.664357257 | K95: =InpC!$F$53*100 -> 0.15 | L95: =InpC!$F$62*100 -> 0 | M95: 3.514357257 | N95: 3.514357257
E96: 2016-05-09 | F96: =InpC!$F$28 -> 4 | G96: 2017 | H96: =INDEX('[3]iBoxx £ Non-Financials A 10+'!$M$17:$M$1927,MATCH(E96,'[3]iBoxx £ Non-Financials A 10+'!$A$17:$A$1927,0)) -> 3.518565945 | I96: =INDEX('[3]iBoxx £ Non-Financials BBB 10+'!$M$17:$M$1927,MATCH(E96,'[3]iBoxx £ Non-Financials BBB 10+'!$A$17:$A$1927,0)) -> 3.843132287 | J96: 3.680849116 | K96: =InpC!$F$53*100 -> 0.15 | L96: =InpC!$F$62*100 -> 0 | M96: 3.530849116 | N96: 3.530849116
E97: 2016-05-10 | F97: =InpC!$F$28 -> 4 | G97: 2017 | H97: =INDEX('[3]iBoxx £ Non-Financials A 10+'!$M$17:$M$1927,MATCH(E97,'[3]iBoxx £ Non-Financials A 10+'!$A$17:$A$1927,0)) -> 3.527173924 | I97: =INDEX('[3]iBoxx £ Non-Financials BBB 10+'!$M$17:$M$1927,MATCH(E97,'[3]iBoxx £ Non-Financials BBB 10+'!$A$17:$A$1927,0)) -> 3.855501769 | J97: 3.691337846 | K97: =InpC!$F$53*100 -> 0.15 | L97: =InpC!$F$62*100 -> 0 | M97: 3.541337846 | N97: 3.541337846
E98: 2016-05-11 | F98: =InpC!$F$28 -> 4 | G98: 2017 | H98: =INDEX('[3]iBoxx £ Non-Financials A 10+'!$M$17:$M$1927,MATCH(E98,'[3]iBoxx £ Non-Financials A 10+'!$A$17:$A$1927,0)) -> 3.52901448 | I98: =INDEX('[3]iBoxx £ Non-Financials BBB 10+'!$M$17:$M$1927,MATCH(E98,'[3]iBoxx £ Non-Financials BBB 10+'!$A$17:$A$1927,0)) -> 3.860191537 | J98: 3.694603008 | K98: =InpC!$F$53*100 -> 0.15 | L98: =InpC!$F$62*100 -> 0 | M98: 3.544603008 | N98: 3.544603008
E99: 2016-05-12 | F99: =InpC!$F$28 -> 4 | G99: 2017 | H99: =INDEX('[3]iBoxx £ Non-Financials A 10+'!$M$17:$M$1927,MATCH(E99,'[3]iBoxx £ Non-Financials A 10+'!$A$17:$A$1927,0)) -> 3.559263663 | I99: =INDEX('[3]iBoxx £ Non-Financials BBB 10+'!$M$17:$M$1927,MATCH(E99,'[3]iBoxx £ Non-Financials BBB 10+'!$A$17:$A$1927,0)) -> 3.887342548 | J99: 3.723303105 | K99: =InpC!$F$53*100 -> 0.15 | L99: =InpC!$F$62*100 -> 0 | M99: 3.573303105 | N99: 3.573303105
E100: 2016-05-13 | F100: =InpC!$F$28 -> 4 | G100: 2017 | H100: =INDEX('[3]iBoxx £ Non-Financials A 10+'!$M$17:$M$1927,MATCH(E100,'[3]iBoxx £ Non-Financials A 10+'!$A$17:$A$1927,0)) -> 3.542344954 | I100: =INDEX('[3]iBoxx £ Non-Financials BBB 10+'!$M$17:$M$1927,MATCH(E100,'[3]iBoxx £ Non-Financials BBB 10+'!$A$17:$A$1927,0)) -> 3.865729026 | J100: 3.70403699 | K100: =InpC!$F$53*100 -> 0.15 | L100: =InpC!$F$62*100 -> 0 | M100: 3.55403699 | N100: 3.55403699
E101: 2016-05-16 | F101: =InpC!$F$28 -> 4 | G101: 2017 | H101: =INDEX('[3]iBoxx £ Non-Financials A 10+'!$M$17:$M$1927,MATCH(E101,'[3]iBoxx £ Non-Financials A 10+'!$A$17:$A$1927,0)) -> 3.558155765 | I101: =INDEX('[3]iBoxx £ Non-Financials BBB 10+'!$M$17:$M$1927,MATCH(E101,'[3]iBoxx £ Non-Financials BBB 10+'!$A$17:$A$1927,0)) -> 3.882392407 | J101: 3.720274086 | K101: =InpC!$F$53*100 -> 0.15 | L101: =InpC!$F$62*100 -> 0 | M101: 3.570274086 | N101: 3.570274086
E102: 2016-05-17 | F102: =InpC!$F$28 -> 4 | G102: 2017 | H102: =INDEX('[3]iBoxx £ Non-Financials A 10+'!$M$17:$M$1927,MATCH(E102,'[3]iBoxx £ Non-Financials A 10+'!$A$17:$A$1927,0)) -> 3.537707383 | I102: =INDEX('[3]iBoxx £ Non-Financials BBB 10+'!$M$17:$M$1927,MATCH(E102,'[3]iBoxx £ Non-Financials BBB 10+'!$A$17:$A$1927,0)) -> 3.860606935 | J102: 3.699157159 | K102: =InpC!$F$53*100 -> 0.15 | L102: =InpC!$F$62*100 -> 0 | M102: 3.549157159 | N102: 3.549157159
E103: 2016-05-18 | F103: =InpC!$F$28 -> 4 | G103: 2017 | H103: =INDEX('[3]iBoxx £ Non-Financials A 10+'!$M$17:$M$1927,MATCH(E103,'[3]iBoxx £ Non-Financials A 10+'!$A$17:$A$1927,0)) -> 3.611746119 | I103: =INDEX('[3]iBoxx £ Non-Financials BBB 10+'!$M$17:$M$1927,MATCH(E103,'[3]iBoxx £ Non-Financials BBB 10+'!$A$17:$A$1927,0)) -> 3.936345335 | J103: 3.774045727 | K103: =InpC!$F$53*100 -> 0.15 | L103: =InpC!$F$62*100 -> 0 | M103: 3.624045727 | N103: 3.624045727
E104: 2016-05-19 | F104: =InpC!$F$28 -> 4 | G104: 2017 | H104: =INDEX('[3]iBoxx £ Non-Financials A 10+'!$M$17:$M$1927,MATCH(E104,'[3]iBoxx £ Non-Financials A 10+'!$A$17:$A$1927,0)) -> 3.605632461 | I104: =INDEX('[3]iBoxx £ Non-Financials BBB 10+'!$M$17:$M$1927,MATCH(E104,'[3]iBoxx £ Non-Financials BBB 10+'!$A$17:$A$1927,0)) -> 3.930510485 | J104: 3.768071473 | K104: =InpC!$F$53*100 -> 0.15 | L104: =InpC!$F$62*100 -> 0 | M104: 3.618071473 | N104: 3.618071473
E105: 2016-05-20 | F105: =InpC!$F$28 -> 4 | G105: 2017 | H105: =INDEX('[3]iBoxx £ Non-Financials A 10+'!$M$17:$M$1927,MATCH(E105,'[3]iBoxx £ Non-Financials A 10+'!$A$17:$A$1927,0)) -> 3.631590563 | I105: =INDEX('[3]iBoxx £ Non-Financials BBB 10+'!$M$17:$M$1927,MATCH(E105,'[3]iBoxx £ Non-Financials BBB 10+'!$A$17:$A$1927,0)) -> 3.956925811 | J105: 3.794258187 | K105: =InpC!$F$53*100 -> 0.15 | L105: =InpC!$F$62*100 -> 0 | M105: 3.644258187 | N105: 3.644258187
E106: 2016-05-23 | F106: =InpC!$F$28 -> 4 | G106: 2017 | H106: =INDEX('[3]iBoxx £ Non-Financials A 10+'!$M$17:$M$1927,MATCH(E106,'[3]iBoxx £ Non-Financials A 10+'!$A$17:$A$1927,0)) -> 3.625768351 | I106: =INDEX('[3]iBoxx £ Non-Financials BBB 10+'!$M$17:$M$1927,MATCH(E106,'[3]iBoxx £ Non-Financials BBB 10+'!$A$17:$A$1927,0)) -> 3.953114556 | J106: 3.789441454 | K106: =InpC!$F$53*100 -> 0.15 | L106: =InpC!$F$62*100 -> 0 | M106: 3.639441454 | N106: 3.639441454
E107: 2016-05-24 | F107: =InpC!$F$28 -> 4 | G107: 2017 | H107: =INDEX('[3]iBoxx £ Non-Financials A 10+'!$M$17:$M$1927,MATCH(E107,'[3]iBoxx £ Non-Financials A 10+'!$A$17:$A$1927,0)) -> 3.630203178 | I107: =INDEX('[3]iBoxx £ Non-Financials BBB 10+'!$M$17:$M$1927,MATCH(E107,'[3]iBoxx £ Non-Financials BBB 10+'!$A$17:$A$1927,0)) -> 3.9575003 | J107: 3.793851739 | K107: =InpC!$F$53*100 -> 0.15 | L107: =InpC!$F$62*100 -> 0 | M107: 3.643851739 | N107: 3.643851739
E108: 2016-05-25 | F108: =InpC!$F$28 -> 4 | G108: 2017 | H108: =INDEX('[3]iBoxx £ Non-Financials A 10+'!$M$17:$M$1927,MATCH(E108,'[3]iBoxx £ Non-Financials A 10+'!$A$17:$A$1927,0)) -> 3.594493165 | I108: =INDEX('[3]iBoxx £ Non-Financials BBB 10+'!$M$17:$M$1927,MATCH(E108,'[3]iBoxx £ Non-Financials BBB 10+'!$A$17:$A$1927,0)) -> 3.921035258 | J108: 3.757764211 | K108: =InpC!$F$53*100 -> 0.15 | L108: =InpC!$F$62*100 -> 0 | M108: 3.607764211 | N108: 3.607764211
E109: 2016-05-26 | F109: =InpC!$F$28 -> 4 | G109: 2017 | H109: =INDEX('[3]iBoxx £ Non-Financials A 10+'!$M$17:$M$1927,MATCH(E109,'[3]iBoxx £ Non-Financials A 10+'!$A$17:$A$1927,0)) -> 3.551809273 | I109: =INDEX('[3]iBoxx £ Non-Financials BBB 10+'!$M$17:$M$1927,MATCH(E109,'[3]iBoxx £ Non-Financials BBB 10+'!$A$17:$A$1927,0)) -> 3.879803706 | J109: 3.71580649 | K109: =InpC!$F$53*100 -> 0.15 | L109: =InpC!$F$62*100 -> 0 | M109: 3.56580649 | N109: 3.56580649
E110: 2016-05-27 | F110: =InpC!$F$28 -> 4 | G110: 2017 | H110: =INDEX('[3]iBoxx £ Non-Financials A 10+'!$M$17:$M$1927,MATCH(E110,'[3]iBoxx £ Non-Financials A 10+'!$A$17:$A$1927,0)) -> 3.566835406 | I110: =INDEX('[3]iBoxx £ Non-Financials BBB 10+'!$M$17:$M$1927,MATCH(E110,'[3]iBoxx £ Non-Financials BBB 10+'!$A$17:$A$1927,0)) -> 3.892733354 | J110: 3.72978438 | K110: =InpC!$F$53*100 -> 0.15 | L110: =InpC!$F$62*100 -> 0 | M110: 3.57978438 | N110: 3.57978438
E111: 2016-05-30 | F111: =InpC!$F$28 -> 4 | G111: 2017 | H111: =INDEX('[3]iBoxx £ Non-Financials A 10+'!$M$17:$M$1927,MATCH(E111,'[3]iBoxx £ Non-Financials A 10+'!$A$17:$A$1927,0)) ->  | I111: =INDEX('[3]iBoxx £ Non-Financials BBB 10+'!$M$17:$M$1927,MATCH(E111,'[3]iBoxx £ Non-Financials BBB 10+'!$A$17:$A$1927,0)) ->  | K111: =InpC!$F$53*100 -> 0.15 | L111: =InpC!$F$62*100 -> 0
E112: 2016-05-31 | F112: =InpC!$F$28 -> 4 | G112: 2017 | H112: =INDEX('[3]iBoxx £ Non-Financials A 10+'!$M$17:$M$1927,MATCH(E112,'[3]iBoxx £ Non-Financials A 10+'!$A$17:$A$1927,0)) -> 3.543440092 | I112: =INDEX('[3]iBoxx £ Non-Financials BBB 10+'!$M$17:$M$1927,MATCH(E112,'[3]iBoxx £ Non-Financials BBB 10+'!$A$17:$A$1927,0)) -> 3.874675681 | J112: 3.709057887 | K112: =InpC!$F$53*100 -> 0.15 | L112: =InpC!$F$62*100 -> 0 | M112: 3.559057887 | N112: 3.559057887
E113: 2016-06-01 | F113: =InpC!$F$28 -> 4 | G113: 2017 | H113: =INDEX('[3]iBoxx £ Non-Financials A 10+'!$M$17:$M$1927,MATCH(E113,'[3]iBoxx £ Non-Financials A 10+'!$A$17:$A$1927,0)) -> 3.47725515 | I113: =INDEX('[3]iBoxx £ Non-Financials BBB 10+'!$M$17:$M$1927,MATCH(E113,'[3]iBoxx £ Non-Financials BBB 10+'!$A$17:$A$1927,0)) -> 3.810414389 | J113: 3.643834769 | K113: =InpC!$F$53*100 -> 0.15 | L113: =InpC!$F$62*100 -> 0 | M113: 3.493834769 | N113: 3.493834769
E114: 2016-06-02 | F114: =InpC!$F$28 -> 4 | G114: 2017 | H114: =INDEX('[3]iBoxx £ Non-Financials A 10+'!$M$17:$M$1927,MATCH(E114,'[3]iBoxx £ Non-Financials A 10+'!$A$17:$A$1927,0)) -> 3.452028307 | I114: =INDEX('[3]iBoxx £ Non-Financials BBB 10+'!$M$17:$M$1927,MATCH(E114,'[3]iBoxx £ Non-Financials BBB 10+'!$A$17:$A$1927,0)) -> 3.790778706 | J114: 3.621403507 | K114: =InpC!$F$53*100 -> 0.15 | L114: =InpC!$F$62*100 -> 0 | M114: 3.471403507 | N114: 3.471403507
E115: 2016-06-03 | F115: =InpC!$F$28 -> 4 | G115: 2017 | H115: =INDEX('[3]iBoxx £ Non-Financials A 10+'!$M$17:$M$1927,MATCH(E115,'[3]iBoxx £ Non-Financials A 10+'!$A$17:$A$1927,0)) -> 3.394971575 | I115: =INDEX('[3]iBoxx £ Non-Financials BBB 10+'!$M$17:$M$1927,MATCH(E115,'[3]iBoxx £ Non-Financials BBB 10+'!$A$17:$A$1927,0)) -> 3.730787387 | J115: 3.562879481 | K115: =InpC!$F$53*100 -> 0.15 | L115: =InpC!$F$62*100 -> 0 | M115: 3.412879481 | N115: 3.412879481
E116: 2016-06-06 | F116: =InpC!$F$28 -> 4 | G116: 2017 | H116: =INDEX('[3]iBoxx £ Non-Financials A 10+'!$M$17:$M$1927,MATCH(E116,'[3]iBoxx £ Non-Financials A 10+'!$A$17:$A$1927,0)) -> 3.408857992 | I116: =INDEX('[3]iBoxx £ Non-Financials BBB 10+'!$M$17:$M$1927,MATCH(E116,'[3]iBoxx £ Non-Financials BBB 10+'!$A$17:$A$1927,0)) -> 3.742843556 | J116: 3.575850774 | K116: =InpC!$F$53*100 -> 0.15 | L116: =InpC!$F$62*100 -> 0 | M116: 3.425850774 | N116: 3.425850774
E117: 2016-06-07 | F117: =InpC!$F$28 -> 4 | G117: 2017 | H117: =INDEX('[3]iBoxx £ Non-Financials A 10+'!$M$17:$M$1927,MATCH(E117,'[3]iBoxx £ Non-Financials A 10+'!$A$17:$A$1927,0)) -> 3.39269702 | I117: =INDEX('[3]iBoxx £ Non-Financials BBB 10+'!$M$17:$M$1927,MATCH(E117,'[3]iBoxx £ Non-Financials BBB 10+'!$A$17:$A$1927,0)) -> 3.729996407 | J117: 3.561346713 | K117: =InpC!$F$53*100 -> 0.15 | L117: =InpC!$F$62*100 -> 0 | M117: 3.411346713 | N117: 3.411346713
E118: 2016-06-08 | F118: =InpC!$F$28 -> 4 | G118: 2017 | H118: =INDEX('[3]iBoxx £ Non-Financials A 10+'!$M$17:$M$1927,MATCH(E118,'[3]iBoxx £ Non-Financials A 10+'!$A$17:$A$1927,0)) -> 3.366651484 | I118: =INDEX('[3]iBoxx £ Non-Financials BBB 10+'!$M$17:$M$1927,MATCH(E118,'[3]iBoxx £ Non-Financials BBB 10+'!$A$17:$A$1927,0)) -> 3.703981574 | J118: 3.535316529 | K118: =InpC!$F$53*100 -> 0.15 | L118: =InpC!$F$62*100 -> 0 | M118: 3.385316529 | N118: 3.385316529
E119: 2016-06-09 | F119: =InpC!$F$28 -> 4 | G119: 2017 | H119: =INDEX('[3]iBoxx £ Non-Financials A 10+'!$M$17:$M$1927,MATCH(E119,'[3]iBoxx £ Non-Financials A 10+'!$A$17:$A$1927,0)) -> 3.331104197 | I119: =INDEX('[3]iBoxx £ Non-Financials BBB 10+'!$M$17:$M$1927,MATCH(E119,'[3]iBoxx £ Non-Financials BBB 10+'!$A$17:$A$1927,0)) -> 3.669823096 | J119: 3.500463647 | K119: =InpC!$F$53*100 -> 0.15 | L119: =InpC!$F$62*100 -> 0 | M119: 3.350463647 | N119: 3.350463647
E120: 2016-06-10 | F120: =InpC!$F$28 -> 4 | G120: 2017 | H120: =INDEX('[3]iBoxx £ Non-Financials A 10+'!$M$17:$M$1927,MATCH(E120,'[3]iBoxx £ Non-Financials A 10+'!$A$17:$A$1927,0)) -> 3.313468792 | I120: =INDEX('[3]iBoxx £ Non-Financials BBB 10+'!$M$17:$M$1927,MATCH(E120,'[3]iBoxx £ Non-Financials BBB 10+'!$A$17:$A$1927,0)) -> 3.658822099 | J120: 3.486145446 | K120: =InpC!$F$53*100 -> 0.15 | L120: =InpC!$F$62*100 -> 0 | M120: 3.336145446 | N120: 3.336145446
E121: 2016-06-13 | F121: =InpC!$F$28 -> 4 | G121: 2017 | H121: =INDEX('[3]iBoxx £ Non-Financials A 10+'!$M$17:$M$1927,MATCH(E121,'[3]iBoxx £ Non-Financials A 10+'!$A$17:$A$1927,0)) -> 3.311858008 | I121: =INDEX('[3]iBoxx £ Non-Financials BBB 10+'!$M$17:$M$1927,MATCH(E121,'[3]iBoxx £ Non-Financials BBB 10+'!$A$17:$A$1927,0)) -> 3.668741283 | J121: 3.490299646 | K121: =InpC!$F$53*100 -> 0.15 | L121: =InpC!$F$62*100 -> 0 | M121: 3.340299646 | N121: 3.340299646
E122: 2016-06-14 | F122: =InpC!$F$28 -> 4 | G122: 2017 | H122: =INDEX('[3]iBoxx £ Non-Financials A 10+'!$M$17:$M$1927,MATCH(E122,'[3]iBoxx £ Non-Financials A 10+'!$A$17:$A$1927,0)) -> 3.267653535 | I122: =INDEX('[3]iBoxx £ Non-Financials BBB 10+'!$M$17:$M$1927,MATCH(E122,'[3]iBoxx £ Non-Financials BBB 10+'!$A$17:$A$1927,0)) -> 3.629909228 | J122: 3.448781381 | K122: =InpC!$F$53*100 -> 0.15 | L122: =InpC!$F$62*100 -> 0 | M122: 3.298781381 | N122: 3.298781381
E123: 2016-06-15 | F123: =InpC!$F$28 -> 4 | G123: 2017 | H123: =INDEX('[3]iBoxx £ Non-Financials A 10+'!$M$17:$M$1927,MATCH(E123,'[3]iBoxx £ Non-Financials A 10+'!$A$17:$A$1927,0)) -> 3.241599025 | I123: =INDEX('[3]iBoxx £ Non-Financials BBB 10+'!$M$17:$M$1927,MATCH(E123,'[3]iBoxx £ Non-Financials BBB 10+'!$A$17:$A$1927,0)) -> 3.604691099 | J123: 3.423145062 | K123: =InpC!$F$53*100 -> 0.15 | L123: =InpC!$F$62*100 -> 0 | M123: 3.273145062 | N123: 3.273145062
E124: 2016-06-16 | F124: =InpC!$F$28 -> 4 | G124: 2017 | H124: =INDEX('[3]iBoxx £ Non-Financials A 10+'!$M$17:$M$1927,MATCH(E124,'[3]iBoxx £ Non-Financials A 10+'!$A$17:$A$1927,0)) -> 3.26109471 | I124: =INDEX('[3]iBoxx £ Non-Financials BBB 10+'!$M$17:$M$1927,MATCH(E124,'[3]iBoxx £ Non-Financials BBB 10+'!$A$17:$A$1927,0)) -> 3.635806871 | J124: 3.44845079 | K124: =InpC!$F$53*100 -> 0.15 | L124: =InpC!$F$62*100 -> 0 | M124: 3.298450791 | N124: 3.298450791
E125: 2016-06-17 | F125: =InpC!$F$28 -> 4 | G125: 2017 | H125: =INDEX('[3]iBoxx £ Non-Financials A 10+'!$M$17:$M$1927,MATCH(E125,'[3]iBoxx £ Non-Financials A 10+'!$A$17:$A$1927,0)) -> 3.325964391 | I125: =INDEX('[3]iBoxx £ Non-Financials BBB 10+'!$M$17:$M$1927,MATCH(E125,'[3]iBoxx £ Non-Financials BBB 10+'!$A$17:$A$1927,0)) -> 3.696885581 | J125: 3.511424986 | K125: =InpC!$F$53*100 -> 0.15 | L125: =InpC!$F$62*100 -> 0 | M125: 3.361424986 | N125: 3.361424986
E126: 2016-06-20 | F126: =InpC!$F$28 -> 4 | G126: 2017 | H126: =INDEX('[3]iBoxx £ Non-Financials A 10+'!$M$17:$M$1927,MATCH(E126,'[3]iBoxx £ Non-Financials A 10+'!$A$17:$A$1927,0)) -> 3.416500733 | I126: =INDEX('[3]iBoxx £ Non-Financials BBB 10+'!$M$17:$M$1927,MATCH(E126,'[3]iBoxx £ Non-Financials BBB 10+'!$A$17:$A$1927,0)) -> 3.783429404 | J126: 3.599965068 | K126: =InpC!$F$53*100 -> 0.15 | L126: =InpC!$F$62*100 -> 0 | M126: 3.449965069 | N126: 3.449965069
E127: 2016-06-21 | F127: =InpC!$F$28 -> 4 | G127: 2017 | H127: =INDEX('[3]iBoxx £ Non-Financials A 10+'!$M$17:$M$1927,MATCH(E127,'[3]iBoxx £ Non-Financials A 10+'!$A$17:$A$1927,0)) -> 3.439519769 | I127: =INDEX('[3]iBoxx £ Non-Financials BBB 10+'!$M$17:$M$1927,MATCH(E127,'[3]iBoxx £ Non-Financials BBB 10+'!$A$17:$A$1927,0)) -> 3.804027757 | J127: 3.621773763 | K127: =InpC!$F$53*100 -> 0.15 | L127: =InpC!$F$62*100 -> 0 | M127: 3.471773763 | N127: 3.471773763
E128: 2016-06-22 | F128: =InpC!$F$28 -> 4 | G128: 2017 | H128: =INDEX('[3]iBoxx £ Non-Financials A 10+'!$M$17:$M$1927,MATCH(E128,'[3]iBoxx £ Non-Financials A 10+'!$A$17:$A$1927,0)) -> 3.458680622 | I128: =INDEX('[3]iBoxx £ Non-Financials BBB 10+'!$M$17:$M$1927,MATCH(E128,'[3]iBoxx £ Non-Financials BBB 10+'!$A$17:$A$1927,0)) -> 3.819934772 | J128: 3.639307697 | K128: =InpC!$F$53*100 -> 0.15 | L128: =InpC!$F$62*100 -> 0 | M128: 3.489307697 | N128: 3.489307697
E129: 2016-06-23 | F129: =InpC!$F$28 -> 4 | G129: 2017 | H129: =INDEX('[3]iBoxx £ Non-Financials A 10+'!$M$17:$M$1927,MATCH(E129,'[3]iBoxx £ Non-Financials A 10+'!$A$17:$A$1927,0)) -> 3.466078173 | I129: =INDEX('[3]iBoxx £ Non-Financials BBB 10+'!$M$17:$M$1927,MATCH(E129,'[3]iBoxx £ Non-Financials BBB 10+'!$A$17:$A$1927,0)) -> 3.819451191 | J129: 3.642764682 | K129: =InpC!$F$53*100 -> 0.15 | L129: =InpC!$F$62*100 -> 0 | M129: 3.492764682 | N129: 3.492764682
E130: 2016-06-24 | F130: =InpC!$F$28 -> 4 | G130: 2017 | H130: =INDEX('[3]iBoxx £ Non-Financials A 10+'!$M$17:$M$1927,MATCH(E130,'[3]iBoxx £ Non-Financials A 10+'!$A$17:$A$1927,0)) -> 3.389275877 | I130: =INDEX('[3]iBoxx £ Non-Financials BBB 10+'!$M$17:$M$1927,MATCH(E130,'[3]iBoxx £ Non-Financials BBB 10+'!$A$17:$A$1927,0)) -> 3.760637329 | J130: 3.574956603 | K130: =InpC!$F$53*100 -> 0.15 | L130: =InpC!$F$62*100 -> 0 | M130: 3.424956603 | N130: 3.424956603
E131: 2016-06-27 | F131: =InpC!$F$28 -> 4 | G131: 2017 | H131: =INDEX('[3]iBoxx £ Non-Financials A 10+'!$M$17:$M$1927,MATCH(E131,'[3]iBoxx £ Non-Financials A 10+'!$A$17:$A$1927,0)) -> 3.273411381 | I131: =INDEX('[3]iBoxx £ Non-Financials BBB 10+'!$M$17:$M$1927,MATCH(E131,'[3]iBoxx £ Non-Financials BBB 10+'!$A$17:$A$1927,0)) -> 3.642788784 | J131: 3.458100082 | K131: =InpC!$F$53*100 -> 0.15 | L131: =InpC!$F$62*100 -> 0 | M131: 3.308100082 | N131: 3.308100082
E132: 2016-06-28 | F132: =InpC!$F$28 -> 4 | G132: 2017 | H132: =INDEX('[3]iBoxx £ Non-Financials A 10+'!$M$17:$M$1927,MATCH(E132,'[3]iBoxx £ Non-Financials A 10+'!$A$17:$A$1927,0)) -> 3.256076843 | I132: =INDEX('[3]iBoxx £ Non-Financials BBB 10+'!$M$17:$M$1927,MATCH(E132,'[3]iBoxx £ Non-Financials BBB 10+'!$A$17:$A$1927,0)) -> 3.627230467 | J132: 3.441653655 | K132: =InpC!$F$53*100 -> 0.15 | L132: =InpC!$F$62*100 -> 0 | M132: 3.291653655 | N132: 3.291653655
E133: 2016-06-29 | F133: =InpC!$F$28 -> 4 | G133: 2017 | H133: =INDEX('[3]iBoxx £ Non-Financials A 10+'!$M$17:$M$1927,MATCH(E133,'[3]iBoxx £ Non-Financials A 10+'!$A$17:$A$1927,0)) -> 3.211037146 | I133: =INDEX('[3]iBoxx £ Non-Financials BBB 10+'!$M$17:$M$1927,MATCH(E133,'[3]iBoxx £ Non-Financials BBB 10+'!$A$17:$A$1927,0)) -> 3.582890298 | J133: 3.396963722 | K133: =InpC!$F$53*100 -> 0.15 | L133: =InpC!$F$62*100 -> 0 | M133: 3.246963722 | N133: 3.246963722
E134: 2016-06-30 | F134: =InpC!$F$28 -> 4 | G134: 2017 | H134: =INDEX('[3]iBoxx £ Non-Financials A 10+'!$M$17:$M$1927,MATCH(E134,'[3]iBoxx £ Non-Financials A 10+'!$A$17:$A$1927,0)) -> 3.163446348 | I134: =INDEX('[3]iBoxx £ Non-Financials BBB 10+'!$M$17:$M$1927,MATCH(E134,'[3]iBoxx £ Non-Financials BBB 10+'!$A$17:$A$1927,0)) -> 3.509320146 | J134: 3.336383247 | K134: =InpC!$F$53*100 -> 0.15 | L134: =InpC!$F$62*100 -> 0 | M134: 3.186383247 | N134: 3.186383247
E135: 2016-07-01 | F135: =InpC!$F$28 -> 4 | G135: =YEAR(E135) + IF(MONTH(E135) >= F135, 1, 0) -> 2017 | H135: =INDEX('[3]iBoxx £ Non-Financials A 10+'!$M$17:$M$1927,MATCH(E135,'[3]iBoxx £ Non-Financials A 10+'!$A$17:$A$1927,0)) -> 3.075586355 | I135: =INDEX('[3]iBoxx £ Non-Financials BBB 10+'!$M$17:$M$1927,MATCH(E135,'[3]iBoxx £ Non-Financials BBB 10+'!$A$17:$A$1927,0)) -> 3.390914839 | J135: =IFERROR(AVERAGE(H135:I135),"") -> 3.233250597 | K135: =InpC!$F$53*100 -> 0.15 | L135: =InpC!$F$62*100 -> 0 | M135: =IFERROR(J135 - K135,"") -> 3.083250597 | N135: =IFERROR(J135-K135+L135,"") -> 3.083250597
E136: =WORKDAY(E135,1,) -> 2016-07-04 | F136: =InpC!$F$28 -> 4 | G136: 2017 | H136: =INDEX('[3]iBoxx £ Non-Financials A 10+'!$M$17:$M$1927,MATCH(E136,'[3]iBoxx £ Non-Financials A 10+'!$A$17:$A$1927,0)) -> 3.015120645 | I136: =INDEX('[3]iBoxx £ Non-Financials BBB 10+'!$M$17:$M$1927,MATCH(E136,'[3]iBoxx £ Non-Financials BBB 10+'!$A$17:$A$1927,0)) -> 3.32745046 | J136: 3.171285553 | K136: =InpC!$F$53*100 -> 0.15 | L136: =InpC!$F$62*100 -> 0 | M136: 3.021285553 | N136: 3.021285553
E137: 2016-07-05 | F137: =InpC!$F$28 -> 4 | G137: 2017 | H137: =INDEX('[3]iBoxx £ Non-Financials A 10+'!$M$17:$M$1927,MATCH(E137,'[3]iBoxx £ Non-Financials A 10+'!$A$17:$A$1927,0)) -> 2.942688358 | I137: =INDEX('[3]iBoxx £ Non-Financials BBB 10+'!$M$17:$M$1927,MATCH(E137,'[3]iBoxx £ Non-Financials BBB 10+'!$A$17:$A$1927,0)) -> 3.256471367 | J137: 3.099579862 | K137: =InpC!$F$53*100 -> 0.15 | L137: =InpC!$F$62*100 -> 0 | M137: 2.949579862 | N137: 2.949579862
E138: 2016-07-06 | F138: =InpC!$F$28 -> 4 | G138: 2017 | H138: =INDEX('[3]iBoxx £ Non-Financials A 10+'!$M$17:$M$1927,MATCH(E138,'[3]iBoxx £ Non-Financials A 10+'!$A$17:$A$1927,0)) -> 2.921350461 | I138: =INDEX('[3]iBoxx £ Non-Financials BBB 10+'!$M$17:$M$1927,MATCH(E138,'[3]iBoxx £ Non-Financials BBB 10+'!$A$17:$A$1927,0)) -> 3.235394628 | J138: 3.078372544 | K138: =InpC!$F$53*100 -> 0.15 | L138: =InpC!$F$62*100 -> 0 | M138: 2.928372544 | N138: 2.928372544
E139: 2016-07-07 | F139: =InpC!$F$28 -> 4 | G139: 2017 | H139: =INDEX('[3]iBoxx £ Non-Financials A 10+'!$M$17:$M$1927,MATCH(E139,'[3]iBoxx £ Non-Financials A 10+'!$A$17:$A$1927,0)) -> 2.937578559 | I139: =INDEX('[3]iBoxx £ Non-Financials BBB 10+'!$M$17:$M$1927,MATCH(E139,'[3]iBoxx £ Non-Financials BBB 10+'!$A$17:$A$1927,0)) -> 3.238027157 | J139: 3.087802858 | K139: =InpC!$F$53*100 -> 0.15 | L139: =InpC!$F$62*100 -> 0 | M139: 2.937802858 | N139: 2.937802858
E140: 2016-07-08 | F140: =InpC!$F$28 -> 4 | G140: 2017 | H140: =INDEX('[3]iBoxx £ Non-Financials A 10+'!$M$17:$M$1927,MATCH(E140,'[3]iBoxx £ Non-Financials A 10+'!$A$17:$A$1927,0)) -> 2.881822092 | I140: =INDEX('[3]iBoxx £ Non-Financials BBB 10+'!$M$17:$M$1927,MATCH(E140,'[3]iBoxx £ Non-Financials BBB 10+'!$A$17:$A$1927,0)) -> 3.168230075 | J140: 3.025026084 | K140: =InpC!$F$53*100 -> 0.15 | L140: =InpC!$F$62*100 -> 0 | M140: 2.875026084 | N140: 2.875026084
E141: 2016-07-11 | F141: =InpC!$F$28 -> 4 | G141: 2017 | H141: =INDEX('[3]iBoxx £ Non-Financials A 10+'!$M$17:$M$1927,MATCH(E141,'[3]iBoxx £ Non-Financials A 10+'!$A$17:$A$1927,0)) -> 2.860566091 | I141: =INDEX('[3]iBoxx £ Non-Financials BBB 10+'!$M$17:$M$1927,MATCH(E141,'[3]iBoxx £ Non-Financials BBB 10+'!$A$17:$A$1927,0)) -> 3.141043559 | J141: 3.000804825 | K141: =InpC!$F$53*100 -> 0.15 | L141: =InpC!$F$62*100 -> 0 | M141: 2.850804825 | N141: 2.850804825
E142: 2016-07-12 | F142: =InpC!$F$28 -> 4 | G142: 2017 | H142: =INDEX('[3]iBoxx £ Non-Financials A 10+'!$M$17:$M$1927,MATCH(E142,'[3]iBoxx £ Non-Financials A 10+'!$A$17:$A$1927,0)) -> 2.863137031 | I142: =INDEX('[3]iBoxx £ Non-Financials BBB 10+'!$M$17:$M$1927,MATCH(E142,'[3]iBoxx £ Non-Financials BBB 10+'!$A$17:$A$1927,0)) -> 3.136520676 | J142: 2.999828853 | K142: =InpC!$F$53*100 -> 0.15 | L142: =InpC!$F$62*100 -> 0 | M142: 2.849828854 | N142: 2.849828854
E143: 2016-07-13 | F143: =InpC!$F$28 -> 4 | G143: 2017 | H143: =INDEX('[3]iBoxx £ Non-Financials A 10+'!$M$17:$M$1927,MATCH(E143,'[3]iBoxx £ Non-Financials A 10+'!$A$17:$A$1927,0)) -> 2.762749137 | I143: =INDEX('[3]iBoxx £ Non-Financials BBB 10+'!$M$17:$M$1927,MATCH(E143,'[3]iBoxx £ Non-Financials BBB 10+'!$A$17:$A$1927,0)) -> 3.018895252 | J143: 2.890822195 | K143: =InpC!$F$53*100 -> 0.15 | L143: =InpC!$F$62*100 -> 0 | M143: 2.740822195 | N143: 2.740822195
E144: 2016-07-14 | F144: =InpC!$F$28 -> 4 | G144: 2017 | H144: =INDEX('[3]iBoxx £ Non-Financials A 10+'!$M$17:$M$1927,MATCH(E144,'[3]iBoxx £ Non-Financials A 10+'!$A$17:$A$1927,0)) -> 2.768507804 | I144: =INDEX('[3]iBoxx £ Non-Financials BBB 10+'!$M$17:$M$1927,MATCH(E144,'[3]iBoxx £ Non-Financials BBB 10+'!$A$17:$A$1927,0)) -> 3.015766042 | J144: 2.892136923 | K144: =InpC!$F$53*100 -> 0.15 | L144: =InpC!$F$62*100 -> 0 | M144: 2.742136923 | N144: 2.742136923
E145: 2016-07-15 | F145: =InpC!$F$28 -> 4 | G145: 2017 | H145: =INDEX('[3]iBoxx £ Non-Financials A 10+'!$M$17:$M$1927,MATCH(E145,'[3]iBoxx £ Non-Financials A 10+'!$A$17:$A$1927,0)) -> 2.810507959 | I145: =INDEX('[3]iBoxx £ Non-Financials BBB 10+'!$M$17:$M$1927,MATCH(E145,'[3]iBoxx £ Non-Financials BBB 10+'!$A$17:$A$1927,0)) -> 3.056185892 | J145: 2.933346925 | K145: =InpC!$F$53*100 -> 0.15 | L145: =InpC!$F$62*100 -> 0 | M145: 2.783346926 | N145: 2.783346926
E146: 2016-07-18 | F146: =InpC!$F$28 -> 4 | G146: 2017 | H146: =INDEX('[3]iBoxx £ Non-Financials A 10+'!$M$17:$M$1927,MATCH(E146,'[3]iBoxx £ Non-Financials A 10+'!$A$17:$A$1927,0)) -> 2.776170539 | I146: =INDEX('[3]iBoxx £ Non-Financials BBB 10+'!$M$17:$M$1927,MATCH(E146,'[3]iBoxx £ Non-Financials BBB 10+'!$A$17:$A$1927,0)) -> 3.017884595 | J146: 2.897027567 | K146: =InpC!$F$53*100 -> 0.15 | L146: =InpC!$F$62*100 -> 0 | M146: 2.747027567 | N146: 2.747027567
E147: 2016-07-19 | F147: =InpC!$F$28 -> 4 | G147: 2017 | H147: =INDEX('[3]iBoxx £ Non-Financials A 10+'!$M$17:$M$1927,MATCH(E147,'[3]iBoxx £ Non-Financials A 10+'!$A$17:$A$1927,0)) -> 2.77578031 | I147: =INDEX('[3]iBoxx £ Non-Financials BBB 10+'!$M$17:$M$1927,MATCH(E147,'[3]iBoxx £ Non-Financials BBB 10+'!$A$17:$A$1927,0)) -> 3.024641538 | J147: 2.900210924 | K147: =InpC!$F$53*100 -> 0.15 | L147: =InpC!$F$62*100 -> 0 | M147: 2.750210924 | N147: 2.750210924
E148: 2016-07-20 | F148: =InpC!$F$28 -> 4 | G148: 2017 | H148: =INDEX('[3]iBoxx £ Non-Financials A 10+'!$M$17:$M$1927,MATCH(E148,'[3]iBoxx £ Non-Financials A 10+'!$A$17:$A$1927,0)) -> 2.80554919 | I148: =INDEX('[3]iBoxx £ Non-Financials BBB 10+'!$M$17:$M$1927,MATCH(E148,'[3]iBoxx £ Non-Financials BBB 10+'!$A$17:$A$1927,0)) -> 3.055986604 | J148: 2.930767897 | K148: =InpC!$F$53*100 -> 0.15 | L148: =InpC!$F$62*100 -> 0 | M148: 2.780767897 | N148: 2.780767897
E149: 2016-07-21 | F149: =InpC!$F$28 -> 4 | G149: 2017 | H149: =INDEX('[3]iBoxx £ Non-Financials A 10+'!$M$17:$M$1927,MATCH(E149,'[3]iBoxx £ Non-Financials A 10+'!$A$17:$A$1927,0)) -> 2.820536034 | I149: =INDEX('[3]iBoxx £ Non-Financials BBB 10+'!$M$17:$M$1927,MATCH(E149,'[3]iBoxx £ Non-Financials BBB 10+'!$A$17:$A$1927,0)) -> 3.069533535 | J149: 2.945034784 | K149: =InpC!$F$53*100 -> 0.15 | L149: =InpC!$F$62*100 -> 0 | M149: 2.795034784 | N149: 2.795034784
E150: 2016-07-22 | F150: =InpC!$F$28 -> 4 | G150: 2017 | H150: =INDEX('[3]iBoxx £ Non-Financials A 10+'!$M$17:$M$1927,MATCH(E150,'[3]iBoxx £ Non-Financials A 10+'!$A$17:$A$1927,0)) -> 2.776814476 | I150: =INDEX('[3]iBoxx £ Non-Financials BBB 10+'!$M$17:$M$1927,MATCH(E150,'[3]iBoxx £ Non-Financials BBB 10+'!$A$17:$A$1927,0)) -> 3.026099339 | J150: 2.901456908 | K150: =InpC!$F$53*100 -> 0.15 | L150: =InpC!$F$62*100 -> 0 | M150: 2.751456908 | N150: 2.751456908
E151: 2016-07-25 | F151: =InpC!$F$28 -> 4 | G151: 2017 | H151: =INDEX('[3]iBoxx £ Non-Financials A 10+'!$M$17:$M$1927,MATCH(E151,'[3]iBoxx £ Non-Financials A 10+'!$A$17:$A$1927,0)) -> 2.764539796 | I151: =INDEX('[3]iBoxx £ Non-Financials BBB 10+'!$M$17:$M$1927,MATCH(E151,'[3]iBoxx £ Non-Financials BBB 10+'!$A$17:$A$1927,0)) -> 3.012956088 | J151: 2.888747942 | K151: =InpC!$F$53*100 -> 0.15 | L151: =InpC!$F$62*100 -> 0 | M151: 2.738747942 | N151: 2.738747942
E152: 2016-07-26 | F152: =InpC!$F$28 -> 4 | G152: 2017 | H152: =INDEX('[3]iBoxx £ Non-Financials A 10+'!$M$17:$M$1927,MATCH(E152,'[3]iBoxx £ Non-Financials A 10+'!$A$17:$A$1927,0)) -> 2.782378069 | I152: =INDEX('[3]iBoxx £ Non-Financials BBB 10+'!$M$17:$M$1927,MATCH(E152,'[3]iBoxx £ Non-Financials BBB 10+'!$A$17:$A$1927,0)) -> 3.035326615 | J152: 2.908852342 | K152: =InpC!$F$53*100 -> 0.15 | L152: =InpC!$F$62*100 -> 0 | M152: 2.758852342 | N152: 2.758852342
E153: 2016-07-27 | F153: =InpC!$F$28 -> 4 | G153: 2017 | H153: =INDEX('[3]iBoxx £ Non-Financials A 10+'!$M$17:$M$1927,MATCH(E153,'[3]iBoxx £ Non-Financials A 10+'!$A$17:$A$1927,0)) -> 2.690458096 | I153: =INDEX('[3]iBoxx £ Non-Financials BBB 10+'!$M$17:$M$1927,MATCH(E153,'[3]iBoxx £ Non-Financials BBB 10+'!$A$17:$A$1927,0)) -> 2.941870004 | J153: 2.81616405 | K153: =InpC!$F$53*100 -> 0.15 | L153: =InpC!$F$62*100 -> 0 | M153: 2.66616405 | N153: 2.66616405
E154: 2016-07-28 | F154: =InpC!$F$28 -> 4 | G154: 2017 | H154: =INDEX('[3]iBoxx £ Non-Financials A 10+'!$M$17:$M$1927,MATCH(E154,'[3]iBoxx £ Non-Financials A 10+'!$A$17:$A$1927,0)) -> 2.670760084 | I154: =INDEX('[3]iBoxx £ Non-Financials BBB 10+'!$M$17:$M$1927,MATCH(E154,'[3]iBoxx £ Non-Financials BBB 10+'!$A$17:$A$1927,0)) -> 2.916646516 | J154: 2.7937033 | K154: =InpC!$F$53*100 -> 0.15 | L154: =InpC!$F$62*100 -> 0 | M154: 2.6437033 | N154: 2.6437033
E155: 2016-07-29 | F155: =InpC!$F$28 -> 4 | G155: 2017 | H155: =INDEX('[3]iBoxx £ Non-Financials A 10+'!$M$17:$M$1927,MATCH(E155,'[3]iBoxx £ Non-Financials A 10+'!$A$17:$A$1927,0)) -> 2.629001095 | I155: =INDEX('[3]iBoxx £ Non-Financials BBB 10+'!$M$17:$M$1927,MATCH(E155,'[3]iBoxx £ Non-Financials BBB 10+'!$A$17:$A$1927,0)) -> 2.872185042 | J155: 2.750593068 | K155: =InpC!$F$53*100 -> 0.15 | L155: =InpC!$F$62*100 -> 0 | M155: 2.600593068 | N155: 2.600593068
E156: 2016-08-01 | F156: =InpC!$F$28 -> 4 | G156: 2017 | H156: =INDEX('[3]iBoxx £ Non-Financials A 10+'!$M$17:$M$1927,MATCH(E156,'[3]iBoxx £ Non-Financials A 10+'!$A$17:$A$1927,0)) -> 2.665150846 | I156: =INDEX('[3]iBoxx £ Non-Financials BBB 10+'!$M$17:$M$1927,MATCH(E156,'[3]iBoxx £ Non-Financials BBB 10+'!$A$17:$A$1927,0)) -> 2.912879594 | J156: 2.78901522 | K156: =InpC!$F$53*100 -> 0.15 | L156: =InpC!$F$62*100 -> 0 | M156: 2.63901522 | N156: 2.63901522
E157: 2016-08-02 | F157: =InpC!$F$28 -> 4 | G157: 2017 | H157: =INDEX('[3]iBoxx £ Non-Financials A 10+'!$M$17:$M$1927,MATCH(E157,'[3]iBoxx £ Non-Financials A 10+'!$A$17:$A$1927,0)) -> 2.735384114 | I157: =INDEX('[3]iBoxx £ Non-Financials BBB 10+'!$M$17:$M$1927,MATCH(E157,'[3]iBoxx £ Non-Financials BBB 10+'!$A$17:$A$1927,0)) -> 2.995826071 | J157: 2.865605093 | K157: =InpC!$F$53*100 -> 0.15 | L157: =InpC!$F$62*100 -> 0 | M157: 2.715605093 | N157: 2.715605093
E158: 2016-08-03 | F158: =InpC!$F$28 -> 4 | G158: 2017 | H158: =INDEX('[3]iBoxx £ Non-Financials A 10+'!$M$17:$M$1927,MATCH(E158,'[3]iBoxx £ Non-Financials A 10+'!$A$17:$A$1927,0)) -> 2.729831653 | I158: =INDEX('[3]iBoxx £ Non-Financials BBB 10+'!$M$17:$M$1927,MATCH(E158,'[3]iBoxx £ Non-Financials BBB 10+'!$A$17:$A$1927,0)) -> 2.993218599 | J158: 2.861525126 | K158: =InpC!$F$53*100 -> 0.15 | L158: =InpC!$F$62*100 -> 0 | M158: 2.711525126 | N158: 2.711525126
E159: 2016-08-04 | F159: =InpC!$F$28 -> 4 | G159: 2017 | H159: =INDEX('[3]iBoxx £ Non-Financials A 10+'!$M$17:$M$1927,MATCH(E159,'[3]iBoxx £ Non-Financials A 10+'!$A$17:$A$1927,0)) -> 2.477611143 | I159: =INDEX('[3]iBoxx £ Non-Financials BBB 10+'!$M$17:$M$1927,MATCH(E159,'[3]iBoxx £ Non-Financials BBB 10+'!$A$17:$A$1927,0)) -> 2.732984353 | J159: 2.605297748 | K159: =InpC!$F$53*100 -> 0.15 | L159: =InpC!$F$62*100 -> 0 | M159: 2.455297748 | N159: 2.455297748
E160: 2016-08-05 | F160: =InpC!$F$28 -> 4 | G160: 2017 | H160: =INDEX('[3]iBoxx £ Non-Financials A 10+'!$M$17:$M$1927,MATCH(E160,'[3]iBoxx £ Non-Financials A 10+'!$A$17:$A$1927,0)) -> 2.346007196 | I160: =INDEX('[3]iBoxx £ Non-Financials BBB 10+'!$M$17:$M$1927,MATCH(E160,'[3]iBoxx £ Non-Financials BBB 10+'!$A$17:$A$1927,0)) -> 2.58934561 | J160: 2.467676403 | K160: =InpC!$F$53*100 -> 0.15 | L160: =InpC!$F$62*100 -> 0 | M160: 2.317676403 | N160: 2.317676403
E161: 2016-08-08 | F161: =InpC!$F$28 -> 4 | G161: 2017 | H161: =INDEX('[3]iBoxx £ Non-Financials A 10+'!$M$17:$M$1927,MATCH(E161,'[3]iBoxx £ Non-Financials A 10+'!$A$17:$A$1927,0)) -> 2.296944798 | I161: =INDEX('[3]iBoxx £ Non-Financials BBB 10+'!$M$17:$M$1927,MATCH(E161,'[3]iBoxx £ Non-Financials BBB 10+'!$A$17:$A$1927,0)) -> 2.534694466 | J161: 2.415819632 | K161: =InpC!$F$53*100 -> 0.15 | L161: =InpC!$F$62*100 -> 0 | M161: 2.265819632 | N161: 2.265819632
E162: 2016-08-09 | F162: =InpC!$F$28 -> 4 | G162: 2017 | H162: =INDEX('[3]iBoxx £ Non-Financials A 10+'!$M$17:$M$1927,MATCH(E162,'[3]iBoxx £ Non-Financials A 10+'!$A$17:$A$1927,0)) -> 2.247271153 | I162: =INDEX('[3]iBoxx £ Non-Financials BBB 10+'!$M$17:$M$1927,MATCH(E162,'[3]iBoxx £ Non-Financials BBB 10+'!$A$17:$A$1927,0)) -> 2.485728343 | J162: 2.366499748 | K162: =InpC!$F$53*100 -> 0.15 | L162: =InpC!$F$62*100 -> 0 | M162: 2.216499748 | N162: 2.216499748
E163: 2016-08-10 | F163: =InpC!$F$28 -> 4 | G163: 2017 | H163: =INDEX('[3]iBoxx £ Non-Financials A 10+'!$M$17:$M$1927,MATCH(E163,'[3]iBoxx £ Non-Financials A 10+'!$A$17:$A$1927,0)) -> 2.181148638 | I163: =INDEX('[3]iBoxx £ Non-Financials BBB 10+'!$M$17:$M$1927,MATCH(E163,'[3]iBoxx £ Non-Financials BBB 10+'!$A$17:$A$1927,0)) -> 2.429932724 | J163: 2.305540681 | K163: =InpC!$F$53*100 -> 0.15 | L163: =InpC!$F$62*100 -> 0 | M163: 2.155540681 | N163: 2.155540681
E164: 2016-08-11 | F164: =InpC!$F$28 -> 4 | G164: 2017 | H164: =INDEX('[3]iBoxx £ Non-Financials A 10+'!$M$17:$M$1927,MATCH(E164,'[3]iBoxx £ Non-Financials A 10+'!$A$17:$A$1927,0)) -> 2.159630383 | I164: =INDEX('[3]iBoxx £ Non-Financials BBB 10+'!$M$17:$M$1927,MATCH(E164,'[3]iBoxx £ Non-Financials BBB 10+'!$A$17:$A$1927,0)) -> 2.417011652 | J164: 2.288321017 | K164: =InpC!$F$53*100 -> 0.15 | L164: =InpC!$F$62*100 -> 0 | M164: 2.138321018 | N164: 2.138321018
E165: 2016-08-12 | F165: =InpC!$F$28 -> 4 | G165: 2017 | H165: =INDEX('[3]iBoxx £ Non-Financials A 10+'!$M$17:$M$1927,MATCH(E165,'[3]iBoxx £ Non-Financials A 10+'!$A$17:$A$1927,0)) -> 2.175982092 | I165: =INDEX('[3]iBoxx £ Non-Financials BBB 10+'!$M$17:$M$1927,MATCH(E165,'[3]iBoxx £ Non-Financials BBB 10+'!$A$17:$A$1927,0)) -> 2.436967293 | J165: 2.306474693 | K165: =InpC!$F$53*100 -> 0.15 | L165: =InpC!$F$62*100 -> 0 | M165: 2.156474693 | N165: 2.156474693
E166: 2016-08-15 | F166: =InpC!$F$28 -> 4 | G166: 2017 | H166: =INDEX('[3]iBoxx £ Non-Financials A 10+'!$M$17:$M$1927,MATCH(E166,'[3]iBoxx £ Non-Financials A 10+'!$A$17:$A$1927,0)) -> 2.219018307 | I166: =INDEX('[3]iBoxx £ Non-Financials BBB 10+'!$M$17:$M$1927,MATCH(E166,'[3]iBoxx £ Non-Financials BBB 10+'!$A$17:$A$1927,0)) -> 2.480737137 | J166: 2.349877722 | K166: =InpC!$F$53*100 -> 0.15 | L166: =InpC!$F$62*100 -> 0 | M166: 2.199877722 | N166: 2.199877722
E167: 2016-08-16 | F167: =InpC!$F$28 -> 4 | G167: 2017 | H167: =INDEX('[3]iBoxx £ Non-Financials A 10+'!$M$17:$M$1927,MATCH(E167,'[3]iBoxx £ Non-Financials A 10+'!$A$17:$A$1927,0)) -> 2.268495456 | I167: =INDEX('[3]iBoxx £ Non-Financials BBB 10+'!$M$17:$M$1927,MATCH(E167,'[3]iBoxx £ Non-Financials BBB 10+'!$A$17:$A$1927,0)) -> 2.542967696 | J167: 2.405731576 | K167: =InpC!$F$53*100 -> 0.15 | L167: =InpC!$F$62*100 -> 0 | M167: 2.255731576 | N167: 2.255731576
E168: 2016-08-17 | F168: =InpC!$F$28 -> 4 | G168: 2017 | H168: =INDEX('[3]iBoxx £ Non-Financials A 10+'!$M$17:$M$1927,MATCH(E168,'[3]iBoxx £ Non-Financials A 10+'!$A$17:$A$1927,0)) -> 2.28201279 | I168: =INDEX('[3]iBoxx £ Non-Financials BBB 10+'!$M$17:$M$1927,MATCH(E168,'[3]iBoxx £ Non-Financials BBB 10+'!$A$17:$A$1927,0)) -> 2.559368502 | J168: 2.420690646 | K168: =InpC!$F$53*100 -> 0.15 | L168: =InpC!$F$62*100 -> 0 | M168: 2.270690646 | N168: 2.270690646
E169: 2016-08-18 | F169: =InpC!$F$28 -> 4 | G169: 2017 | H169: =INDEX('[3]iBoxx £ Non-Financials A 10+'!$M$17:$M$1927,MATCH(E169,'[3]iBoxx £ Non-Financials A 10+'!$A$17:$A$1927,0)) -> 2.26973624 | I169: =INDEX('[3]iBoxx £ Non-Financials BBB 10+'!$M$17:$M$1927,MATCH(E169,'[3]iBoxx £ Non-Financials BBB 10+'!$A$17:$A$1927,0)) -> 2.550533959 | J169: 2.410135099 | K169: =InpC!$F$53*100 -> 0.15 | L169: =InpC!$F$62*100 -> 0 | M169: 2.260135099 | N169: 2.260135099
E170: 2016-08-19 | F170: =InpC!$F$28 -> 4 | G170: 2017 | H170: =INDEX('[3]iBoxx £ Non-Financials A 10+'!$M$17:$M$1927,MATCH(E170,'[3]iBoxx £ Non-Financials A 10+'!$A$17:$A$1927,0)) -> 2.317273811 | I170: =INDEX('[3]iBoxx £ Non-Financials BBB 10+'!$M$17:$M$1927,MATCH(E170,'[3]iBoxx £ Non-Financials BBB 10+'!$A$17:$A$1927,0)) -> 2.598308828 | J170: 2.45779132 | K170: =InpC!$F$53*100 -> 0.15 | L170: =InpC!$F$62*100 -> 0 | M170: 2.30779132 | N170: 2.30779132
E171: 2016-08-22 | F171: =InpC!$F$28 -> 4 | G171: 2017 | H171: =INDEX('[3]iBoxx £ Non-Financials A 10+'!$M$17:$M$1927,MATCH(E171,'[3]iBoxx £ Non-Financials A 10+'!$A$17:$A$1927,0)) -> 2.283169058 | I171: =INDEX('[3]iBoxx £ Non-Financials BBB 10+'!$M$17:$M$1927,MATCH(E171,'[3]iBoxx £ Non-Financials BBB 10+'!$A$17:$A$1927,0)) -> 2.56322059 | J171: 2.423194824 | K171: =InpC!$F$53*100 -> 0.15 | L171: =InpC!$F$62*100 -> 0 | M171: 2.273194824 | N171: 2.273194824
E172: 2016-08-23 | F172: =InpC!$F$28 -> 4 | G172: 2017 | H172: =INDEX('[3]iBoxx £ Non-Financials A 10+'!$M$17:$M$1927,MATCH(E172,'[3]iBoxx £ Non-Financials A 10+'!$A$17:$A$1927,0)) -> 2.241692295 | I172: =INDEX('[3]iBoxx £ Non-Financials BBB 10+'!$M$17:$M$1927,MATCH(E172,'[3]iBoxx £ Non-Financials BBB 10+'!$A$17:$A$1927,0)) -> 2.52651228 | J172: 2.384102288 | K172: =InpC!$F$53*100 -> 0.15 | L172: =InpC!$F$62*100 -> 0 | M172: 2.234102288 | N172: 2.234102288
E173: 2016-08-24 | F173: =InpC!$F$28 -> 4 | G173: 2017 | H173: =INDEX('[3]iBoxx £ Non-Financials A 10+'!$M$17:$M$1927,MATCH(E173,'[3]iBoxx £ Non-Financials A 10+'!$A$17:$A$1927,0)) -> 2.240769435 | I173: =INDEX('[3]iBoxx £ Non-Financials BBB 10+'!$M$17:$M$1927,MATCH(E173,'[3]iBoxx £ Non-Financials BBB 10+'!$A$17:$A$1927,0)) -> 2.529774429 | J173: 2.385271932 | K173: =InpC!$F$53*100 -> 0.15 | L173: =InpC!$F$62*100 -> 0 | M173: 2.235271932 | N173: 2.235271932
E174: 2016-08-25 | F174: =InpC!$F$28 -> 4 | G174: 2017 | H174: =INDEX('[3]iBoxx £ Non-Financials A 10+'!$M$17:$M$1927,MATCH(E174,'[3]iBoxx £ Non-Financials A 10+'!$A$17:$A$1927,0)) -> 2.242018978 | I174: =INDEX('[3]iBoxx £ Non-Financials BBB 10+'!$M$17:$M$1927,MATCH(E174,'[3]iBoxx £ Non-Financials BBB 10+'!$A$17:$A$1927,0)) -> 2.531120399 | J174: 2.386569688 | K174: =InpC!$F$53*100 -> 0.15 | L174: =InpC!$F$62*100 -> 0 | M174: 2.236569688 | N174: 2.236569688
E175: 2016-08-26 | F175: =InpC!$F$28 -> 4 | G175: 2017 | H175: =INDEX('[3]iBoxx £ Non-Financials A 10+'!$M$17:$M$1927,MATCH(E175,'[3]iBoxx £ Non-Financials A 10+'!$A$17:$A$1927,0)) -> 2.211256723 | I175: =INDEX('[3]iBoxx £ Non-Financials BBB 10+'!$M$17:$M$1927,MATCH(E175,'[3]iBoxx £ Non-Financials BBB 10+'!$A$17:$A$1927,0)) -> 2.501504822 | J175: 2.356380772 | K175: =InpC!$F$53*100 -> 0.15 | L175: =InpC!$F$62*100 -> 0 | M175: 2.206380772 | N175: 2.206380772
E176: 2016-08-29 | F176: =InpC!$F$28 -> 4 | G176: 2017 | H176: =INDEX('[3]iBoxx £ Non-Financials A 10+'!$M$17:$M$1927,MATCH(E176,'[3]iBoxx £ Non-Financials A 10+'!$A$17:$A$1927,0)) ->  | I176: =INDEX('[3]iBoxx £ Non-Financials BBB 10+'!$M$17:$M$1927,MATCH(E176,'[3]iBoxx £ Non-Financials BBB 10+'!$A$17:$A$1927,0)) ->  | K176: =InpC!$F$53*100 -> 0.15 | L176: =InpC!$F$62*100 -> 0
E177: 2016-08-30 | F177: =InpC!$F$28 -> 4 | G177: 2017 | H177: =INDEX('[3]iBoxx £ Non-Financials A 10+'!$M$17:$M$1927,MATCH(E177,'[3]iBoxx £ Non-Financials A 10+'!$A$17:$A$1927,0)) -> 2.212985126 | I177: =INDEX('[3]iBoxx £ Non-Financials BBB 10+'!$M$17:$M$1927,MATCH(E177,'[3]iBoxx £ Non-Financials BBB 10+'!$A$17:$A$1927,0)) -> 2.505590521 | J177: 2.359287823 | K177: =InpC!$F$53*100 -> 0.15 | L177: =InpC!$F$62*100 -> 0 | M177: 2.209287823 | N177: 2.209287823
E178: 2016-08-31 | F178: =InpC!$F$28 -> 4 | G178: 2017 | H178: =INDEX('[3]iBoxx £ Non-Financials A 10+'!$M$17:$M$1927,MATCH(E178,'[3]iBoxx £ Non-Financials A 10+'!$A$17:$A$1927,0)) -> 2.225516775 | I178: =INDEX('[3]iBoxx £ Non-Financials BBB 10+'!$M$17:$M$1927,MATCH(E178,'[3]iBoxx £ Non-Financials BBB 10+'!$A$17:$A$1927,0)) -> 2.51530026 | J178: 2.370408518 | K178: =InpC!$F$53*100 -> 0.15 | L178: =InpC!$F$62*100 -> 0 | M178: 2.220408518 | N178: 2.220408518
E179: 2016-09-01 | F179: =InpC!$F$28 -> 4 | G179: 2017 | H179: =INDEX('[3]iBoxx £ Non-Financials A 10+'!$M$17:$M$1927,MATCH(E179,'[3]iBoxx £ Non-Financials A 10+'!$A$17:$A$1927,0)) -> 2.253191192 | I179: =INDEX('[3]iBoxx £ Non-Financials BBB 10+'!$M$17:$M$1927,MATCH(E179,'[3]iBoxx £ Non-Financials BBB 10+'!$A$17:$A$1927,0)) -> 2.569419355 | J179: 2.411305274 | K179: =InpC!$F$53*100 -> 0.15 | L179: =InpC!$F$62*100 -> 0 | M179: 2.261305274 | N179: 2.261305274
E180: 2016-09-02 | F180: =InpC!$F$28 -> 4 | G180: 2017 | H180: =INDEX('[3]iBoxx £ Non-Financials A 10+'!$M$17:$M$1927,MATCH(E180,'[3]iBoxx £ Non-Financials A 10+'!$A$17:$A$1927,0)) -> 2.314937112 | I180: =INDEX('[3]iBoxx £ Non-Financials BBB 10+'!$M$17:$M$1927,MATCH(E180,'[3]iBoxx £ Non-Financials BBB 10+'!$A$17:$A$1927,0)) -> 2.631170673 | J180: 2.473053893 | K180: =InpC!$F$53*100 -> 0.15 | L180: =InpC!$F$62*100 -> 0 | M180: 2.323053893 | N180: 2.323053893
E181: 2016-09-05 | F181: =InpC!$F$28 -> 4 | G181: 2017 | H181: =INDEX('[3]iBoxx £ Non-Financials A 10+'!$M$17:$M$1927,MATCH(E181,'[3]iBoxx £ Non-Financials A 10+'!$A$17:$A$1927,0)) -> 2.285423288 | I181: =INDEX('[3]iBoxx £ Non-Financials BBB 10+'!$M$17:$M$1927,MATCH(E181,'[3]iBoxx £ Non-Financials BBB 10+'!$A$17:$A$1927,0)) -> 2.604131598 | J181: 2.444777443 | K181: =InpC!$F$53*100 -> 0.15 | L181: =InpC!$F$62*100 -> 0 | M181: 2.294777443 | N181: 2.294777443
E182: 2016-09-06 | F182: =InpC!$F$28 -> 4 | G182: 2017 | H182: =INDEX('[3]iBoxx £ Non-Financials A 10+'!$M$17:$M$1927,MATCH(E182,'[3]iBoxx £ Non-Financials A 10+'!$A$17:$A$1927,0)) -> 2.272919015 | I182: =INDEX('[3]iBoxx £ Non-Financials BBB 10+'!$M$17:$M$1927,MATCH(E182,'[3]iBoxx £ Non-Financials BBB 10+'!$A$17:$A$1927,0)) -> 2.592096813 | J182: 2.432507914 | K182: =InpC!$F$53*100 -> 0.15 | L182: =InpC!$F$62*100 -> 0 | M182: 2.282507914 | N182: 2.282507914
E183: 2016-09-07 | F183: =InpC!$F$28 -> 4 | G183: 2017 | H183: =INDEX('[3]iBoxx £ Non-Financials A 10+'!$M$17:$M$1927,MATCH(E183,'[3]iBoxx £ Non-Financials A 10+'!$A$17:$A$1927,0)) -> 2.266750073 | I183: =INDEX('[3]iBoxx £ Non-Financials BBB 10+'!$M$17:$M$1927,MATCH(E183,'[3]iBoxx £ Non-Financials BBB 10+'!$A$17:$A$1927,0)) -> 2.588669624 | J183: 2.427709849 | K183: =InpC!$F$53*100 -> 0.15 | L183: =InpC!$F$62*100 -> 0 | M183: 2.277709849 | N183: 2.277709849
E184: 2016-09-08 | F184: =InpC!$F$28 -> 4 | G184: 2017 | H184: =INDEX('[3]iBoxx £ Non-Financials A 10+'!$M$17:$M$1927,MATCH(E184,'[3]iBoxx £ Non-Financials A 10+'!$A$17:$A$1927,0)) -> 2.357520375 | I184: =INDEX('[3]iBoxx £ Non-Financials BBB 10+'!$M$17:$M$1927,MATCH(E184,'[3]iBoxx £ Non-Financials BBB 10+'!$A$17:$A$1927,0)) -> 2.686130489 | J184: 2.521825432 | K184: =InpC!$F$53*100 -> 0.15 | L184: =InpC!$F$62*100 -> 0 | M184: 2.371825432 | N184: 2.371825432
E185: 2016-09-09 | F185: =InpC!$F$28 -> 4 | G185: 2017 | H185: =INDEX('[3]iBoxx £ Non-Financials A 10+'!$M$17:$M$1927,MATCH(E185,'[3]iBoxx £ Non-Financials A 10+'!$A$17:$A$1927,0)) -> 2.479338119 | I185: =INDEX('[3]iBoxx £ Non-Financials BBB 10+'!$M$17:$M$1927,MATCH(E185,'[3]iBoxx £ Non-Financials BBB 10+'!$A$17:$A$1927,0)) -> 2.814059975 | J185: 2.646699047 | K185: =InpC!$F$53*100 -> 0.15 | L185: =InpC!$F$62*100 -> 0 | M185: 2.496699047 | N185: 2.496699047
E186: 2016-09-12 | F186: =InpC!$F$28 -> 4 | G186: 2017 | H186: =INDEX('[3]iBoxx £ Non-Financials A 10+'!$M$17:$M$1927,MATCH(E186,'[3]iBoxx £ Non-Financials A 10+'!$A$17:$A$1927,0)) -> 2.493999997 | I186: =INDEX('[3]iBoxx £ Non-Financials BBB 10+'!$M$17:$M$1927,MATCH(E186,'[3]iBoxx £ Non-Financials BBB 10+'!$A$17:$A$1927,0)) -> 2.834145215 | J186: 2.664072606 | K186: =InpC!$F$53*100 -> 0.15 | L186: =InpC!$F$62*100 -> 0 | M186: 2.514072606 | N186: 2.514072606
E187: 2016-09-13 | F187: =InpC!$F$28 -> 4 | G187: 2017 | H187: =INDEX('[3]iBoxx £ Non-Financials A 10+'!$M$17:$M$1927,MATCH(E187,'[3]iBoxx £ Non-Financials A 10+'!$A$17:$A$1927,0)) -> 2.508608774 | I187: =INDEX('[3]iBoxx £ Non-Financials BBB 10+'!$M$17:$M$1927,MATCH(E187,'[3]iBoxx £ Non-Financials BBB 10+'!$A$17:$A$1927,0)) -> 2.835806732 | J187: 2.672207753 | K187: =InpC!$F$53*100 -> 0.15 | L187: =InpC!$F$62*100 -> 0 | M187: 2.522207753 | N187: 2.522207753
E188: 2016-09-14 | F188: =InpC!$F$28 -> 4 | G188: 2017 | H188: =INDEX('[3]iBoxx £ Non-Financials A 10+'!$M$17:$M$1927,MATCH(E188,'[3]iBoxx £ Non-Financials A 10+'!$A$17:$A$1927,0)) -> 2.527224508 | I188: =INDEX('[3]iBoxx £ Non-Financials BBB 10+'!$M$17:$M$1927,MATCH(E188,'[3]iBoxx £ Non-Financials BBB 10+'!$A$17:$A$1927,0)) -> 2.855243263 | J188: 2.691233885 | K188: =InpC!$F$53*100 -> 0.15 | L188: =InpC!$F$62*100 -> 0 | M188: 2.541233886 | N188: 2.541233886
E189: 2016-09-15 | F189: =InpC!$F$28 -> 4 | G189: 2017 | H189: =INDEX('[3]iBoxx £ Non-Financials A 10+'!$M$17:$M$1927,MATCH(E189,'[3]iBoxx £ Non-Financials A 10+'!$A$17:$A$1927,0)) -> 2.549824272 | I189: =INDEX('[3]iBoxx £ Non-Financials BBB 10+'!$M$17:$M$1927,MATCH(E189,'[3]iBoxx £ Non-Financials BBB 10+'!$A$17:$A$1927,0)) -> 2.875779421 | J189: 2.712801846 | K189: =InpC!$F$53*100 -> 0.15 | L189: =InpC!$F$62*100 -> 0 | M189: 2.562801846 | N189: 2.562801846
E190: 2016-09-16 | F190: =InpC!$F$28 -> 4 | G190: 2017 | H190: =INDEX('[3]iBoxx £ Non-Financials A 10+'!$M$17:$M$1927,MATCH(E190,'[3]iBoxx £ Non-Financials A 10+'!$A$17:$A$1927,0)) -> 2.530078676 | I190: =INDEX('[3]iBoxx £ Non-Financials BBB 10+'!$M$17:$M$1927,MATCH(E190,'[3]iBoxx £ Non-Financials BBB 10+'!$A$17:$A$1927,0)) -> 2.851929337 | J190: 2.691004007 | K190: =InpC!$F$53*100 -> 0.15 | L190: =InpC!$F$62*100 -> 0 | M190: 2.541004007 | N190: 2.541004007
E191: 2016-09-19 | F191: =InpC!$F$28 -> 4 | G191: 2017 | H191: =INDEX('[3]iBoxx £ Non-Financials A 10+'!$M$17:$M$1927,MATCH(E191,'[3]iBoxx £ Non-Financials A 10+'!$A$17:$A$1927,0)) -> 2.553377059 | I191: =INDEX('[3]iBoxx £ Non-Financials BBB 10+'!$M$17:$M$1927,MATCH(E191,'[3]iBoxx £ Non-Financials BBB 10+'!$A$17:$A$1927,0)) -> 2.873117129 | J191: 2.713247094 | K191: =InpC!$F$53*100 -> 0.15 | L191: =InpC!$F$62*100 -> 0 | M191: 2.563247094 | N191: 2.563247094
E192: 2016-09-20 | F192: =InpC!$F$28 -> 4 | G192: 2017 | H192: =INDEX('[3]iBoxx £ Non-Financials A 10+'!$M$17:$M$1927,MATCH(E192,'[3]iBoxx £ Non-Financials A 10+'!$A$17:$A$1927,0)) -> 2.491236229 | I192: =INDEX('[3]iBoxx £ Non-Financials BBB 10+'!$M$17:$M$1927,MATCH(E192,'[3]iBoxx £ Non-Financials BBB 10+'!$A$17:$A$1927,0)) -> 2.802603589 | J192: 2.646919909 | K192: =InpC!$F$53*100 -> 0.15 | L192: =InpC!$F$62*100 -> 0 | M192: 2.496919909 | N192: 2.496919909
E193: 2016-09-21 | F193: =InpC!$F$28 -> 4 | G193: 2017 | H193: =INDEX('[3]iBoxx £ Non-Financials A 10+'!$M$17:$M$1927,MATCH(E193,'[3]iBoxx £ Non-Financials A 10+'!$A$17:$A$1927,0)) -> 2.504944027 | I193: =INDEX('[3]iBoxx £ Non-Financials BBB 10+'!$M$17:$M$1927,MATCH(E193,'[3]iBoxx £ Non-Financials BBB 10+'!$A$17:$A$1927,0)) -> 2.816031509 | J193: 2.660487768 | K193: =InpC!$F$53*100 -> 0.15 | L193: =InpC!$F$62*100 -> 0 | M193: 2.510487768 | N193: 2.510487768
E194: 2016-09-22 | F194: =InpC!$F$28 -> 4 | G194: 2017 | H194: =INDEX('[3]iBoxx £ Non-Financials A 10+'!$M$17:$M$1927,MATCH(E194,'[3]iBoxx £ Non-Financials A 10+'!$A$17:$A$1927,0)) -> 2.398221629 | I194: =INDEX('[3]iBoxx £ Non-Financials BBB 10+'!$M$17:$M$1927,MATCH(E194,'[3]iBoxx £ Non-Financials BBB 10+'!$A$17:$A$1927,0)) -> 2.707788755 | J194: 2.553005192 | K194: =InpC!$F$53*100 -> 0.15 | L194: =InpC!$F$62*100 -> 0 | M194: 2.403005192 | N194: 2.403005192
E195: 2016-09-23 | F195: =InpC!$F$28 -> 4 | G195: 2017 | H195: =INDEX('[3]iBoxx £ Non-Financials A 10+'!$M$17:$M$1927,MATCH(E195,'[3]iBoxx £ Non-Financials A 10+'!$A$17:$A$1927,0)) -> 2.404412299 | I195: =INDEX('[3]iBoxx £ Non-Financials BBB 10+'!$M$17:$M$1927,MATCH(E195,'[3]iBoxx £ Non-Financials BBB 10+'!$A$17:$A$1927,0)) -> 2.715212446 | J195: 2.559812372 | K195: =InpC!$F$53*100 -> 0.15 | L195: =InpC!$F$62*100 -> 0 | M195: 2.409812372 | N195: 2.409812372
E196: 2016-09-26 | F196: =InpC!$F$28 -> 4 | G196: 2017 | H196: =INDEX('[3]iBoxx £ Non-Financials A 10+'!$M$17:$M$1927,MATCH(E196,'[3]iBoxx £ Non-Financials A 10+'!$A$17:$A$1927,0)) -> 2.377891832 | I196: =INDEX('[3]iBoxx £ Non-Financials BBB 10+'!$M$17:$M$1927,MATCH(E196,'[3]iBoxx £ Non-Financials BBB 10+'!$A$17:$A$1927,0)) -> 2.689802134 | J196: 2.533846983 | K196: =InpC!$F$53*100 -> 0.15 | L196: =InpC!$F$62*100 -> 0 | M196: 2.383846983 | N196: 2.383846983
E197: 2016-09-27 | F197: =InpC!$F$28 -> 4 | G197: 2017 | H197: =INDEX('[3]iBoxx £ Non-Financials A 10+'!$M$17:$M$1927,MATCH(E197,'[3]iBoxx £ Non-Financials A 10+'!$A$17:$A$1927,0)) -> 2.337745208 | I197: =INDEX('[3]iBoxx £ Non-Financials BBB 10+'!$M$17:$M$1927,MATCH(E197,'[3]iBoxx £ Non-Financials BBB 10+'!$A$17:$A$1927,0)) -> 2.646074896 | J197: 2.491910052 | K197: =InpC!$F$53*100 -> 0.15 | L197: =InpC!$F$62*100 -> 0 | M197: 2.341910052 | N197: 2.341910052
E198: 2016-09-28 | F198: =InpC!$F$28 -> 4 | G198: 2017 | H198: =INDEX('[3]iBoxx £ Non-Financials A 10+'!$M$17:$M$1927,MATCH(E198,'[3]iBoxx £ Non-Financials A 10+'!$A$17:$A$1927,0)) -> 2.347263092 | I198: =INDEX('[3]iBoxx £ Non-Financials BBB 10+'!$M$17:$M$1927,MATCH(E198,'[3]iBoxx £ Non-Financials BBB 10+'!$A$17:$A$1927,0)) -> 2.656374239 | J198: 2.501818666 | K198: =InpC!$F$53*100 -> 0.15 | L198: =InpC!$F$62*100 -> 0 | M198: 2.351818666 | N198: 2.351818666
E199: 2016-09-29 | F199: =InpC!$F$28 -> 4 | G199: =YEAR(E199) + IF(MONTH(E199) >= F199, 1, 0) -> 2017 | H199: =INDEX('[3]iBoxx £ Non-Financials A 10+'!$M$17:$M$1927,MATCH(E199,'[3]iBoxx £ Non-Financials A 10+'!$A$17:$A$1927,0)) -> 2.394471685 | I199: =INDEX('[3]iBoxx £ Non-Financials BBB 10+'!$M$17:$M$1927,MATCH(E199,'[3]iBoxx £ Non-Financials BBB 10+'!$A$17:$A$1927,0)) -> 2.704466014 | J199: =IFERROR(AVERAGE(H199:I199),"") -> 2.54946885 | K199: =InpC!$F$53*100 -> 0.15 | L199: =InpC!$F$62*100 -> 0 | M199: =IFERROR(J199 - K199,"") -> 2.39946885 | N199: =IFERROR(J199-K199+L199,"") -> 2.39946885
E200: =WORKDAY(E199,1,) -> 2016-09-30 | F200: =InpC!$F$28 -> 4 | G200: 2017 | H200: =INDEX('[3]iBoxx £ Non-Financials A 10+'!$M$17:$M$1927,MATCH(E200,'[3]iBoxx £ Non-Financials A 10+'!$A$17:$A$1927,0)) -> 2.467663797 | I200: =INDEX('[3]iBoxx £ Non-Financials BBB 10+'!$M$17:$M$1927,MATCH(E200,'[3]iBoxx £ Non-Financials BBB 10+'!$A$17:$A$1927,0)) -> 2.776631263 | J200: 2.62214753 | K200: =InpC!$F$53*100 -> 0.15 | L200: =InpC!$F$62*100 -> 0 | M200: 2.47214753 | N200: 2.47214753
E201: 2016-10-03 | F201: =InpC!$F$28 -> 4 | G201: 2017 | H201: =INDEX('[3]iBoxx £ Non-Financials A 10+'!$M$17:$M$1927,MATCH(E201,'[3]iBoxx £ Non-Financials A 10+'!$A$17:$A$1927,0)) -> 2.456553835 | I201: =INDEX('[3]iBoxx £ Non-Financials BBB 10+'!$M$17:$M$1927,MATCH(E201,'[3]iBoxx £ Non-Financials BBB 10+'!$A$17:$A$1927,0)) -> 2.759829797 | J201: 2.608191816 | K201: =InpC!$F$53*100 -> 0.15 | L201: =InpC!$F$62*100 -> 0 | M201: 2.458191816 | N201: 2.458191816
E202: 2016-10-04 | F202: =InpC!$F$28 -> 4 | G202: 2017 | H202: =INDEX('[3]iBoxx £ Non-Financials A 10+'!$M$17:$M$1927,MATCH(E202,'[3]iBoxx £ Non-Financials A 10+'!$A$17:$A$1927,0)) -> 2.481237527 | I202: =INDEX('[3]iBoxx £ Non-Financials BBB 10+'!$M$17:$M$1927,MATCH(E202,'[3]iBoxx £ Non-Financials BBB 10+'!$A$17:$A$1927,0)) -> 2.785868215 | J202: 2.633552871 | K202: =InpC!$F$53*100 -> 0.15 | L202: =InpC!$F$62*100 -> 0 | M202: 2.483552871 | N202: 2.483552871
E203: 2016-10-05 | F203: =InpC!$F$28 -> 4 | G203: 2017 | H203: =INDEX('[3]iBoxx £ Non-Financials A 10+'!$M$17:$M$1927,MATCH(E203,'[3]iBoxx £ Non-Financials A 10+'!$A$17:$A$1927,0)) -> 2.543870063 | I203: =INDEX('[3]iBoxx £ Non-Financials BBB 10+'!$M$17:$M$1927,MATCH(E203,'[3]iBoxx £ Non-Financials BBB 10+'!$A$17:$A$1927,0)) -> 2.855127024 | J203: 2.699498543 | K203: =InpC!$F$53*100 -> 0.15 | L203: =InpC!$F$62*100 -> 0 | M203: 2.549498543 | N203: 2.549498543
... 4845 more rows

Sheet RCV and post 2020 investment
A1: =RIGHT(CELL("filename", $A$1), LEN(CELL("filename", $A$1)) - SEARCH("]", CELL("filename", $A$1))) -> RCV and post 2020 investment
E2: =Time!E$22 -> Model Period END | J2: =Time!J$22 -> 2020-03-31 | K2: =Time!K$22 -> 2021-03-31 | L2: =Time!L$22 -> 2022-03-31 | M2: =Time!M$22 -> 2023-03-31 | N2: =Time!N$22 -> 2024-03-31 | O2: =Time!O$22 -> 2025-03-31 | P2: =Time!P$22 -> 2026-03-31
E3: =Time!E$58 -> Pre Forecast vs Forecast | J3: =Time!J$58 -> Pre Fcst | K3: =Time!K$58 -> Forecast | L3: =Time!L$58 -> Forecast | M3: =Time!M$58 -> Forecast | N3: =Time!N$58 -> Forecast | O3: =Time!O$58 -> Forecast | P3: =Time!P$58 -> Post-Fcst
E4: =Time!E$86 -> Financial Year Ending | J4: =Time!J$86 -> 2020 | K4: =Time!K$86 -> 2021 | L4: =Time!L$86 -> 2022 | M4: =Time!M$86 -> 2023 | N4: =Time!N$86 -> 2024 | O4: =Time!O$86 -> 2025 | P4: =Time!P$86 -> 2026
E5: =Time!E$10 -> Model column counter | F5: Constant | G5: Unit | H5: Total | J5: =Time!J$10 -> 1 | K5: =Time!K$10 -> 2 | L5: =Time!L$10 -> 3 | M5: =Time!M$10 -> 4 | N5: =Time!N$10 -> 5 | O5: =Time!O$10 -> 6 | P5: =Time!P$10 -> 7
A7: Water Resources
A8: =InpR!A$15 -> 0 | B8: =InpR!B$15 -> 0 | C8: =InpR!C$15 -> 0 | D8: =InpR!D$15 -> 0 | E8: =InpR!E$15 -> Water resources RCV year start | F8: =InpR!F$15 -> 0 | G8: =InpR!G$15 -> £m, (CPIH, 2017/18 prices) | H8: =InpR!H$15 -> 0 | I8: =InpR!I$15 -> 0 | J8: =InpR!J$15 -> 0 | K8: =InpR!K$15 -> 127.01 | L8: =InpR!L$15 -> 143.66 | M8: =InpR!M$15 -> 166.94 | N8: =InpR!N$15 -> 190.89 | O8: =InpR!O$15 -> 223.16 | P8: =InpR!P$15 -> 0
A9: =InpR!A$16 -> 0 | B9: =InpR!B$16 -> 0 | C9: =InpR!C$16 -> 0 | D9: =InpR!D$16 -> 0 | E9: =InpR!E$16 -> Water Resources RCV year end | F9: =InpR!F$16 -> 0 | G9: =InpR!G$16 -> £m, (CPIH, 2017/18 prices) | H9: =InpR!H$16 -> 0 | I9: =InpR!I$16 -> 0 | J9: =InpR!J$16 -> 0 | K9: =InpR!K$16 -> 143.11 | L9: =InpR!L$16 -> 166.36 | M9: =InpR!M$16 -> 190.34 | N9: =InpR!N$16 -> 222.66 | O9: =InpR!O$16 -> 226.57 | P9: =InpR!P$16 -> 0
E10: Water resources asset base for return | G10: £m | J10: =AVERAGE(J8:J9) -> 0 | K10: =AVERAGE(K8:K9) -> 135.06 | L10: =AVERAGE(L8:L9) -> 155.01 | M10: 178.64 | N10: 206.775 | O10: 224.865 | P10: 0
E12: =InpC!E$55 -> Notional gearing | F12: =InpC!F$55 -> 0.6 | G12: =InpC!G$55 -> percentage
A13: =A$10 -> 0 | B13: =B$10 -> 0 | C13: =C$10 -> 0 | D13: =D$10 -> 0 | E13: =E$10 -> Water resources asset base for return | F13: =F$10 -> 0 | G13: £m | H13: 0 | I13: 0 | J13: 0 | K13: =K$10 -> 135.06 | L13: 155.01 | M13: 178.64 | N13: 206.775 | O13: 224.865 | P13: 0
E14: Water Resources Notional debt | G14: £m | H14: =SUM(J14:P14) -> 540.21 | J14: =$F12 * J13 -> 0 | K14: =$F12 * K13 -> 81.036 | L14: 93.006 | M14: 107.184 | N14: 124.065 | O14: 134.919 | P14: 0
A16: =A$14 -> 0 | B16: =B$14 -> 0 | C16: =C$14 -> 0 | D16: =D$14 -> 0 | E16: =E$14 -> Water Resources Notional debt | F16: =F$14 -> 0 | G16: £m | H16: 540.21 | I16: 0 | J16: 0 | K16: 81.036 | L16: 93.006 | M16: 107.184 | N16: 124.065 | O16: 134.919 | P16: 0
A17: =InpR!A$56 -> 0 | B17: =InpR!B$56 -> 0 | C17: =InpR!C$56 -> 0 | D17: =InpR!D$56 -> 0 | E17: =InpR!E$56 -> Proportion of notional debt subject to indexation (year average) | F17: =InpR!F$56 -> 0 | G17: =InpR!G$56 -> percentage | H17: =InpR!H$56 -> 0 | I17: =InpR!I$56 -> 0 | J17: =InpR!J$56 -> 0 | K17: =InpR!K$56 -> 0.04 | L17: =InpR!L$56 -> 0.12 | M17: =InpR!M$56 -> 0.2 | N17: =InpR!N$56 -> 0.28 | O17: =InpR!O$56 -> 0.36 | P17: =InpR!P$56 -> 0.44
E18: Water Resources New debt for return | G18: £m | H18: =SUM(J18:O18) -> 119.148 | J18: =J16 * J17 -> 0 | K18: 3.24144 | L18: 11.16072 | M18: 21.4368 | N18: 34.7382 | O18: 48.57084 | P18: 0
E20: =E$14 -> Water Resources Notional debt | F20: =F$14 -> 0 | G20: £m | H20: 540.21 | I20: 0 | J20: 0 | K20: =K$14 -> 81.036 | L20: 93.006 | M20: 107.184 | N20: 124.065 | O20: =O$14 -> 134.919 | P20: =P$14 -> 0
D21: less | E21: =E$18 -> Water Resources New debt for return | F21: =F$18 -> 0 | G21: £m | H21: 119.148 | I21: 0 | J21: 0 | K21: 3.24144 | L21: 11.16072 | M21: 21.4368 | N21: 34.7382 | O21: 48.57084 | P21: 0
E22: Water Resources Embedded debt for return | G22: £m | H22: =SUM(J22:O22) -> 421.062 | J22: =J20 - J21 -> 0 | K22: =K20 - K21 -> 77.79456 | L22: 81.84528 | M22: 85.7472 | N22: 89.3268 | O22: 86.34816 | P22: 0
A24: Water Network Plus
A25: =InpR!A$15 -> 0 | B25: =InpR!B$15 -> 0 | C25: =InpR!C$15 -> 0 | D25: =InpR!D$15 -> 0 | E25: =InpR!E$19 -> Water Network Plus RCV year start | F25: =InpR!F$19 -> 0 | G25: =InpR!G$19 -> £m, (CPIH, 2017/18 prices) | H25: =InpR!H$19 -> 0 | I25: =InpR!I$19 -> 0 | J25: =InpR!J$19 -> 0 | K25: =InpR!K$19 -> 1040.51 | L25: =InpR!L$19 -> 1101.72 | M25: =InpR!M$19 -> 1156.25 | N25: =InpR!N$19 -> 1201.86 | O25: =InpR!O$19 -> 1220.07 | P25: =InpR!P$19 -> 0
A26: =InpR!A$16 -> 0 | B26: =InpR!B$16 -> 0 | C26: =InpR!C$16 -> 0 | D26: =InpR!D$16 -> 0 | E26: =InpR!E$20 -> Water Network Plus RCV year end | F26: =InpR!F$20 -> 0 | G26: =InpR!G$20 -> £m, (CPIH, 2017/18 prices) | H26: =InpR!H$20 -> 0 | I26: =InpR!I$20 -> 0 | J26: =InpR!J$20 -> 0 | K26: =InpR!K$20 -> 1097.03 | L26: =InpR!L$20 -> 1151.14 | M26: =InpR!M$20 -> 1196.8 | N26: =InpR!N$20 -> 1215.19 | O26: =InpR!O$20 -> 1227.5 | P26: =InpR!P$20 -> 0
E27: Water Network Plus asset base for return | G27: £m | J27: =AVERAGE(J25:J26) -> 0 | K27: =AVERAGE(K25:K26) -> 1068.77 | L27: 1126.43 | M27: 1176.525 | N27: 1208.525 | O27: 1223.785 | P27: 0
E29: =InpC!E$55 -> Notional gearing | F29: =InpC!F$55 -> 0.6 | G29: =InpC!G$55 -> percentage
A30: =A$10 -> 0 | B30: =B$10 -> 0 | C30: =C$10 -> 0 | D30: =D$10 -> 0 | E30: =E$27 -> Water Network Plus asset base for return | F30: =F$27 -> 0 | G30: £m | H30: 0 | I30: 0 | J30: 0 | K30: =K$27 -> 1068.77 | L30: 1126.43 | M30: 1176.525 | N30: 1208.525 | O30: 1223.785 | P30: 0
E31: Water Network Plus Notional debt | G31: =G$10 -> £m | H31: =SUM(J31:P31) -> 3482.421 | J31: =J30 * $F29 -> 0 | K31: 641.262 | L31: 675.858 | M31: 705.915 | N31: 725.115 | O31: 734.271 | P31: 0
E33: =E$31 -> Water Network Plus Notional debt | F33: 0 | G33: £m | H33: 3482.421 | I33: 0 | J33: 0 | K33: 641.262 | L33: 675.858 | M33: 705.915 | N33: 725.115 | O33: 734.271 | P33: 0
A34: =A$14 -> 0 | B34: =B$14 -> 0 | C34: =C$14 -> 0 | D34: =D$14 -> 0 | E34: =InpR!E$56 -> Proportion of notional debt subject to indexation (year average) | F34: =InpR!F$56 -> 0 | G34: =InpR!G$56 -> percentage | H34: =InpR!H$56 -> 0 | I34: =InpR!I$56 -> 0 | J34: =InpR!J$56 -> 0 | K34: =InpR!K$56 -> 0.04 | L34: =InpR!L$56 -> 0.12 | M34: =InpR!M$56 -> 0.2 | N34: =InpR!N$56 -> 0.28 | O34: =InpR!O$56 -> 0.36 | P34: =InpR!P$56 -> 0.44
A35: =InpR!A$56 -> 0 | B35: =InpR!B$56 -> 0 | C35: =InpR!C$56 -> 0 | D35: =InpR!D$56 -> 0 | E35: Water Network Plus New debt for return | G35: £m | H35: =SUM(J35:O35) -> 715.3062 | J35: =J33 * J34 -> 0 | K35: 25.65048 | L35: 81.10296 | M35: 141.183 | N35: 203.0322 | O35: 264.33756
E37: =E$31 -> Water Network Plus Notional debt | F37: 0 | G37: £m | H37: 3482.421 | I37: 0 | J37: 0 | K37: 641.262 | L37: 675.858 | M37: 705.915 | N37: 725.115 | O37: 734.271 | P37: 0
D38: less | E38: =E$35 -> Water Network Plus New debt for return | F38: =F$35 -> 0 | G38: £m | H38: 715.3062 | I38: 0 | J38: 0 | K38: 25.65048 | L38: 81.10296 | M38: 141.183 | N38: 203.0322 | O38: 264.33756 | P38: 0
E39: Water Network Plus Embedded debt for return | G39: £m | H39: =SUM(J39:O39) -> 2767.1148 | J39: =J37- J38 -> 0 | K39: 615.61152 | L39: 594.75504 | M39: 564.732 | N39: 522.0828 | O39: 469.93344 | P39: 0
A41: WasteWater Network Plus
A42: =InpR!A$15 -> 0 | B42: =InpR!B$15 -> 0 | C42: =InpR!C$15 -> 0 | D42: =InpR!D$15 -> 0 | E42: =InpR!E$23 -> Watewater Network Plus RCV year start | F42: =InpR!F$23 -> 0 | G42: =InpR!G$23 -> £m, (CPIH, 2017/18 prices) | H42: =InpR!H$23 -> 0 | I42: =InpR!I$23 -> 0 | J42: =InpR!J$23 -> 0 | K42: =InpR!K$23 -> 0 | L42: =InpR!L$23 -> 0 | M42: =InpR!M$23 -> 0 | N42: =InpR!N$23 -> 0 | O42: =InpR!O$23 -> 0 | P42: =InpR!P$23 -> 0
A43: =InpR!A$16 -> 0 | B43: =InpR!B$16 -> 0 | C43: =InpR!C$16 -> 0 | D43: =InpR!D$16 -> 0 | E43: =InpR!E$24 -> Watewater Network Plus RCV year end | F43: =InpR!F$24 -> 0 | G43: =InpR!G$24 -> £m, (CPIH, 2017/18 prices) | H43: =InpR!H$24 -> 0 | I43: =InpR!I$24 -> 0 | J43: =InpR!J$24 -> 0 | K43: =InpR!K$24 -> 0 | L43: =InpR!L$24 -> 0 | M43: =InpR!M$24 -> 0 | N43: =InpR!N$24 -> 0 | O43: =InpR!O$24 -> 0 | P43: =InpR!P$24 -> 0
E44: Watewater Network Plus asset base for return | G44: £m | J44: =AVERAGE(J42:J43) -> 0 | K44: =AVERAGE(K42:K43) -> 0 | L44: 0 | M44: 0 | N44: 0 | O44: 0 | P44: 0
E46: =InpC!E$55 -> Notional gearing | F46: =InpC!F$55 -> 0.6 | G46: =InpC!G$55 -> percentage
A47: =A$10 -> 0 | B47: =B$10 -> 0 | C47: =C$10 -> 0 | D47: =D$10 -> 0 | E47: =E$44 -> Watewater Network Plus asset base for return | F47: =F$44 -> 0 | G47: £m | H47: 0 | I47: 0 | J47: 0 | K47: 0 | L47: 0 | M47: 0 | N47: 0 | O47: 0 | P47: 0
E48: Wastewater Network Plus Notional debt | G48: =G$10 -> £m | H48: =SUM(J48:P48) -> 0 | J48: =J47 * $F46 -> 0 | K48: 0 | L48: 0 | M48: 0 | N48: 0 | O48: 0 | P48: 0
A50: =A$14 -> 0 | B50: =B$14 -> 0 | C50: =C$14 -> 0 | D50: =D$14 -> 0 | E50: =E$48 -> Wastewater Network Plus Notional debt | F50: =F$48 -> 0 | G50: £m | H50: 0 | I50: 0 | J50: 0 | K50: 0 | L50: 0 | M50: 0 | N50: 0 | O50: 0 | P50: 0
A51: =InpR!A$56 -> 0 | B51: =InpR!B$56 -> 0 | C51: =InpR!C$56 -> 0 | D51: =InpR!D$56 -> 0 | E51: =InpR!E$56 -> Proportion of notional debt subject to indexation (year average) | F51: =InpR!F$56 -> 0 | G51: =InpR!G$56 -> percentage | H51: =InpR!H$56 -> 0 | I51: =InpR!I$56 -> 0 | J51: =InpR!J$56 -> 0 | K51: =InpR!K$56 -> 0.04 | L51: =InpR!L$56 -> 0.12 | M51: =InpR!M$56 -> 0.2 | N51: =InpR!N$56 -> 0.28 | O51: =InpR!O$56 -> 0.36 | P51: =InpR!P$56 -> 0.44
E52: Wastewater Network Plus New debt for return | G52: £m | H52: =SUM(J52:O52) -> 0 | J52: =J50 * J51 -> 0 | K52: 0 | L52: 0 | M52: 0 | N52: 0 | O52: 0
E54: =E$48 -> Wastewater Network Plus Notional debt | F54: =F$48 -> 0 | G54: £m | H54: 0 | I54: 0 | J54: 0 | K54: 0 | L54: 0 | M54: 0 | N54: 0 | O54: 0 | P54: 0
D55: less | E55: =E$52 -> Wastewater Network Plus New debt for return | F55: =F$52 -> 0 | G55: £m | H55: 0 | I55: 0 | J55: 0 | K55: 0 | L55: 0 | M55: 0 | N55: 0 | O55: 0 | P55: 0
E56: Wastewater Network Plus Embedded debt for return | G56: £m | H56: =SUM(J56:O56) -> 0 | J56: =J54-J55 -> 0 | K56: =K54-K55 -> 0 | L56: 0 | M56: 0 | N56: 0 | O56: 0 | P56: 0
A58: Bioresources
A59: =InpR!A$15 -> 0 | B59: =InpR!B$15 -> 0 | C59: =InpR!C$15 -> 0 | D59: =InpR!D$15 -> 0 | E59: =InpR!E$27 -> Bioresources RCV year start | F59: =InpR!F$27 -> 0 | G59: =InpR!G$27 -> £m, (CPIH, 2017/18 prices) | H59: =InpR!H$27 -> 0 | I59: =InpR!I$27 -> 0 | J59: =InpR!J$27 -> 0 | K59: =InpR!K$27 -> 0 | L59: =InpR!L$27 -> 0 | M59: =InpR!M$27 -> 0 | N59: =InpR!N$27 -> 0 | O59: =InpR!O$27 -> 0 | P59: =InpR!P$27 -> 0
A60: =InpR!A$16 -> 0 | B60: =InpR!B$16 -> 0 | C60: =InpR!C$16 -> 0 | D60: =InpR!D$16 -> 0 | E60: =InpR!E$28 -> Bioresources RCV year end | F60: =InpR!F$28 -> 0 | G60: =InpR!G$28 -> £m, (CPIH, 2017/18 prices) | H60: =InpR!H$28 -> 0 | I60: =InpR!I$28 -> 0 | J60: =InpR!J$28 -> 0 | K60: =InpR!K$28 -> 0 | L60: =InpR!L$28 -> 0 | M60: =InpR!M$28 -> 0 | N60: =InpR!N$28 -> 0 | O60: =InpR!O$28 -> 0 | P60: =InpR!P$28 -> 0
E61: Bioresources asset base for return | G61: £m | J61: =AVERAGE(J59:J60) -> 0 | K61: =AVERAGE(K59:K60) -> 0 | L61: 0 | M61: 0 | N61: 0 | O61: 0 | P61: 0
E63: =InpC!E$55 -> Notional gearing | F63: =InpC!F$55 -> 0.6 | G63: =InpC!G$55 -> percentage
A64: =A$10 -> 0 | B64: =B$10 -> 0 | C64: =C$10 -> 0 | D64: =D$10 -> 0 | E64: =E$61 -> Bioresources asset base for return | F64: =F$61 -> 0 | G64: £m | H64: 0 | I64: 0 | J64: 0 | K64: 0 | L64: 0 | M64: 0 | N64: 0 | O64: 0 | P64: 0
E65: Bioresources Notional debt | G65: =G$10 -> £m | H65: =SUM(J65:P65) -> 0 | J65: =J64 * $F63 -> 0 | K65: 0 | L65: 0 | M65: 0 | N65: 0 | O65: =O64 * $F63 -> 0 | P65: 0
A67: =A$14 -> 0 | B67: =B$14 -> 0 | C67: =C$14 -> 0 | D67: =D$14 -> 0 | E67: =E$65 -> Bioresources Notional debt | F67: =F$65 -> 0 | G67: £m | H67: 0 | I67: 0 | J67: 0 | K67: 0 | L67: 0 | M67: 0 | N67: 0 | O67: 0 | P67: 0
A68: =InpR!A$56 -> 0 | B68: =InpR!B$56 -> 0 | C68: =InpR!C$56 -> 0 | D68: =InpR!D$56 -> 0 | E68: =InpR!E$56 -> Proportion of notional debt subject to indexation (year average) | F68: =InpR!F$56 -> 0 | G68: =InpR!G$56 -> percentage | H68: =InpR!H$56 -> 0 | I68: =InpR!I$56 -> 0 | J68: =InpR!J$56 -> 0 | K68: =InpR!K$56 -> 0.04 | L68: =InpR!L$56 -> 0.12 | M68: =InpR!M$56 -> 0.2 | N68: =InpR!N$56 -> 0.28 | O68: =InpR!O$56 -> 0.36 | P68: =InpR!P$56 -> 0.44
E69: Bioresources New debt for return | G69: £m | H69: =SUM(J69:O69) -> 0 | J69: =J67 * J68 -> 0 | K69: 0 | L69: 0 | M69: 0 | N69: 0 | O69: 0
E71: =E$65 -> Bioresources Notional debt | F71: =F$65 -> 0 | G71: £m | H71: 0 | I71: 0 | J71: 0 | K71: 0 | L71: 0 | M71: 0 | N71: 0 | O71: 0 | P71: 0
E72: =E$69 -> Bioresources New debt for return | F72: =F$69 -> 0 | G72: £m | H72: 0 | I72: 0 | J72: 0 | K72: 0 | L72: 0 | M72: 0 | N72: 0 | O72: 0 | P72: 0
E73: Bioresources Embedded debt for return | G73: £m | H73: =SUM(J73:O73) -> 0 | J73: =J71 - J72 -> 0 | K73: =K71 - K72 -> 0 | L73: 0 | M73: 0 | N73: 0 | O73: 0 | P73: 0
A75: Dummy
A76: =InpR!A$15 -> 0 | B76: =InpR!B$15 -> 0 | C76: =InpR!C$15 -> 0 | D76: =InpR!D$15 -> 0 | E76: =InpR!E31 -> Dummy RCV year start | F76: =InpR!F$27 -> 0 | G76: =InpR!G$27 -> £m, (CPIH, 2017/18 prices) | H76: =InpR!H$27 -> 0 | I76: =InpR!I$27 -> 0 | J76: =InpR!J$27 -> 0 | K76: =InpR!K31 -> 0 | L76: =InpR!L31 -> 0 | M76: =InpR!M31 -> 0 | N76: =InpR!N31 -> 0 | O76: =InpR!O31 -> 0 | P76: =InpR!P$27 -> 0
A77: =InpR!A$16 -> 0 | B77: =InpR!B$16 -> 0 | C77: =InpR!C$16 -> 0 | D77: =InpR!D$16 -> 0 | E77: =InpR!E32 -> Dummy RCV year end | F77: =InpR!F$28 -> 0 | G77: =InpR!G$28 -> £m, (CPIH, 2017/18 prices) | H77: =InpR!H$28 -> 0 | I77: =InpR!I$28 -> 0 | J77: =InpR!J$28 -> 0 | K77: =InpR!K32 -> 0 | L77: =InpR!L32 -> 0 | M77: =InpR!M32 -> 0 | N77: =InpR!N32 -> 0 | O77: =InpR!O32 -> 0 | P77: =InpR!P$28 -> 0
E78: Dummy asset base for return | G78: £m | J78: =AVERAGE(J76:J77) -> 0 | K78: =AVERAGE(K76:K77) -> 0 | L78: 0 | M78: 0 | N78: 0 | O78: 0 | P78: 0
E80: =InpC!E$55 -> Notional gearing | F80: =InpC!F$55 -> 0.6 | G80: =InpC!G$55 -> percentage
A81: =A$10 -> 0 | B81: =B$10 -> 0 | C81: =C$10 -> 0 | D81: =D$10 -> 0 | E81: =E$78 -> Dummy asset base for return | F81: =F$61 -> 0 | G81: £m | H81: 0 | I81: 0 | J81: 0 | K81: =K78 -> 0 | L81: =L78 -> 0 | M81: 0 | N81: 0 | O81: 0 | P81: 0
E82: Dummy Notional debt | G82: =G$10 -> £m | H82: =SUM(J82:P82) -> 0 | J82: =J81 * $F80 -> 0 | K82: 0 | L82: 0 | M82: 0 | N82: 0 | O82: =O81 * $F80 -> 0 | P82: =P81 * $F80 -> 0
A84: =A$14 -> 0 | B84: =B$14 -> 0 | C84: =C$14 -> 0 | D84: =D$14 -> 0 | E84: =E82 -> Dummy Notional debt | F84: =F$65 -> 0 | G84: £m | H84: 0 | I84: 0 | J84: 0 | K84: =K82 -> 0 | L84: =L82 -> 0 | M84: 0 | N84: 0 | O84: 0 | P84: 0
A85: =InpR!A$56 -> 0 | B85: =InpR!B$56 -> 0 | C85: =InpR!C$56 -> 0 | D85: =InpR!D$56 -> 0 | E85: =InpR!E$56 -> Proportion of notional debt subject to indexation (year average) | F85: =InpR!F$56 -> 0 | G85: =InpR!G$56 -> percentage | H85: =InpR!H$56 -> 0 | I85: =InpR!I$56 -> 0 | J85: =InpR!J$56 -> 0 | K85: =InpR!K$56 -> 0.04 | L85: =InpR!L$56 -> 0.12 | M85: =InpR!M$56 -> 0.2 | N85: =InpR!N$56 -> 0.28 | O85: =InpR!O$56 -> 0.36 | P85: =InpR!P$56 -> 0.44
E86: Dummy New debt for return | G86: £m | H86: =SUM(J86:O86) -> 0 | J86: =J84 * J85 -> 0 | K86: =K84 * K85 -> 0 | L86: =L84 * L85 -> 0 | M86: =M84 * M85 -> 0 | N86: =N84 * N85 -> 0 | O86: =O84 * O85 -> 0
E88: =E82 -> Dummy Notional debt | F88: =F$65 -> 0 | G88: £m | H88: 0 | I88: 0 | J88: 0 | K88: =K82 -> 0 | L88: =L82 -> 0 | M88: 0 | N88: 0 | O88: 0 | P88: 0
E89: =E86 -> Dummy New debt for return | F89: =F$69 -> 0 | G89: £m | H89: 0 | I89: 0 | J89: 0 | K89: =K86 -> 0 | L89: =L86 -> 0 | M89: 0 | N89: 0 | O89: 0 | P89: 0
E90: Dummy Embedded debt for return | G90: £m | H90: =SUM(J90:O90) -> 0 | J90: =J88 - J89 -> 0 | K90: =K88 - K89 -> 0 | L90: 0 | M90: 0 | N90: 0 | O90: 0 | P90: 0

Sheet Cost of Debt
A1: =RIGHT(CELL("filename", $A$1), LEN(CELL("filename", $A$1)) - SEARCH("]", CELL("filename", $A$1))) -> Cost of Debt
J2: =Time!J$22 -> 2020-03-31 | K2: =Time!K$22 -> 2021-03-31 | L2: =Time!L$22 -> 2022-03-31 | M2: =Time!M$22 -> 2023-03-31 | N2: =Time!N$22 -> 2024-03-31 | O2: =Time!O$22 -> 2025-03-31 | P2: =Time!P$22 -> 2026-03-31
J3: =Time!J$58 -> Pre Fcst | K3: =Time!K$58 -> Forecast | L3: =Time!L$58 -> Forecast | M3: =Time!M$58 -> Forecast | N3: =Time!N$58 -> Forecast | O3: =Time!O$58 -> Forecast | P3: =Time!P$58 -> Post-Fcst
E4: =Time!E$86 -> Financial Year Ending | J4: =Time!J$86 -> 2020 | K4: =Time!K$86 -> 2021 | L4: =Time!L$86 -> 2022 | M4: =Time!M$86 -> 2023 | N4: =Time!N$86 -> 2024 | O4: =Time!O$86 -> 2025 | P4: =Time!P$86 -> 2026
E5: =Time!E$10 -> Model column counter | F5: Constant | G5: Unit | H5: Total | J5: =Time!J$10 -> 1 | K5: =Time!K$10 -> 2 | L5: =Time!L$10 -> 3 | M5: =Time!M$10 -> 4 | N5: =Time!N$10 -> 5 | O5: =Time!O$10 -> 6 | P5: =Time!P$10 -> 7
A7: Nominal cost of debt
E8: =Time!E$53 -> Forecast Period Flag | F8: =Time!F$53 -> 0 | G8: =Time!G$53 -> flag | H8: =Time!H$53 -> 5 | I8: =Time!I$53 -> 0 | J8: =Time!J$53 -> 0 | K8: =Time!K$53 -> 1 | L8: =Time!L$53 -> 1 | M8: =Time!M$53 -> 1 | N8: =Time!N$53 -> 1 | O8: =Time!O$53 -> 1 | P8: =Time!P$53 -> 0
E9: =InpR!E$40 -> 1 Year average of iBoxx adjusted for 'outperformance wedge' (base) | F9: =InpR!F$40 -> 0 | G9: =InpR!G$40 -> Percentage | H9: =InpR!H$40 -> 0 | I9: =InpR!I$40 -> 0 | J9: =InpR!J$40 -> 0 | K9: =InpR!K$40 -> 0.02013974363 | L9: =InpR!L$40 -> 0.02296005109 | M9: =InpR!M$40 -> 0.04669417725 | N9: =InpR!N$40 -> 0.05730557786 | O9: =InpR!O$40 -> 0.05805653817 | P9: =InpR!P$40 -> 0
E10: Forecast Period 1 Year average of iBoxx at year end | G10: Percentage | J10: =J8 * J9 -> 0 | K10: 0.02013974363 | L10: 0.02296005109 | M10: 0.04669417725 | N10: 0.05730557786 | O10: 0.05805653817 | P10: 0
E12: =E$10 -> Forecast Period 1 Year average of iBoxx at year end | F12: 0 | G12: Percentage | H12: 0 | I12: 0 | J12: 0 | K12: =K$10 -> 0.02013974363 | L12: 0.02296005109 | M12: 0.04669417725 | N12: 0.05730557786 | O12: 0.05805653817 | P12: 0
E13: =InpR!E58 -> CPIH inflation allowance (long-term assumption) | F13: =InpR!F58 -> 0.02 | G13: =InpR!G58 -> percentage | H13: =InpR!H58 -> 0 | I13: =InpR!I58 -> 0 | J13: =InpR!J58 -> 0 | K13: =InpR!K58 -> 0.02 | L13: =InpR!L58 -> 0.02 | M13: =InpR!M58 -> 0.02 | N13: =InpR!N58 -> 0.02 | O13: =InpR!O58 -> 0.02 | P13: =InpR!P58 -> 0
E14: 1 year real-CPIH average debt cost | G14: Percentage | J14: =(1+J12) / (1+J13) - 1 -> 0 | K14: =(1+K12) / (1+K13) - 1 -> 0.0001370035635 | L14: 0.00290201087 | M14: 0.02617076201 | N14: 0.03657409594 | O14: 0.03731033154 | P14: 0
B16: Real-CPIH average debt cost by year
E17: =E$14 -> 1 year real-CPIH average debt cost | F17: =F$14 -> 0 | G17: Percentage | H17: 0 | I17: 0 | J17: 0 | K17: 0.0001370035635 | L17: 0.00290201087 | M17: 0.02617076201 | N17: 0.03657409594 | O17: 0.03731033154 | P17: 0
E18: =InpR!E$64 -> Average debt cost weighting 2021 | F18: =InpR!F$64 -> 0 | G18: =InpR!G$64 -> Weighting | H18: =InpR!H$64 -> 0 | I18: =InpR!I$64 -> 0 | J18: =InpR!J$64 -> 0 | K18: =InpR!K$64 -> 1 | L18: =InpR!L$64 -> 0 | M18: =InpR!M$64 -> 0 | N18: =InpR!N$64 -> 0 | O18: =InpR!O$64 -> 0 | P18: =InpR!P$64 -> 0
E19: =Time!E$92 -> First modelling period flag | F19: =Time!F$92 -> 0 | G19: =Time!G$92 -> flag | H19: =Time!H$92 -> 0 | I19: =Time!I$92 -> 0 | J19: =Time!J$92 -> 0 | K19: =Time!K$92 -> 1 | L19: =Time!L$92 -> 0 | M19: =Time!M$92 -> 0 | N19: =Time!N$92 -> 0 | O19: =Time!O$92 -> 0 | P19: =Time!P$92 -> 0
E20: 1 year real-CPIH average debt cost 2021 | G20: Percentage | J20: =IFERROR(SUMPRODUCT($J18:J18,$J17:J17) / SUM($J18:J18) * J19,0) -> 0 | K20: =IFERROR(SUMPRODUCT($J18:K18,$J17:K17) / SUM($J18:K18) * K19,0) -> 0.0001370035635 | L20: =IFERROR(SUMPRODUCT($J18:L18,$J17:L17) / SUM($J18:L18) * L19,0) -> 0 | M20: =IFERROR(SUMPRODUCT($J18:M18,$J17:M17) / SUM($J18:M18) * M19,0) -> 0 | N20: =IFERROR(SUMPRODUCT($J18:N18,$J17:N17) / SUM($J18:N18) * N19,0) -> 0 | O20: =IFERROR(SUMPRODUCT($J18:O18,$J17:O17) / SUM($J18:O18) * O19,0) -> 0 | P20: =IFERROR(SUMPRODUCT($J18:P18,$J17:P17) / SUM($J18:P18) * P19,0) -> 0
E22: =E$14 -> 1 year real-CPIH average debt cost | F22: =F$14 -> 0 | G22: Percentage | H22: 0 | I22: 0 | J22: 0 | K22: 0.0001370035635 | L22: 0.00290201087 | M22: 0.02617076201 | N22: 0.03657409594 | O22: 0.03731033154 | P22: 0
E23: =InpR!E$65 -> Average debt cost weighting 2022 | F23: =InpR!F$65 -> 0 | G23: =InpR!G$65 -> Weighting | H23: =InpR!H$65 -> 0 | I23: =InpR!I$65 -> 0 | J23: =InpR!J$65 -> 0 | K23: =InpR!K$65 -> 1 | L23: =InpR!L$65 -> 0.5 | M23: =InpR!M$65 -> 0 | N23: =InpR!N$65 -> 0 | O23: =InpR!O$65 -> 0 | P23: =InpR!P$65 -> 0
E24: =Time!E$96 -> Second modelling period flag | F24: =Time!F$96 -> 0 | G24: =Time!G$96 -> flag | H24: =Time!H$96 -> 0 | I24: =Time!I$96 -> 0 | J24: =Time!J$96 -> 0 | K24: =Time!K$96 -> 0 | L24: =Time!L$96 -> 1 | M24: =Time!M$96 -> 0 | N24: =Time!N$96 -> 0 | O24: =Time!O$96 -> 0 | P24: =Time!P$96 -> 0
E25: 1 year real-CPIH average debt cost 2022 | G25: Percentage | J25: =IFERROR(SUMPRODUCT($J23:J23,$J22:J22) / SUM($J23:J23) * J24,0) -> 0 | K25: =IFERROR(SUMPRODUCT($J23:K23,$J22:K22) / SUM($J23:K23) * K24,0) -> 0 | L25: =IFERROR(SUMPRODUCT($J23:L23,$J22:L22) / SUM($J23:L23) * L24,0) -> 0.001058672666 | M25: =IFERROR(SUMPRODUCT($J23:M23,$J22:M22) / SUM($J23:M23) * M24,0) -> 0 | N25: =IFERROR(SUMPRODUCT($J23:N23,$J22:N22) / SUM($J23:N23) * N24,0) -> 0 | O25: =IFERROR(SUMPRODUCT($J23:O23,$J22:O22) / SUM($J23:O23) * O24,0) -> 0 | P25: =IFERROR(SUMPRODUCT($J23:P23,$J22:P22) / SUM($J23:P23) * P24,0) -> 0
E27: =E$14 -> 1 year real-CPIH average debt cost | F27: =F$14 -> 0 | G27: Percentage | H27: 0 | I27: 0 | J27: 0 | K27: 0.0001370035635 | L27: 0.00290201087 | M27: 0.02617076201 | N27: 0.03657409594 | O27: 0.03731033154 | P27: 0
E28: =InpR!E$66 -> Average debt cost weighting 2023 | F28: =InpR!F$66 -> 0 | G28: =InpR!G$66 -> Weighting | H28: =InpR!H$66 -> 0 | I28: =InpR!I$66 -> 0 | J28: =InpR!J$66 -> 0 | K28: =InpR!K$66 -> 1 | L28: =InpR!L$66 -> 1 | M28: =InpR!M$66 -> 0.5 | N28: =InpR!N$66 -> 0 | O28: =InpR!O$66 -> 0 | P28: =InpR!P$66 -> 0
E29: =Time!E$100 -> Third modelling period flag | F29: =Time!F$100 -> 0 | G29: =Time!G$100 -> flag | H29: =Time!H$100 -> 0 | I29: =Time!I$100 -> 0 | J29: =Time!J$100 -> 0 | K29: =Time!K$100 -> 0 | L29: =Time!L$100 -> 0 | M29: =Time!M$100 -> 1 | N29: =Time!N$100 -> 0 | O29: =Time!O$100 -> 0 | P29: =Time!P$100 -> 0
E30: 1 year real-CPIH average debt cost 2023 | G30: Percentage | J30: =IFERROR(SUMPRODUCT($J28:J28,$J27:J27) / SUM($J28:J28) * J29,0) -> 0 | K30: =IFERROR(SUMPRODUCT($J28:K28,$J27:K27) / SUM($J28:K28) * K29,0) -> 0 | L30: =IFERROR(SUMPRODUCT($J28:L28,$J27:L27) / SUM($J28:L28) * L29,0) -> 0 | M30: =IFERROR(SUMPRODUCT($J28:M28,$J27:M27) / SUM($J28:M28) * M29,0) -> 0.006449758176 | N30: =IFERROR(SUMPRODUCT($J28:N28,$J27:N27) / SUM($J28:N28) * N29,0) -> 0 | O30: =IFERROR(SUMPRODUCT($J28:O28,$J27:O27) / SUM($J28:O28) * O29,0) -> 0 | P30: =IFERROR(SUMPRODUCT($J28:P28,$J27:P27) / SUM($J28:P28) * P29,0) -> 0
E32: =E$14 -> 1 year real-CPIH average debt cost | F32: =F$14 -> 0 | G32: Percentage | H32: 0 | I32: 0 | J32: 0 | K32: 0.0001370035635 | L32: 0.00290201087 | M32: 0.02617076201 | N32: 0.03657409594 | O32: 0.03731033154 | P32: 0
E33: =InpR!E$67 -> Average debt cost weighting 2024 | F33: =InpR!F$67 -> 0 | G33: =InpR!G$67 -> Weighting | H33: =InpR!H$67 -> 0 | I33: =InpR!I$67 -> 0 | J33: =InpR!J$67 -> 0 | K33: =InpR!K$67 -> 1 | L33: =InpR!L$67 -> 1 | M33: =InpR!M$67 -> 1 | N33: =InpR!N$67 -> 0.5 | O33: =InpR!O$67 -> 0 | P33: =InpR!P$67 -> 0
E34: =Time!E$104 -> Fourth modelling period flag | F34: =Time!F$104 -> 0 | G34: =Time!G$104 -> flag | H34: =Time!H$104 -> 0 | I34: =Time!I$104 -> 0 | J34: =Time!J$104 -> 0 | K34: =Time!K$104 -> 0 | L34: =Time!L$104 -> 0 | M34: =Time!M$104 -> 0 | N34: =Time!N$104 -> 1 | O34: =Time!O$104 -> 0 | P34: =Time!P$104 -> 0
E35: 1 year real-CPIH average debt cost 2024 | G35: Percentage | J35: =IFERROR(SUMPRODUCT($J33:J33,$J32:J32) / SUM($J33:J33) * J34,0) -> 0 | K35: =IFERROR(SUMPRODUCT($J33:K33,$J32:K32) / SUM($J33:K33) * K34,0) -> 0 | L35: =IFERROR(SUMPRODUCT($J33:L33,$J32:L32) / SUM($J33:L33) * L34,0) -> 0 | M35: =IFERROR(SUMPRODUCT($J33:M33,$J32:M32) / SUM($J33:M33) * M34,0) -> 0 | N35: =IFERROR(SUMPRODUCT($J33:N33,$J32:N32) / SUM($J33:N33) * N34,0) -> 0.01357052126 | O35: =IFERROR(SUMPRODUCT($J33:O33,$J32:O32) / SUM($J33:O33) * O34,0) -> 0 | P35: =IFERROR(SUMPRODUCT($J33:P33,$J32:P32) / SUM($J33:P33) * P34,0) -> 0
E37: =E$14 -> 1 year real-CPIH average debt cost | F37: =F$14 -> 0 | G37: Percentage | H37: 0 | I37: 0 | J37: 0 | K37: 0.0001370035635 | L37: 0.00290201087 | M37: 0.02617076201 | N37: 0.03657409594 | O37: 0.03731033154 | P37: 0
E38: =InpR!E$68 -> Average debt cost weighting 2025 | F38: =InpR!F$68 -> 0 | G38: =InpR!G$68 -> Weighting | H38: =InpR!H$68 -> 0 | I38: =InpR!I$68 -> 0 | J38: =InpR!J$68 -> 0 | K38: =InpR!K$68 -> 1 | L38: =InpR!L$68 -> 1 | M38: =InpR!M$68 -> 1 | N38: =InpR!N$68 -> 1 | O38: =InpR!O$68 -> 0.5 | P38: =InpR!P$68 -> 0
E39: =Time!E$108 -> Fifth modelling period flag | F39: =Time!F$108 -> 0 | G39: =Time!G$108 -> flag | H39: =Time!H$108 -> 0 | I39: =Time!I$108 -> 0 | J39: =Time!J$108 -> 0 | K39: =Time!K$108 -> 0 | L39: =Time!L$108 -> 0 | M39: =Time!M$108 -> 0 | N39: =Time!N$108 -> 0 | O39: =Time!O$108 -> 1 | P39: =Time!P$108 -> 0
E40: 1 year real-CPIH average debt cost 2025 | G40: Percentage | J40: =IFERROR(SUMPRODUCT($J38:J38,$J37:J37) / SUM($J38:J38) * J39,0) -> 0 | K40: =IFERROR(SUMPRODUCT($J38:K38,$J37:K37) / SUM($J38:K38) * K39,0) -> 0 | L40: =IFERROR(SUMPRODUCT($J38:L38,$J37:L37) / SUM($J38:L38) * L39,0) -> 0 | M40: =IFERROR(SUMPRODUCT($J38:M38,$J37:M37) / SUM($J38:M38) * M39,0) -> 0 | N40: =IFERROR(SUMPRODUCT($J38:N38,$J37:N37) / SUM($J38:N38) * N39,0) -> 0 | O40: =IFERROR(SUMPRODUCT($J38:O38,$J37:O37) / SUM($J38:O38) * O39,0) -> 0.0187642307 | P40: =IFERROR(SUMPRODUCT($J38:P38,$J37:P37) / SUM($J38:P38) * P39,0) -> 0
E43: =E$20 -> 1 year real-CPIH average debt cost 2021 | F43: =F$20 -> 0 | G43: Percentage | H43: 0 | I43: 0 | J43: 0 | K43: 0.0001370035635 | L43: =L$20 -> 0 | M43: 0 | N43: 0 | O43: 0 | P43: 0
E44: =E$25 -> 1 year real-CPIH average debt cost 2022 | F44: =F$25 -> 0 | G44: Percentage | H44: 0 | I44: 0 | J44: 0 | K44: 0 | L44: 0.001058672666 | M44: 0 | N44: 0 | O44: 0 | P44: 0
E45: =E$30 -> 1 year real-CPIH average debt cost 2023 | F45: =F$30 -> 0 | G45: Percentage | H45: 0 | I45: 0 | J45: 0 | K45: 0 | L45: 0 | M45: 0.006449758176 | N45: 0 | O45: 0 | P45: 0
E46: =E$35 -> 1 year real-CPIH average debt cost 2024 | F46: =F$35 -> 0 | G46: Percentage | H46: 0 | I46: 0 | J46: 0 | K46: 0 | L46: 0 | M46: 0 | N46: 0.01357052126 | O46: 0 | P46: 0
E47: =E$40 -> 1 year real-CPIH average debt cost 2025 | F47: =F$40 -> 0 | G47: Percentage | H47: 0 | I47: 0 | J47: 0 | K47: 0 | L47: 0 | M47: 0 | N47: 0 | O47: 0.0187642307 | P47: 0
E48: Extending trailing average rate | G48: Percentage | J48: =SUM(J43:J47) -> 0 | K48: =SUM(K43:K47) -> 0.0001370035635 | L48: 0.001058672666 | M48: 0.006449758176 | N48: 0.01357052126 | O48: 0.0187642307 | P48: 0

Sheet Water resources
A1: =RIGHT(CELL("filename", $A$1), LEN(CELL("filename", $A$1)) - SEARCH("]", CELL("filename", $A$1))) -> Water resources
J2: =Time!J$22 -> 2020-03-31 | K2: =Time!K$22 -> 2021-03-31 | L2: =Time!L$22 -> 2022-03-31 | M2: =Time!M$22 -> 2023-03-31 | N2: =Time!N$22 -> 2024-03-31 | O2: =Time!O$22 -> 2025-03-31 | P2: =Time!P$22 -> 2026-03-31
J3: =Time!J$58 -> Pre Fcst | K3: =Time!K$58 -> Forecast | L3: =Time!L$58 -> Forecast | M3: =Time!M$58 -> Forecast | N3: =Time!N$58 -> Forecast | O3: =Time!O$58 -> Forecast | P3: =Time!P$58 -> Post-Fcst
E4: =Time!E$86 -> Financial Year Ending | J4: =Time!J$86 -> 2020 | K4: =Time!K$86 -> 2021 | L4: =Time!L$86 -> 2022 | M4: =Time!M$86 -> 2023 | N4: =Time!N$86 -> 2024 | O4: =Time!O$86 -> 2025 | P4: =Time!P$86 -> 2026
E5: =Time!E$10 -> Model column counter | F5: Constant | G5: Unit | H5: Total | J5: =Time!J$10 -> 1 | K5: =Time!K$10 -> 2 | L5: =Time!L$10 -> 3 | M5: =Time!M$10 -> 4 | N5: =Time!N$10 -> 5 | O5: =Time!O$10 -> 6 | P5: =Time!P$10 -> 7
A7: COST OF DEBT CALCULATION BASED ON INDEX OUTTURN
E8: Company-specific adjustment flag | F8: =IF(InpC!$F$64="YES",1,0) -> 0 | G8: Flag | K8: =$F$8 -> 0 | L8: =$F$8 -> 0 | M8: 0 | N8: 0 | O8: 0
E9: =InpC!E62 -> Company-specific adjustment (new debt) | F9: =InpC!F62 -> 0 | G9: ='Cost of Debt'!G47 -> Percentage | K9: =$F$9 -> 0 | L9: =$F$9 -> 0 | M9: 0 | N9: 0 | O9: 0
E10: =InpC!E63 -> Company-specific adjustment (embedded debt) | F10: =InpC!$F$63 -> 0 | G10: ='Cost of Debt'!G48 -> Percentage | K10: =$F$10 -> 0 | L10: =$F$10 -> 0 | M10: =$F$10 -> 0 | N10: =$F$10 -> 0 | O10: =$F$10 -> 0
E11: ='Cost of Debt'!E48 -> Extending trailing average rate | F11: ='Cost of Debt'!F48 -> 0 | G11: ='Cost of Debt'!G48 -> Percentage | H11: ='Cost of Debt'!H48 -> 0 | I11: ='Cost of Debt'!I48 -> 0 | J11: ='Cost of Debt'!J48 -> 0 | K11: ='Cost of Debt'!K48 -> 0.0001370035635 | L11: ='Cost of Debt'!L48 -> 0.001058672666 | M11: ='Cost of Debt'!M48 -> 0.006449758176 | N11: ='Cost of Debt'!N48 -> 0.01357052126 | O11: ='Cost of Debt'!O48 -> 0.0187642307 | P11: ='Cost of Debt'!P48 -> 0
E12: Extending trailing average rate (after any CSA adjustments) | G12: Percentage | K12: =K11+(K8*K9) -> 0.0001370035635 | L12: =L11+(L8*L9) -> 0.001058672666 | M12: 0.006449758176 | N12: 0.01357052126 | O12: 0.0187642307 | P12: 0
E13: ='RCV and post 2020 investment'!E18 -> Water Resources New debt for return | F13: ='RCV and post 2020 investment'!F18 -> 0 | G13: ='RCV and post 2020 investment'!G18 -> £m | H13: ='RCV and post 2020 investment'!H18 -> 119.148 | I13: ='RCV and post 2020 investment'!I18 -> 0 | J13: ='RCV and post 2020 investment'!J18 -> 0 | K13: ='RCV and post 2020 investment'!K18 -> 3.24144 | L13: ='RCV and post 2020 investment'!L18 -> 11.16072 | M13: ='RCV and post 2020 investment'!M18 -> 21.4368 | N13: ='RCV and post 2020 investment'!N18 -> 34.7382 | O13: ='RCV and post 2020 investment'!O18 -> 48.57084 | P13: ='RCV and post 2020 investment'!P52 -> 0
E14: Water resources extending trailing average interest cost | G14: £m | H14: =SUM(J14:O14) -> 1.533331743 | J14: =J11 * J13 -> 0 | K14: =K12 * K13 -> 0.0004440888309 | L14: =L12 * L13 -> 0.01181554919 | M14: 0.1382621761 | N14: 0.4714154817 | O14: 0.9113944471 | P14: 0
E16: ='RCV and post 2020 investment'!E22 -> Water Resources Embedded debt for return | F16: ='RCV and post 2020 investment'!F22 -> 0 | G16: ='RCV and post 2020 investment'!G22 -> £m | H16: ='RCV and post 2020 investment'!H22 -> 421.062 | I16: ='RCV and post 2020 investment'!I22 -> 0 | J16: ='RCV and post 2020 investment'!J22 -> 0 | K16: ='RCV and post 2020 investment'!K22 -> 77.79456 | L16: ='RCV and post 2020 investment'!L22 -> 81.84528 | M16: ='RCV and post 2020 investment'!M22 -> 85.7472 | N16: ='RCV and post 2020 investment'!N22 -> 89.3268 | O16: ='RCV and post 2020 investment'!O22 -> 86.34816 | P16: ='RCV and post 2020 investment'!P56 -> 0
E17: =InpR!E$37 -> Allowed sector embedded debt cost (not inc. CSA) - final determination (CPIH real) | F17: =InpR!F$37 -> 0 | G17: =InpR!G$37 -> percentage | H17: =InpR!H$37 -> 0 | I17: =InpR!I$37 -> 0 | J17: =InpR!J$37 -> 0 | K17: =InpR!K$37 -> 0.0242 | L17: =InpR!L$37 -> 0.0242 | M17: =InpR!M$37 -> 0.0242 | N17: =InpR!N$37 -> 0.0242 | O17: =InpR!O$37 -> 0.0242 | P17: =InpR!P$37 -> 0
E18: Allowed sector embedded debt cost (after any CSA adjustments) | K18: =K17+(K8*K10) -> 0.0242 | L18: =L17+(L8*L10) -> 0.0242 | M18: 0.0242 | N18: 0.0242 | O18: 0.0242
E19: Water resources Embedded debt interest cost | G19: £m | H19: =SUM(J19:O19) -> 10.1897004 | J19: =J16 * J17 -> 0 | K19: =K16 * K18 -> 1.882628352 | L19: =L16 * L18 -> 1.980655776 | M19: 2.07508224 | N19: 2.16170856 | O19: 2.089625472 | P19: =P16 * P17 -> 0
E21: Water resources outturn allowed new debt cost (CPIH real) | F21: 0 | G21: Percentage | K21: =K12 -> 0.0001370035635 | L21: =L12 -> 0.001058672666 | M21: 0.006449758176 | N21: 0.01357052126 | O21: 0.0187642307
E22: Water resources allowed embedded debt cost (CPIH real) | F22: 0 | G22: Percentage | K22: =K18 -> 0.0242 | L22: =L18 -> 0.0242 | M22: 0.0242 | N22: 0.0242 | O22: 0.0242 | P22: =P17 -> 0
E23: Ratio of new to embedded debt for outturn cost of debt allowance | F23: 0 | G23: Percentage | K23: =InpR!K56 -> 0.04 | L23: =InpR!L56 -> 0.12 | M23: =InpR!M56 -> 0.2 | N23: =InpR!N56 -> 0.28 | O23: =InpR!O56 -> 0.36
E24: Water resources outturn allowed cost of overall debt (CPIH real) | F24: 0 | G24: Percentage | K24: =(K23*K21)+(1-K23)*K22 -> 0.02323748014 | L24: =(L23*L21)+(1-L23)*L22 -> 0.02142304072 | M24: =(M23*M21)+(1-M23)*M22 -> 0.02064995164 | N24: =(N23*N21)+(1-N23)*N22 -> 0.02122374595 | O24: =(O23*O21)+(1-O23)*O22 -> 0.02224312305
E25: CPIH inflation (long-term assumption) | F25: 0 | G25: Percentage | K25: =InpR!K58 -> 0.02 | L25: =InpR!L58 -> 0.02 | M25: =InpR!M58 -> 0.02 | N25: =InpR!N58 -> 0.02 | O25: =InpR!O58 -> 0.02
E26: Water resources outturn allowed cost of overall debt (Nominal) | F26: 0 | G26: Percentage | K26: =(1+K24)*(1+K25)-1 -> 0.04370222975 | L26: =(1+L24)*(1+L25)-1 -> 0.04185150153 | M26: =(1+M24)*(1+M25)-1 -> 0.04106295067 | N26: =(1+N24)*(1+N25)-1 -> 0.04164822087 | O26: =(1+O24)*(1+O25)-1 -> 0.04268798551
E28: =E$14 -> Water resources extending trailing average interest cost | F28: 0 | G28: £m | H28: 1.533331743 | I28: 0 | J28: 0 | K28: 0.0004440888309 | L28: 0.01181554919 | M28: 0.1382621761 | N28: 0.4714154817 | O28: 0.9113944471 | P28: 0
E29: =E$19 -> Water resources Embedded debt interest cost | F29: =F$19 -> 0 | G29: =G$19 -> £m | H29: 10.1897004 | I29: 0 | J29: 0 | K29: 1.882628352 | L29: 1.980655776 | M29: 2.07508224 | N29: 2.16170856 | O29: 2.089625472 | P29: 0
E30: Water resources outturn debt allowance | G30: £m | H30: =SUM(J30:O30) -> 11.72303214 | J30: =SUM(J28:J29) -> 0 | K30: =SUM(K28:K29) -> 1.883072441 | L30: 1.992471325 | M30: 2.213344416 | N30: 2.633124042 | O30: 3.001019919 | P30: 0
A32: FD ALLOWANCE
E33: =InpC!E49 -> Notional % of 'new' debt over period | F33: =InpC!F49 -> 0.2 | G33: =InpC!G49 -> percentage | K33: =$F$33 -> 0.2 | L33: =$F$33 -> 0.2 | M33: 0.2 | N33: 0.2 | O33: 0.2 | P33: =InpR!P36 -> 0
E34: =InpR!E36 -> Allowed sector new debt cost (not inc. CSA) - final determination (CPIH real) | F34: =InpR!F36 -> 0 | G34: =InpR!G36 -> percentage | H34: =InpR!H36 -> 0 | I34: =InpR!I36 -> 0 | J34: =InpR!J36 -> 0 | K34: =InpR!K36 -> 0.0053 | L34: =InpR!L36 -> 0.0053 | M34: =InpR!M36 -> 0.0053 | N34: =InpR!N36 -> 0.0053 | O34: =InpR!O36 -> 0.0053 | P34: =P13 -> 0
E35: Allowed sector cost of new debt (after any CSA adjustments) | K35: =K34+(K8*K9) -> 0.0053 | L35: =L34+(L8*L9) -> 0.0053 | M35: =M34+(M8*M9) -> 0.0053 | N35: =N34+(N8*N9) -> 0.0053 | O35: =O34+(O8*O9) -> 0.0053
E36: =InpR!E37 -> Allowed sector embedded debt cost (not inc. CSA) - final determination (CPIH real) | F36: =InpR!F37 -> 0 | G36: =InpR!G37 -> percentage | H36: =InpR!H37 -> 0 | I36: =InpR!I37 -> 0 | J36: =InpR!J37 -> 0 | K36: =InpR!K37 -> 0.0242 | L36: =InpR!L37 -> 0.0242 | M36: =InpR!M37 -> 0.0242 | N36: =InpR!N37 -> 0.0242 | O36: =InpR!O37 -> 0.0242 | P36: =P33*P34 -> 0
E37: Allowed sector cost of embedded debt (after any CSA adjustments) | K37: =K36+(K8*K10) -> 0.0242 | L37: =L36+(L8*L10) -> 0.0242 | M37: =M36+(M8*M10) -> 0.0242 | N37: =N36+(N8*N10) -> 0.0242 | O37: =O36+(O8*O10) -> 0.0242
E38: ='RCV and post 2020 investment'!E14 -> Water Resources Notional debt | F38: ='RCV and post 2020 investment'!F14 -> 0 | G38: ='RCV and post 2020 investment'!G14 -> £m | H38: ='RCV and post 2020 investment'!H14 -> 540.21 | I38: ='RCV and post 2020 investment'!I14 -> 0 | J38: ='RCV and post 2020 investment'!J14 -> 0 | K38: ='RCV and post 2020 investment'!K14 -> 81.036 | L38: ='RCV and post 2020 investment'!L14 -> 93.006 | M38: ='RCV and post 2020 investment'!M14 -> 107.184 | N38: ='RCV and post 2020 investment'!N14 -> 124.065 | O38: ='RCV and post 2020 investment'!O14 -> 134.919
E39: Water resources initial cost of debt allowance | G39: £m | I39: =I$14 -> 0 | K39: =(K38 * $K33 * K35) + (K38 * (1-$K33) * K37) -> 1.65475512 | L39: =(L38 * $K33 * L35) + (L38 * (1-$K33) * L37) -> 1.89918252 | M39: 2.18869728 | N39: 2.5334073 | O39: 2.75504598 | P39: =(P38 * $F33 * P34) + (P38 * (1-$F33) * P36) -> 0
P40: =P14 -> 0
A41: RECONCILIATION ADJUSTMENTS | P41: =P39-P40 -> 0
E42: =E$30 -> Water resources outturn debt allowance | F42: =F$30 -> 0 | G42: £m | H42: 11.72303214 | I42: 0 | J42: 0 | K42: =K$30 -> 1.883072441 | L42: 1.992471325 | M42: 2.213344416 | N42: 2.633124042 | O42: 3.001019919
E43: =E$39 -> Water resources initial cost of debt allowance | F43: =F$39 -> 0 | G43: £m | H43: 0 | I43: 0 | J43: 0 | K43: 1.65475512 | L43: 1.89918252 | M43: 2.18869728 | N43: 2.5334073 | O43: 2.75504598
E44: Reconciliation (in-year values) - Water resources | G44: £m | H44: =SUM(J44:O44) -> 0.6919439429 | J44: =J42-J43 -> 0 | K44: 0.2283173208 | L44: 0.09328880519 | M44: 0.02464713606 | N44: 0.09971674169 | O44: 0.2459739391
E46: =InpC!E$59 -> PV base date | F46: =InpC!F$59 -> 2025-03-31 | G46: =InpC!G$59 -> date
E47: =InpC!E$60 -> Days in a year | F47: =InpC!F$60 -> 365 | G47: =InpC!G$60 -> days
E48: =Time!E$22 -> Model Period END | F48: =Time!F$22 -> 0 | G48: =Time!G$22 -> date | H48: =Time!H$22 -> 00:00:00 | I48: =Time!I$22 -> 00:00:00 | J48: =Time!J$22 -> 2020-03-31 | K48: =Time!K$22 -> 2021-03-31 | L48: =Time!L$22 -> 2022-03-31 | M48: =Time!M$22 -> 2023-03-31 | N48: =Time!N$22 -> 2024-03-31 | O48: =Time!O$22 -> 2025-03-31 | P48: =Time!P$22 -> 2026-03-31
E49: Years from valuation date - Water resources | G49: years | J49: =( ( J48 - $F46 ) / $F47 ) * -1 -> 5.002739726 | K49: 4.002739726 | L49: 3.002739726 | M49: 2.002739726 | N49: 1 | O49: 0
E51: =InpC!E54 -> PR19 appointee allowed return on capital (CPIH-deflated using long-term assumption) | F51: =InpC!F54 -> 0.0296 | G51: =InpC!G54 -> percentage | K51: =$F$51 -> 0.0296 | L51: =$F$51 -> 0.0296 | M51: 0.0296 | N51: 0.0296 | O51: 0.0296
E52: =E$49 -> Years from valuation date - Water resources | F52: =F$49 -> 0 | G52: years | H52: 0 | I52: 0 | J52: 5.002739726 | K52: 4.002739726 | L52: 3.002739726 | M52: 2.002739726 | N52: 1 | O52: 0
E53: Discount factor - Water resources | G53: Factor | J53: =(1+$F51) ^J52 -> 1.157117276 | K53: 1.123851278 | L53: 1.091541646 | M53: 1.060160883 | N53: 1.0296 | O53: 1
E55: =E$44 -> Reconciliation (in-year values) - Water resources | F55: =F$44 -> 0 | G55: £m | H55: 0.6919439429 | I55: 0 | J55: 0 | K55: 0.2283173208 | L55: 0.09328880519 | M55: 0.02464713606 | N55: 0.09971674169 | O55: 0.2459739391
E56: =E$53 -> Discount factor - Water resources | F56: =F$53 -> 0 | G56: Factor | H56: 0 | I56: 0 | J56: 1.157117276 | K56: 1.123851278 | L56: 1.091541646 | M56: 1.060160883 | N56: 1.0296 | O56: 1
E57: Discounted reconciliation (in-year values) Water resources | G57: £m | K57: =K56*K55 -> 0.2565947129 | L57: =L56*L55 -> 0.1018286159 | M57: =M56*M55 -> 0.02612992954 | N57: =N56*N55 -> 0.1026683572 | O57: =O56*O55 -> 0.2459739391
E59: =E$57 -> Discounted reconciliation (in-year values) Water resources | F59: =F$57 -> 0 | G59: £m | H59: 0 | I59: 0 | J59: 0 | K59: 0.2565947129 | L59: 0.1018286159 | M59: 0.02612992954 | N59: 0.1026683572 | O59: 0.2459739391
E60: Total value of reconciliation (31 March 2025 present values): Water resources | G60: £m | H60: =SUM(K59:O59) -> 0.7331955547

Sheet Water network +
A1: =RIGHT(CELL("filename", $A$1), LEN(CELL("filename", $A$1)) - SEARCH("]", CELL("filename", $A$1))) -> Water network +
J2: =Time!J$22 -> 2020-03-31 | K2: =Time!K$22 -> 2021-03-31 | L2: =Time!L$22 -> 2022-03-31 | M2: =Time!M$22 -> 2023-03-31 | N2: =Time!N$22 -> 2024-03-31 | O2: =Time!O$22 -> 2025-03-31 | P2: =Time!P$22 -> 2026-03-31
J3: =Time!J$58 -> Pre Fcst | K3: =Time!K$58 -> Forecast | L3: =Time!L$58 -> Forecast | M3: =Time!M$58 -> Forecast | N3: =Time!N$58 -> Forecast | O3: =Time!O$58 -> Forecast | P3: =Time!P$58 -> Post-Fcst
E4: =Time!E$86 -> Financial Year Ending | J4: =Time!J$86 -> 2020 | K4: =Time!K$86 -> 2021 | L4: =Time!L$86 -> 2022 | M4: =Time!M$86 -> 2023 | N4: =Time!N$86 -> 2024 | O4: =Time!O$86 -> 2025 | P4: =Time!P$86 -> 2026
E5: =Time!E$10 -> Model column counter | F5: Constant | G5: Unit | H5: Total | J5: =Time!J$10 -> 1 | K5: =Time!K$10 -> 2 | L5: =Time!L$10 -> 3 | M5: =Time!M$10 -> 4 | N5: =Time!N$10 -> 5 | O5: =Time!O$10 -> 6 | P5: =Time!P$10 -> 7
A7: COST OF DEBT CALCULATION BASED ON INDEX OUTTURN
E8: Company-specific adjustment flag | F8: =IF(InpC!$F$65="YES",1,0) -> 0 | G8: Flag | K8: =$F$8 -> 0 | L8: =$F$8 -> 0 | M8: 0 | N8: 0 | O8: 0
E9: =InpC!E62 -> Company-specific adjustment (new debt) | F9: =InpC!F62 -> 0 | G9: ='Cost of Debt'!G47 -> Percentage | K9: =$F$9 -> 0 | L9: =$F$9 -> 0 | M9: 0 | N9: 0 | O9: 0
E10: =InpC!E63 -> Company-specific adjustment (embedded debt) | F10: =InpC!$F$63 -> 0 | G10: ='Cost of Debt'!G48 -> Percentage | K10: =$F$10 -> 0 | L10: =$F$10 -> 0 | M10: =$F$10 -> 0 | N10: =$F$10 -> 0 | O10: =$F$10 -> 0
E11: ='Cost of Debt'!E48 -> Extending trailing average rate | F11: ='Cost of Debt'!F48 -> 0 | G11: ='Cost of Debt'!G48 -> Percentage | H11: ='Cost of Debt'!H48 -> 0 | I11: ='Cost of Debt'!I48 -> 0 | J11: ='Cost of Debt'!J48 -> 0 | K11: ='Cost of Debt'!K48 -> 0.0001370035635 | L11: ='Cost of Debt'!L48 -> 0.001058672666 | M11: ='Cost of Debt'!M48 -> 0.006449758176 | N11: ='Cost of Debt'!N48 -> 0.01357052126 | O11: ='Cost of Debt'!O48 -> 0.0187642307 | P11: ='Cost of Debt'!P48 -> 0
E12: Extending trailing average rate (after any CSA adjustments) | G12: Percentage | K12: =K11+(K8*K9) -> 0.0001370035635 | L12: =L11+(L8*L9) -> 0.001058672666 | M12: 0.006449758176 | N12: 0.01357052126 | O12: 0.0187642307 | P12: 0
E13: ='RCV and post 2020 investment'!E35 -> Water Network Plus New debt for return | F13: ='RCV and post 2020 investment'!F35 -> 0 | G13: ='RCV and post 2020 investment'!G35 -> £m | H13: ='RCV and post 2020 investment'!H35 -> 715.3062 | I13: ='RCV and post 2020 investment'!I35 -> 0 | J13: ='RCV and post 2020 investment'!J35 -> 0 | K13: ='RCV and post 2020 investment'!K35 -> 25.65048 | L13: ='RCV and post 2020 investment'!L35 -> 81.10296 | M13: ='RCV and post 2020 investment'!M35 -> 141.183 | N13: ='RCV and post 2020 investment'!N35 -> 203.0322 | O13: ='RCV and post 2020 investment'!O35 -> 264.33756 | P13: ='RCV and post 2020 investment'!P35 -> 0
E14: Water network + extending trailing average interest cost | G14: £m | H14: =SUM(J14:O14) -> 8.715315648 | J14: =J11 * J13 -> 0 | K14: =K12 * K13 -> 0.003514207165 | L14: =L12 * L13 -> 0.08586148685 | M14: 0.9105962085 | N14: 2.755252787 | O14: 4.960090959 | P14: 0
E16: ='RCV and post 2020 investment'!E39 -> Water Network Plus Embedded debt for return | F16: ='RCV and post 2020 investment'!F39 -> 0 | G16: ='RCV and post 2020 investment'!G39 -> £m | H16: ='RCV and post 2020 investment'!H39 -> 2767.1148 | I16: ='RCV and post 2020 investment'!I39 -> 0 | J16: ='RCV and post 2020 investment'!J39 -> 0 | K16: ='RCV and post 2020 investment'!K39 -> 615.61152 | L16: ='RCV and post 2020 investment'!L39 -> 594.75504 | M16: ='RCV and post 2020 investment'!M39 -> 564.732 | N16: ='RCV and post 2020 investment'!N39 -> 522.0828 | O16: ='RCV and post 2020 investment'!O39 -> 469.93344 | P16: ='RCV and post 2020 investment'!P56 -> 0
E17: =InpR!E$37 -> Allowed sector embedded debt cost (not inc. CSA) - final determination (CPIH real) | F17: =InpR!F$37 -> 0 | G17: =InpR!G$37 -> percentage | H17: =InpR!H$37 -> 0 | I17: =InpR!I$37 -> 0 | J17: =InpR!J$37 -> 0 | K17: =InpR!K$37 -> 0.0242 | L17: =InpR!L$37 -> 0.0242 | M17: =InpR!M$37 -> 0.0242 | N17: =InpR!N$37 -> 0.0242 | O17: =InpR!O$37 -> 0.0242 | P17: =InpR!P$37 -> 0
E18: Allowed sector embedded debt cost (after any CSA adjustments) | K18: =K17+(K8*K10) -> 0.0242 | L18: =L17+(L8*L10) -> 0.0242 | M18: 0.0242 | N18: 0.0242 | O18: 0.0242
E19: Water network + Embedded debt interest cost | G19: £m | H19: =SUM(J19:O19) -> 66.96417816 | J19: =J16 * J17 -> 0 | K19: =K16 * K18 -> 14.89779878 | L19: =L16 * L18 -> 14.39307197 | M19: 13.6665144 | N19: 12.63440376 | O19: 11.37238925 | P19: =P16 * P17 -> 0
E21: Water network + outturn allowed new debt cost (CPIH real) | F21: 0 | G21: Percentage | K21: =K12 -> 0.0001370035635 | L21: =L12 -> 0.001058672666 | M21: 0.006449758176 | N21: 0.01357052126 | O21: 0.0187642307
E22: Water network + allowed embedded debt cost (CPIH real) | F22: 0 | G22: Percentage | K22: =K18 -> 0.0242 | L22: =L18 -> 0.0242 | M22: 0.0242 | N22: 0.0242 | O22: 0.0242 | P22: =P17 -> 0
E23: Ratio of new to embedded debt for outturn cost of debt allowance | F23: 0 | G23: Percentage | K23: =InpR!K56 -> 0.04 | L23: =InpR!L56 -> 0.12 | M23: =InpR!M56 -> 0.2 | N23: =InpR!N56 -> 0.28 | O23: =InpR!O56 -> 0.36
E24: Water network + outturn allowed cost of overall debt (CPIH real) | F24: 0 | G24: Percentage | K24: =(K23*K21)+(1-K23)*K22 -> 0.02323748014 | L24: =(L23*L21)+(1-L23)*L22 -> 0.02142304072 | M24: =(M23*M21)+(1-M23)*M22 -> 0.02064995164 | N24: =(N23*N21)+(1-N23)*N22 -> 0.02122374595 | O24: =(O23*O21)+(1-O23)*O22 -> 0.02224312305
E25: CPIH inflation (long-term assumption) | F25: 0 | G25: Percentage | K25: =InpR!K58 -> 0.02 | L25: =InpR!L58 -> 0.02 | M25: =InpR!M58 -> 0.02 | N25: =InpR!N58 -> 0.02 | O25: =InpR!O58 -> 0.02
E26: Water network + outturn allowed cost of overall debt (Nominal) | F26: 0 | G26: Percentage | K26: =(1+K24)*(1+K25)-1 -> 0.04370222975 | L26: =(1+L24)*(1+L25)-1 -> 0.04185150153 | M26: =(1+M24)*(1+M25)-1 -> 0.04106295067 | N26: =(1+N24)*(1+N25)-1 -> 0.04164822087 | O26: =(1+O24)*(1+O25)-1 -> 0.04268798551
E28: =E$14 -> Water network + extending trailing average interest cost | F28: 0 | G28: £m | H28: 8.715315648 | I28: 0 | J28: 0 | K28: 0.003514207165 | L28: 0.08586148685 | M28: 0.9105962085 | N28: 2.755252787 | O28: 4.960090959 | P28: 0
E29: =E$19 -> Water network + Embedded debt interest cost | F29: =F$19 -> 0 | G29: =G$19 -> £m | H29: 66.96417816 | I29: 0 | J29: 0 | K29: 14.89779878 | L29: 14.39307197 | M29: 13.6665144 | N29: 12.63440376 | O29: 11.37238925 | P29: 0
E30: Water network + outturn debt allowance | G30: £m | H30: =SUM(J30:O30) -> 75.67949381 | J30: =SUM(J28:J29) -> 0 | K30: 14.90131299 | L30: 14.47893345 | M30: 14.57711061 | N30: 15.38965655 | O30: 16.33248021 | P30: 0
A32: FD ALLOWANCE
E33: =InpC!E49 -> Notional % of 'new' debt over period | F33: =InpC!F49 -> 0.2 | G33: =InpC!G49 -> percentage | K33: =$F$33 -> 0.2 | L33: =$F$33 -> 0.2 | M33: 0.2 | N33: 0.2 | O33: 0.2 | P33: =InpR!P36 -> 0
E34: =InpR!E36 -> Allowed sector new debt cost (not inc. CSA) - final determination (CPIH real) | F34: =InpR!F36 -> 0 | G34: =InpR!G36 -> percentage | H34: =InpR!H36 -> 0 | I34: =InpR!I36 -> 0 | J34: =InpR!J36 -> 0 | K34: =InpR!K36 -> 0.0053 | L34: =InpR!L36 -> 0.0053 | M34: =InpR!M36 -> 0.0053 | N34: =InpR!N36 -> 0.0053 | O34: =InpR!O36 -> 0.0053 | P34: =P13 -> 0
E35: Allowed sector cost of new debt (after any CSA adjustments) | K35: =K34+(K8*K9) -> 0.0053 | L35: =L34+(L8*L9) -> 0.0053 | M35: =M34+(M8*M9) -> 0.0053 | N35: =N34+(N8*N9) -> 0.0053 | O35: =O34+(O8*O9) -> 0.0053
E36: =InpR!E37 -> Allowed sector embedded debt cost (not inc. CSA) - final determination (CPIH real) | F36: =InpR!F37 -> 0 | G36: =InpR!G37 -> percentage | H36: =InpR!H37 -> 0 | I36: =InpR!I37 -> 0 | J36: =InpR!J37 -> 0 | K36: =InpR!K37 -> 0.0242 | L36: =InpR!L37 -> 0.0242 | M36: =InpR!M37 -> 0.0242 | N36: =InpR!N37 -> 0.0242 | O36: =InpR!O37 -> 0.0242 | P36: =P33*P34 -> 0
E37: Allowed sector cost of embedded debt (after any CSA adjustments) | K37: =K36+(K8*K10) -> 0.0242 | L37: =L36+(L8*L10) -> 0.0242 | M37: =M36+(M8*M10) -> 0.0242 | N37: =N36+(N8*N10) -> 0.0242 | O37: =O36+(O8*O10) -> 0.0242
E38: ='RCV and post 2020 investment'!E31 -> Water Network Plus Notional debt | F38: ='RCV and post 2020 investment'!F31 -> 0 | G38: ='RCV and post 2020 investment'!G31 -> £m | H38: ='RCV and post 2020 investment'!H31 -> 3482.421 | I38: ='RCV and post 2020 investment'!I31 -> 0 | J38: ='RCV and post 2020 investment'!J31 -> 0 | K38: ='RCV and post 2020 investment'!K31 -> 641.262 | L38: ='RCV and post 2020 investment'!L31 -> 675.858 | M38: ='RCV and post 2020 investment'!M31 -> 705.915 | N38: ='RCV and post 2020 investment'!N31 -> 725.115 | O38: ='RCV and post 2020 investment'!O31 -> 734.271
E39: Water network + initial cost of debt allowance | G39: £m | I39: =I$14 -> 0 | K39: =(K38 * $K33 * K35) + (K38 * (1-$K33) * K37) -> 13.09457004 | L39: =(L38 * $K33 * L35) + (L38 * (1-$K33) * L37) -> 13.80102036 | M39: 14.4147843 | N39: 14.8068483 | O39: 14.99381382 | P39: =(P38 * $F33 * P34) + (P38 * (1-$F33) * P36) -> 0
P40: =P14 -> 0
A41: RECONCILIATION ADJUSTMENTS | P41: =P39-P40 -> 0
E42: =E$30 -> Water network + outturn debt allowance | F42: =F$30 -> 0 | G42: £m | H42: 75.67949381 | I42: 0 | J42: 0 | K42: 14.90131299 | L42: 14.47893345 | M42: 14.57711061 | N42: 15.38965655 | O42: 16.33248021
E43: =E$39 -> Water network + initial cost of debt allowance | F43: =F$39 -> 0 | G43: £m | H43: 0 | I43: 0 | J43: 0 | K43: 13.09457004 | L43: 13.80102036 | M43: 14.4147843 | N43: 14.8068483 | O43: 14.99381382
E44: Reconciliation (in-year values) - Water network + | G44: £m | H44: =SUM(J44:O44) -> 4.568456988 | J44: =J42-J43 -> 0 | K44: 1.806742951 | L44: 0.6779130948 | M44: 0.1623263085 | N44: 0.5828082469 | O44: 1.338666387
E46: =InpC!E$59 -> PV base date | F46: =InpC!F$59 -> 2025-03-31 | G46: =InpC!G$59 -> date
E47: =InpC!E$60 -> Days in a year | F47: =InpC!F$60 -> 365 | G47: =InpC!G$60 -> days
E48: =Time!E$22 -> Model Period END | F48: =Time!F$22 -> 0 | G48: =Time!G$22 -> date | H48: =Time!H$22 -> 00:00:00 | I48: =Time!I$22 -> 00:00:00 | J48: =Time!J$22 -> 2020-03-31 | K48: =Time!K$22 -> 2021-03-31 | L48: =Time!L$22 -> 2022-03-31 | M48: =Time!M$22 -> 2023-03-31 | N48: =Time!N$22 -> 2024-03-31 | O48: =Time!O$22 -> 2025-03-31 | P48: =Time!P$22 -> 2026-03-31
E49: Years from valuation date - Water network + | G49: years | J49: =( ( J48 - $F46 ) / $F47 ) * -1 -> 5.002739726 | K49: 4.002739726 | L49: 3.002739726 | M49: 2.002739726 | N49: 1 | O49: 0
E51: =InpC!E54 -> PR19 appointee allowed return on capital (CPIH-deflated using long-term assumption) | F51: =InpC!F54 -> 0.0296 | G51: =InpC!G54 -> percentage | K51: =$F$51 -> 0.0296 | L51: =$F$51 -> 0.0296 | M51: 0.0296 | N51: 0.0296 | O51: 0.0296
E52: =E$49 -> Years from valuation date - Water network + | F52: =F$49 -> 0 | G52: years | H52: 0 | I52: 0 | J52: 5.002739726 | K52: 4.002739726 | L52: 3.002739726 | M52: 2.002739726 | N52: 1 | O52: 0
E53: Discount factor - Water network + | G53: Factor | J53: =(1+$F51) ^J52 -> 1.157117276 | K53: 1.123851278 | L53: 1.091541646 | M53: 1.060160883 | N53: 1.0296 | O53: 1
E55: =E$44 -> Reconciliation (in-year values) - Water network + | F55: =F$44 -> 0 | G55: £m | H55: 4.568456988 | I55: 0 | J55: 0 | K55: 1.806742951 | L55: 0.6779130948 | M55: 0.1623263085 | N55: 0.5828082469 | O55: 1.338666387
E56: =E$53 -> Discount factor - Water network + | F56: =F$53 -> 0 | G56: Factor | H56: 0 | I56: 0 | J56: 1.157117276 | K56: 1.123851278 | L56: 1.091541646 | M56: 1.060160883 | N56: 1.0296 | O56: 1
E57: Discounted reconciliation (in-year values) Water network + | G57: £m | K57: =K56*K55 -> 2.030510375 | L57: =L56*L55 -> 0.7399703751 | M57: =M56*M55 -> 0.1720920027 | N57: =N56*N55 -> 0.600059371 | O57: =O56*O55 -> 1.338666387
E59: =E$57 -> Discounted reconciliation (in-year values) Water network + | F59: =F$57 -> 0 | G59: £m | H59: 0 | I59: 0 | J59: 0 | K59: 2.030510375 | L59: 0.7399703751 | M59: 0.1720920027 | N59: 0.600059371 | O59: 1.338666387
E60: Total value of reconciliation (31 March 2025 present values): Water network + | G60: £m | H60: =SUM(K59:O59) -> 4.881298511

Sheet Wastewater network +
A1: =RIGHT(CELL("filename", $A$1), LEN(CELL("filename", $A$1)) - SEARCH("]", CELL("filename", $A$1))) -> Wastewater network +
J2: =Time!J$22 -> 2020-03-31 | K2: =Time!K$22 -> 2021-03-31 | L2: =Time!L$22 -> 2022-03-31 | M2: =Time!M$22 -> 2023-03-31 | N2: =Time!N$22 -> 2024-03-31 | O2: =Time!O$22 -> 2025-03-31 | P2: =Time!P$22 -> 2026-03-31
J3: =Time!J$58 -> Pre Fcst | K3: =Time!K$58 -> Forecast | L3: =Time!L$58 -> Forecast | M3: =Time!M$58 -> Forecast | N3: =Time!N$58 -> Forecast | O3: =Time!O$58 -> Forecast | P3: =Time!P$58 -> Post-Fcst
E4: =Time!E$86 -> Financial Year Ending | J4: =Time!J$86 -> 2020 | K4: =Time!K$86 -> 2021 | L4: =Time!L$86 -> 2022 | M4: =Time!M$86 -> 2023 | N4: =Time!N$86 -> 2024 | O4: =Time!O$86 -> 2025 | P4: =Time!P$86 -> 2026
E5: =Time!E$10 -> Model column counter | F5: Constant | G5: Unit | H5: Total | J5: =Time!J$10 -> 1 | K5: =Time!K$10 -> 2 | L5: =Time!L$10 -> 3 | M5: =Time!M$10 -> 4 | N5: =Time!N$10 -> 5 | O5: =Time!O$10 -> 6 | P5: =Time!P$10 -> 7
A7: COST OF DEBT CALCULATION BASED ON INDEX OUTTURN
E8: Company-specific adjustment flag | F8: =IF(InpC!$F$65="YES",1,0) -> 0 | G8: Flag | K8: =$F$8 -> 0 | L8: =$F$8 -> 0 | M8: 0 | N8: 0 | O8: 0
E9: =InpC!E62 -> Company-specific adjustment (new debt) | F9: =InpC!F62 -> 0 | G9: ='Cost of Debt'!G47 -> Percentage | K9: =$F$9 -> 0 | L9: =$F$9 -> 0 | M9: 0 | N9: 0 | O9: 0
E10: =InpC!E63 -> Company-specific adjustment (embedded debt) | F10: =InpC!$F$63 -> 0 | G10: ='Cost of Debt'!G48 -> Percentage | K10: =$F$10 -> 0 | L10: =$F$10 -> 0 | M10: =$F$10 -> 0 | N10: =$F$10 -> 0 | O10: =$F$10 -> 0
E11: ='Cost of Debt'!E48 -> Extending trailing average rate | F11: ='Cost of Debt'!F48 -> 0 | G11: ='Cost of Debt'!G48 -> Percentage | H11: ='Cost of Debt'!H48 -> 0 | I11: ='Cost of Debt'!I48 -> 0 | J11: ='Cost of Debt'!J48 -> 0 | K11: ='Cost of Debt'!K48 -> 0.0001370035635 | L11: ='Cost of Debt'!L48 -> 0.001058672666 | M11: ='Cost of Debt'!M48 -> 0.006449758176 | N11: ='Cost of Debt'!N48 -> 0.01357052126 | O11: ='Cost of Debt'!O48 -> 0.0187642307 | P11: ='Cost of Debt'!P48 -> 0
E12: Extending trailing average rate (after any CSA adjustments) | G12: Percentage | K12: =K11+(K8*K9) -> 0.0001370035635 | L12: =L11+(L8*L9) -> 0.001058672666 | M12: 0.006449758176 | N12: 0.01357052126 | O12: 0.0187642307 | P12: 0
E13: ='RCV and post 2020 investment'!E52 -> Wastewater Network Plus New debt for return | F13: ='RCV and post 2020 investment'!F52 -> 0 | G13: ='RCV and post 2020 investment'!G52 -> £m | H13: ='RCV and post 2020 investment'!H52 -> 0 | I13: ='RCV and post 2020 investment'!I52 -> 0 | J13: ='RCV and post 2020 investment'!J52 -> 0 | K13: ='RCV and post 2020 investment'!K52 -> 0 | L13: ='RCV and post 2020 investment'!L52 -> 0 | M13: ='RCV and post 2020 investment'!M52 -> 0 | N13: ='RCV and post 2020 investment'!N52 -> 0 | O13: ='RCV and post 2020 investment'!O52 -> 0 | P13: ='RCV and post 2020 investment'!P52 -> 0
E14: Wastewater network + extending trailing average interest cost | G14: £m | H14: =SUM(J14:O14) -> 0 | J14: =J11 * J13 -> 0 | K14: =K12 * K13 -> 0 | L14: =L12 * L13 -> 0 | M14: 0 | N14: 0 | O14: 0 | P14: 0
E16: ='RCV and post 2020 investment'!E56 -> Wastewater Network Plus Embedded debt for return | F16: ='RCV and post 2020 investment'!F56 -> 0 | G16: ='RCV and post 2020 investment'!G56 -> £m | H16: ='RCV and post 2020 investment'!H56 -> 0 | I16: ='RCV and post 2020 investment'!I56 -> 0 | J16: ='RCV and post 2020 investment'!J56 -> 0 | K16: ='RCV and post 2020 investment'!K56 -> 0 | L16: ='RCV and post 2020 investment'!L56 -> 0 | M16: ='RCV and post 2020 investment'!M56 -> 0 | N16: ='RCV and post 2020 investment'!N56 -> 0 | O16: ='RCV and post 2020 investment'!O56 -> 0 | P16: ='RCV and post 2020 investment'!P56 -> 0
E17: =InpR!E$37 -> Allowed sector embedded debt cost (not inc. CSA) - final determination (CPIH real) | F17: =InpR!F$37 -> 0 | G17: =InpR!G$37 -> percentage | H17: =InpR!H$37 -> 0 | I17: =InpR!I$37 -> 0 | J17: =InpR!J$37 -> 0 | K17: =InpR!K$37 -> 0.0242 | L17: =InpR!L$37 -> 0.0242 | M17: =InpR!M$37 -> 0.0242 | N17: =InpR!N$37 -> 0.0242 | O17: =InpR!O$37 -> 0.0242 | P17: =InpR!P$37 -> 0
E18: Allowed sector embedded debt cost (after any CSA adjustments) | K18: =K17+(K8*K10) -> 0.0242 | L18: =L17+(L8*L10) -> 0.0242 | M18: 0.0242 | N18: 0.0242 | O18: 0.0242
E19: Wastewater network + Embedded debt interest cost | G19: £m | H19: =SUM(J19:O19) -> 0 | J19: =J16 * J17 -> 0 | K19: =K16 * K18 -> 0 | L19: =L16 * L18 -> 0 | M19: 0 | N19: 0 | O19: 0 | P19: =P16 * P17 -> 0
E21: Wastewater network + outturn allowed new debt cost (CPIH real) | F21: 0 | G21: Percentage | K21: =K12 -> 0.0001370035635 | L21: =L12 -> 0.001058672666 | M21: 0.006449758176 | N21: 0.01357052126 | O21: 0.0187642307
E22: Wastewater network + allowed embedded debt cost (CPIH real) | F22: 0 | G22: Percentage | K22: =K18 -> 0.0242 | L22: =L18 -> 0.0242 | M22: 0.0242 | N22: 0.0242 | O22: 0.0242 | P22: =P17 -> 0
E23: Ratio of new to embedded debt for outturn cost of debt allowance | F23: 0 | G23: Percentage | K23: =InpR!K56 -> 0.04 | L23: =InpR!L56 -> 0.12 | M23: =InpR!M56 -> 0.2 | N23: =InpR!N56 -> 0.28 | O23: =InpR!O56 -> 0.36
E24: Wastewater network + outturn allowed cost of overall debt (CPIH real) | F24: 0 | G24: Percentage | K24: =(K23*K21)+(1-K23)*K22 -> 0.02323748014 | L24: =(L23*L21)+(1-L23)*L22 -> 0.02142304072 | M24: =(M23*M21)+(1-M23)*M22 -> 0.02064995164 | N24: =(N23*N21)+(1-N23)*N22 -> 0.02122374595 | O24: =(O23*O21)+(1-O23)*O22 -> 0.02224312305
E25: CPIH inflation (long-term assumption) | F25: 0 | G25: Percentage | K25: =InpR!K58 -> 0.02 | L25: =InpR!L58 -> 0.02 | M25: =InpR!M58 -> 0.02 | N25: =InpR!N58 -> 0.02 | O25: =InpR!O58 -> 0.02
E26: Wastewater network + outturn allowed cost of overall debt (Nominal) | F26: 0 | G26: Percentage | K26: =(1+K24)*(1+K25)-1 -> 0.04370222975 | L26: =(1+L24)*(1+L25)-1 -> 0.04185150153 | M26: =(1+M24)*(1+M25)-1 -> 0.04106295067 | N26: =(1+N24)*(1+N25)-1 -> 0.04164822087 | O26: =(1+O24)*(1+O25)-1 -> 0.04268798551
E28: =E$14 -> Wastewater network + extending trailing average interest cost | F28: 0 | G28: £m | H28: 0 | I28: 0 | J28: 0 | K28: 0 | L28: 0 | M28: 0 | N28: 0 | O28: 0 | P28: 0
E29: =E$19 -> Wastewater network + Embedded debt interest cost | F29: =F$19 -> 0 | G29: =G$19 -> £m | H29: 0 | I29: 0 | J29: 0 | K29: 0 | L29: 0 | M29: 0 | N29: 0 | O29: 0 | P29: 0
E30: Wastewater network + outturn debt allowance | G30: £m | H30: =SUM(J30:O30) -> 0 | J30: =SUM(J28:J29) -> 0 | K30: 0 | L30: 0 | M30: 0 | N30: 0 | O30: 0 | P30: 0
A32: FD ALLOWANCE
E33: =InpC!E49 -> Notional % of 'new' debt over period | F33: =InpC!F49 -> 0.2 | G33: =InpC!G49 -> percentage | K33: =$F$33 -> 0.2 | L33: =$F$33 -> 0.2 | M33: 0.2 | N33: 0.2 | O33: 0.2 | P33: =InpR!P36 -> 0
E34: =InpR!E36 -> Allowed sector new debt cost (not inc. CSA) - final determination (CPIH real) | F34: =InpR!F36 -> 0 | G34: =InpR!G36 -> percentage | H34: =InpR!H36 -> 0 | I34: =InpR!I36 -> 0 | J34: =InpR!J36 -> 0 | K34: =InpR!K36 -> 0.0053 | L34: =InpR!L36 -> 0.0053 | M34: =InpR!M36 -> 0.0053 | N34: =InpR!N36 -> 0.0053 | O34: =InpR!O36 -> 0.0053 | P34: =P13 -> 0
E35: Allowed sector cost of new debt (after any CSA adjustments) | K35: =K34+(K8*K9) -> 0.0053 | L35: =L34+(L8*L9) -> 0.0053 | M35: =M34+(M8*M9) -> 0.0053 | N35: =N34+(N8*N9) -> 0.0053 | O35: =O34+(O8*O9) -> 0.0053
E36: =InpR!E37 -> Allowed sector embedded debt cost (not inc. CSA) - final determination (CPIH real) | F36: =InpR!F37 -> 0 | G36: =InpR!G37 -> percentage | H36: =InpR!H37 -> 0 | I36: =InpR!I37 -> 0 | J36: =InpR!J37 -> 0 | K36: =InpR!K37 -> 0.0242 | L36: =InpR!L37 -> 0.0242 | M36: =InpR!M37 -> 0.0242 | N36: =InpR!N37 -> 0.0242 | O36: =InpR!O37 -> 0.0242 | P36: =P33*P34 -> 0
E37: Allowed sector cost of embedded debt (after any CSA adjustments) | K37: =K36+(K8*K10) -> 0.0242 | L37: =L36+(L8*L10) -> 0.0242 | M37: =M36+(M8*M10) -> 0.0242 | N37: =N36+(N8*N10) -> 0.0242 | O37: =O36+(O8*O10) -> 0.0242
E38: ='RCV and post 2020 investment'!E48 -> Wastewater Network Plus Notional debt | F38: ='RCV and post 2020 investment'!F48 -> 0 | G38: ='RCV and post 2020 investment'!G48 -> £m | H38: ='RCV and post 2020 investment'!H48 -> 0 | I38: ='RCV and post 2020 investment'!I48 -> 0 | J38: ='RCV and post 2020 investment'!J48 -> 0 | K38: ='RCV and post 2020 investment'!K48 -> 0 | L38: ='RCV and post 2020 investment'!L48 -> 0 | M38: ='RCV and post 2020 investment'!M48 -> 0 | N38: ='RCV and post 2020 investment'!N48 -> 0 | O38: ='RCV and post 2020 investment'!O48 -> 0
E39: Wastewater network + initial cost of debt allowance | G39: £m | I39: =I$14 -> 0 | K39: =(K38 * $K33 * K35) + (K38 * (1-$K33) * K37) -> 0 | L39: =(L38 * $K33 * L35) + (L38 * (1-$K33) * L37) -> 0 | M39: 0 | N39: 0 | O39: 0 | P39: =(P38 * $F33 * P34) + (P38 * (1-$F33) * P36) -> 0
P40: =P14 -> 0
A41: RECONCILIATION ADJUSTMENTS | P41: =P39-P40 -> 0
E42: =E$30 -> Wastewater network + outturn debt allowance | F42: =F$30 -> 0 | G42: £m | H42: 0 | I42: 0 | J42: 0 | K42: 0 | L42: 0 | M42: 0 | N42: 0 | O42: 0
E43: =E$39 -> Wastewater network + initial cost of debt allowance | F43: =F$39 -> 0 | G43: £m | H43: 0 | I43: 0 | J43: 0 | K43: 0 | L43: 0 | M43: 0 | N43: 0 | O43: 0
E44: Reconciliation (in-year values) - Wastewater network + | G44: £m | H44: =SUM(J44:O44) -> 0 | J44: =J42-J43 -> 0 | K44: 0 | L44: 0 | M44: 0 | N44: 0 | O44: 0
E46: =InpC!E$59 -> PV base date | F46: =InpC!F$59 -> 2025-03-31 | G46: =InpC!G$59 -> date
E47: =InpC!E$60 -> Days in a year | F47: =InpC!F$60 -> 365 | G47: =InpC!G$60 -> days
E48: =Time!E$22 -> Model Period END | F48: =Time!F$22 -> 0 | G48: =Time!G$22 -> date | H48: =Time!H$22 -> 00:00:00 | I48: =Time!I$22 -> 00:00:00 | J48: =Time!J$22 -> 2020-03-31 | K48: =Time!K$22 -> 2021-03-31 | L48: =Time!L$22 -> 2022-03-31 | M48: =Time!M$22 -> 2023-03-31 | N48: =Time!N$22 -> 2024-03-31 | O48: =Time!O$22 -> 2025-03-31 | P48: =Time!P$22 -> 2026-03-31
E49: Years from valuation date - Wastewater network + | G49: years | J49: =( ( J48 - $F46 ) / $F47 ) * -1 -> 5.002739726 | K49: 4.002739726 | L49: 3.002739726 | M49: 2.002739726 | N49: 1 | O49: 0
E51: =InpC!E54 -> PR19 appointee allowed return on capital (CPIH-deflated using long-term assumption) | F51: =InpC!F54 -> 0.0296 | G51: =InpC!G54 -> percentage | K51: =$F$51 -> 0.0296 | L51: =$F$51 -> 0.0296 | M51: 0.0296 | N51: 0.0296 | O51: 0.0296
E52: =E$49 -> Years from valuation date - Wastewater network + | F52: =F$49 -> 0 | G52: years | H52: 0 | I52: 0 | J52: 5.002739726 | K52: 4.002739726 | L52: 3.002739726 | M52: 2.002739726 | N52: 1 | O52: 0
E53: Discount factor - Wastewater network + | G53: Factor | J53: =(1+$F51) ^J52 -> 1.157117276 | K53: 1.123851278 | L53: 1.091541646 | M53: 1.060160883 | N53: 1.0296 | O53: 1
E55: =E$44 -> Reconciliation (in-year values) - Wastewater network + | F55: =F$44 -> 0 | G55: £m | H55: 0 | I55: 0 | J55: 0 | K55: 0 | L55: 0 | M55: 0 | N55: 0 | O55: 0
E56: =E$53 -> Discount factor - Wastewater network + | F56: =F$53 -> 0 | G56: Factor | H56: 0 | I56: 0 | J56: 1.157117276 | K56: 1.123851278 | L56: 1.091541646 | M56: 1.060160883 | N56: 1.0296 | O56: 1
E57: Discounted reconciliation (in-year values) Wastewater network + | G57: £m | K57: =K56*K55 -> 0 | L57: =L56*L55 -> 0 | M57: =M56*M55 -> 0 | N57: =N56*N55 -> 0 | O57: =O56*O55 -> 0
E59: =E$57 -> Discounted reconciliation (in-year values) Wastewater network + | F59: =F$57 -> 0 | G59: £m | H59: 0 | I59: 0 | J59: 0 | K59: 0 | L59: 0 | M59: 0 | N59: 0 | O59: 0
E60: Total value of reconciliation (31 March 2025 present values): Wastewater network + | G60: £m | H60: =SUM(K59:O59) -> 0

Sheet Bioresources
A1: =RIGHT(CELL("filename", $A$1), LEN(CELL("filename", $A$1)) - SEARCH("]", CELL("filename", $A$1))) -> Bioresources
J2: =Time!J$22 -> 2020-03-31 | K2: =Time!K$22 -> 2021-03-31 | L2: =Time!L$22 -> 2022-03-31 | M2: =Time!M$22 -> 2023-03-31 | N2: =Time!N$22 -> 2024-03-31 | O2: =Time!O$22 -> 2025-03-31 | P2: =Time!P$22 -> 2026-03-31
J3: =Time!J$58 -> Pre Fcst | K3: =Time!K$58 -> Forecast | L3: =Time!L$58 -> Forecast | M3: =Time!M$58 -> Forecast | N3: =Time!N$58 -> Forecast | O3: =Time!O$58 -> Forecast | P3: =Time!P$58 -> Post-Fcst
E4: =Time!E$86 -> Financial Year Ending | J4: =Time!J$86 -> 2020 | K4: =Time!K$86 -> 2021 | L4: =Time!L$86 -> 2022 | M4: =Time!M$86 -> 2023 | N4: =Time!N$86 -> 2024 | O4: =Time!O$86 -> 2025 | P4: =Time!P$86 -> 2026
E5: =Time!E$10 -> Model column counter | F5: Constant | G5: Unit | H5: Total | J5: =Time!J$10 -> 1 | K5: =Time!K$10 -> 2 | L5: =Time!L$10 -> 3 | M5: =Time!M$10 -> 4 | N5: =Time!N$10 -> 5 | O5: =Time!O$10 -> 6 | P5: =Time!P$10 -> 7
A7: COST OF DEBT CALCULATION BASED ON INDEX OUTTURN
E8: Company-specific adjustment flag | F8: =IF(InpC!$F$67="YES",1,0) -> 0 | G8: Flag | K8: =$F$8 -> 0 | L8: =$F$8 -> 0 | M8: 0 | N8: 0 | O8: 0
E9: =InpC!E62 -> Company-specific adjustment (new debt) | F9: =InpC!F62 -> 0 | G9: ='Cost of Debt'!G47 -> Percentage | K9: =$F$9 -> 0 | L9: =$F$9 -> 0 | M9: 0 | N9: 0 | O9: 0
E10: =InpC!E63 -> Company-specific adjustment (embedded debt) | F10: =InpC!$F$63 -> 0 | G10: ='Cost of Debt'!G48 -> Percentage | K10: =$F$10 -> 0 | L10: =$F$10 -> 0 | M10: =$F$10 -> 0 | N10: =$F$10 -> 0 | O10: =$F$10 -> 0
E11: ='Cost of Debt'!E48 -> Extending trailing average rate | F11: ='Cost of Debt'!F48 -> 0 | G11: ='Cost of Debt'!G48 -> Percentage | H11: ='Cost of Debt'!H48 -> 0 | I11: ='Cost of Debt'!I48 -> 0 | J11: ='Cost of Debt'!J48 -> 0 | K11: ='Cost of Debt'!K48 -> 0.0001370035635 | L11: ='Cost of Debt'!L48 -> 0.001058672666 | M11: ='Cost of Debt'!M48 -> 0.006449758176 | N11: ='Cost of Debt'!N48 -> 0.01357052126 | O11: ='Cost of Debt'!O48 -> 0.0187642307 | P11: ='Cost of Debt'!P48 -> 0
E12: Extending trailing average rate (after any CSA adjustments) | G12: Percentage | K12: =K11+(K8*K9) -> 0.0001370035635 | L12: =L11+(L8*L9) -> 0.001058672666 | M12: 0.006449758176 | N12: 0.01357052126 | O12: 0.0187642307 | P12: 0
E13: ='RCV and post 2020 investment'!E69 -> Bioresources New debt for return | F13: ='RCV and post 2020 investment'!F69 -> 0 | G13: ='RCV and post 2020 investment'!G69 -> £m | H13: ='RCV and post 2020 investment'!H69 -> 0 | I13: ='RCV and post 2020 investment'!I69 -> 0 | J13: ='RCV and post 2020 investment'!J69 -> 0 | K13: ='RCV and post 2020 investment'!K69 -> 0 | L13: ='RCV and post 2020 investment'!L69 -> 0 | M13: ='RCV and post 2020 investment'!M69 -> 0 | N13: ='RCV and post 2020 investment'!N69 -> 0 | O13: ='RCV and post 2020 investment'!O69 -> 0 | P13: ='RCV and post 2020 investment'!P69 -> 0
E14: Bioresources extending trailing average interest cost | G14: £m | H14: =SUM(J14:O14) -> 0 | J14: =J11 * J13 -> 0 | K14: =K12 * K13 -> 0 | L14: =L12 * L13 -> 0 | M14: 0 | N14: 0 | O14: 0 | P14: 0
E16: ='RCV and post 2020 investment'!E73 -> Bioresources Embedded debt for return | F16: ='RCV and post 2020 investment'!F73 -> 0 | G16: ='RCV and post 2020 investment'!G73 -> £m | H16: ='RCV and post 2020 investment'!H73 -> 0 | I16: ='RCV and post 2020 investment'!I73 -> 0 | J16: ='RCV and post 2020 investment'!J73 -> 0 | K16: ='RCV and post 2020 investment'!K73 -> 0 | L16: ='RCV and post 2020 investment'!L73 -> 0 | M16: ='RCV and post 2020 investment'!M73 -> 0 | N16: ='RCV and post 2020 investment'!N73 -> 0 | O16: ='RCV and post 2020 investment'!O73 -> 0 | P16: ='RCV and post 2020 investment'!P73 -> 0
E17: =InpR!E$37 -> Allowed sector embedded debt cost (not inc. CSA) - final determination (CPIH real) | F17: =InpR!F$37 -> 0 | G17: =InpR!G$37 -> percentage | H17: =InpR!H$37 -> 0 | I17: =InpR!I$37 -> 0 | J17: =InpR!J$37 -> 0 | K17: =InpR!K$37 -> 0.0242 | L17: =InpR!L$37 -> 0.0242 | M17: =InpR!M$37 -> 0.0242 | N17: =InpR!N$37 -> 0.0242 | O17: =InpR!O$37 -> 0.0242 | P17: =InpR!P$37 -> 0
E18: Allowed sector embedded debt cost (after any CSA adjustments) | K18: =K17+(K8*K10) -> 0.0242 | L18: =L17+(L8*L10) -> 0.0242 | M18: 0.0242 | N18: 0.0242 | O18: 0.0242
E19: Bioresources Embedded debt interest cost | G19: £m | H19: =SUM(J19:O19) -> 0 | J19: =J16 * J17 -> 0 | K19: =K16 * K18 -> 0 | L19: =L16 * L18 -> 0 | M19: 0 | N19: 0 | O19: 0 | P19: =P16 * P17 -> 0
E21: Bioresources outturn allowed new debt cost (CPIH real) | F21: 0 | G21: Percentage | K21: =K12 -> 0.0001370035635 | L21: =L12 -> 0.001058672666 | M21: 0.006449758176 | N21: 0.01357052126 | O21: 0.0187642307
E22: Bioresources allowed embedded debt cost (CPIH real) | F22: 0 | G22: Percentage | K22: =K18 -> 0.0242 | L22: =L18 -> 0.0242 | M22: 0.0242 | N22: 0.0242 | O22: 0.0242 | P22: =P17 -> 0
E23: Ratio of new to embedded debt for outturn cost of debt allowance | F23: 0 | G23: Percentage | K23: =InpR!K56 -> 0.04 | L23: =InpR!L56 -> 0.12 | M23: =InpR!M56 -> 0.2 | N23: =InpR!N56 -> 0.28 | O23: =InpR!O56 -> 0.36
E24: Bioresources outturn allowed cost of overall debt (CPIH real) | F24: 0 | G24: Percentage | K24: =(K23*K21)+(1-K23)*K22 -> 0.02323748014 | L24: =(L23*L21)+(1-L23)*L22 -> 0.02142304072 | M24: =(M23*M21)+(1-M23)*M22 -> 0.02064995164 | N24: =(N23*N21)+(1-N23)*N22 -> 0.02122374595 | O24: =(O23*O21)+(1-O23)*O22 -> 0.02224312305
E25: CPIH inflation (long-term assumption) | F25: 0 | G25: Percentage | K25: =InpR!K58 -> 0.02 | L25: =InpR!L58 -> 0.02 | M25: =InpR!M58 -> 0.02 | N25: =InpR!N58 -> 0.02 | O25: =InpR!O58 -> 0.02
E26: Bioresources outturn allowed cost of overall debt (Nominal) | F26: 0 | G26: Percentage | K26: =(1+K24)*(1+K25)-1 -> 0.04370222975 | L26: =(1+L24)*(1+L25)-1 -> 0.04185150153 | M26: =(1+M24)*(1+M25)-1 -> 0.04106295067 | N26: =(1+N24)*(1+N25)-1 -> 0.04164822087 | O26: =(1+O24)*(1+O25)-1 -> 0.04268798551
E28: =E$14 -> Bioresources extending trailing average interest cost | F28: 0 | G28: £m | H28: 0 | I28: 0 | J28: 0 | K28: 0 | L28: 0 | M28: 0 | N28: 0 | O28: 0 | P28: 0
E29: =E$19 -> Bioresources Embedded debt interest cost | F29: =F$19 -> 0 | G29: =G$19 -> £m | H29: 0 | I29: 0 | J29: 0 | K29: 0 | L29: 0 | M29: 0 | N29: 0 | O29: 0 | P29: 0
E30: Bioresources outturn debt allowance | G30: £m | H30: =SUM(J30:O30) -> 0 | J30: =SUM(J28:J29) -> 0 | K30: 0 | L30: 0 | M30: 0 | N30: 0 | O30: 0 | P30: 0
A32: FD ALLOWANCE
E33: =InpC!E49 -> Notional % of 'new' debt over period | F33: =InpC!F49 -> 0.2 | G33: =InpC!G49 -> percentage | K33: =$F$33 -> 0.2 | L33: =$F$33 -> 0.2 | M33: 0.2 | N33: 0.2 | O33: 0.2 | P33: =InpR!P36 -> 0
E34: =InpR!E36 -> Allowed sector new debt cost (not inc. CSA) - final determination (CPIH real) | F34: =InpR!F36 -> 0 | G34: =InpR!G36 -> percentage | H34: =InpR!H36 -> 0 | I34: =InpR!I36 -> 0 | J34: =InpR!J36 -> 0 | K34: =InpR!K36 -> 0.0053 | L34: =InpR!L36 -> 0.0053 | M34: =InpR!M36 -> 0.0053 | N34: =InpR!N36 -> 0.0053 | O34: =InpR!O36 -> 0.0053 | P34: =P13 -> 0
E35: Allowed sector cost of new debt (after any CSA adjustments) | K35: =K34+(K8*K9) -> 0.0053 | L35: =L34+(L8*L9) -> 0.0053 | M35: =M34+(M8*M9) -> 0.0053 | N35: =N34+(N8*N9) -> 0.0053 | O35: =O34+(O8*O9) -> 0.0053
E36: =InpR!E37 -> Allowed sector embedded debt cost (not inc. CSA) - final determination (CPIH real) | F36: =InpR!F37 -> 0 | G36: =InpR!G37 -> percentage | H36: =InpR!H37 -> 0 | I36: =InpR!I37 -> 0 | J36: =InpR!J37 -> 0 | K36: =InpR!K37 -> 0.0242 | L36: =InpR!L37 -> 0.0242 | M36: =InpR!M37 -> 0.0242 | N36: =InpR!N37 -> 0.0242 | O36: =InpR!O37 -> 0.0242 | P36: =P33*P34 -> 0
E37: Allowed sector cost of embedded debt (after any CSA adjustments) | K37: =K36+(K8*K10) -> 0.0242 | L37: =L36+(L8*L10) -> 0.0242 | M37: =M36+(M8*M10) -> 0.0242 | N37: =N36+(N8*N10) -> 0.0242 | O37: =O36+(O8*O10) -> 0.0242
E38: ='RCV and post 2020 investment'!E65 -> Bioresources Notional debt | F38: ='RCV and post 2020 investment'!F65 -> 0 | G38: ='RCV and post 2020 investment'!G65 -> £m | H38: ='RCV and post 2020 investment'!H65 -> 0 | I38: ='RCV and post 2020 investment'!I65 -> 0 | J38: ='RCV and post 2020 investment'!J65 -> 0 | K38: ='RCV and post 2020 investment'!K65 -> 0 | L38: ='RCV and post 2020 investment'!L65 -> 0 | M38: ='RCV and post 2020 investment'!M65 -> 0 | N38: ='RCV and post 2020 investment'!N65 -> 0 | O38: ='RCV and post 2020 investment'!O65 -> 0
E39: Bioresources initial cost of debt allowance | G39: £m | I39: =I$14 -> 0 | K39: =(K38 * $K33 * K35) + (K38 * (1-$K33) * K37) -> 0 | L39: =(L38 * $K33 * L35) + (L38 * (1-$K33) * L37) -> 0 | M39: 0 | N39: 0 | O39: 0 | P39: =(P38 * $F33 * P34) + (P38 * (1-$F33) * P36) -> 0
P40: =P14 -> 0
A41: RECONCILIATION ADJUSTMENTS | P41: =P39-P40 -> 0
E42: =E$30 -> Bioresources outturn debt allowance | F42: =F$30 -> 0 | G42: £m | H42: 0 | I42: 0 | J42: 0 | K42: 0 | L42: 0 | M42: 0 | N42: 0 | O42: 0
E43: =E$39 -> Bioresources initial cost of debt allowance | F43: =F$39 -> 0 | G43: £m | H43: 0 | I43: 0 | J43: 0 | K43: 0 | L43: 0 | M43: 0 | N43: 0 | O43: 0
E44: Reconciliation (in-year values) - Bioresources | G44: £m | H44: =SUM(J44:O44) -> 0 | J44: =J42-J43 -> 0 | K44: 0 | L44: 0 | M44: 0 | N44: 0 | O44: 0
E46: =InpC!E$59 -> PV base date | F46: =InpC!F$59 -> 2025-03-31 | G46: =InpC!G$59 -> date
E47: =InpC!E$60 -> Days in a year | F47: =InpC!F$60 -> 365 | G47: =InpC!G$60 -> days
E48: =Time!E$22 -> Model Period END | F48: =Time!F$22 -> 0 | G48: =Time!G$22 -> date | H48: =Time!H$22 -> 00:00:00 | I48: =Time!I$22 -> 00:00:00 | J48: =Time!J$22 -> 2020-03-31 | K48: =Time!K$22 -> 2021-03-31 | L48: =Time!L$22 -> 2022-03-31 | M48: =Time!M$22 -> 2023-03-31 | N48: =Time!N$22 -> 2024-03-31 | O48: =Time!O$22 -> 2025-03-31 | P48: =Time!P$22 -> 2026-03-31
E49: Years from valuation date - Bioresources | G49: years | J49: =( ( J48 - $F46 ) / $F47 ) * -1 -> 5.002739726 | K49: 4.002739726 | L49: 3.002739726 | M49: 2.002739726 | N49: 1 | O49: 0
E51: =InpC!E54 -> PR19 appointee allowed return on capital (CPIH-deflated using long-term assumption) | F51: =InpC!F54 -> 0.0296 | G51: =InpC!G54 -> percentage | K51: =$F$51 -> 0.0296 | L51: =$F$51 -> 0.0296 | M51: 0.0296 | N51: 0.0296 | O51: 0.0296
E52: =E$49 -> Years from valuation date - Bioresources | F52: =F$49 -> 0 | G52: years | H52: 0 | I52: 0 | J52: 5.002739726 | K52: 4.002739726 | L52: 3.002739726 | M52: 2.002739726 | N52: 1 | O52: 0
E53: Discount factor - Bioresources | G53: Factor | J53: =(1+$F51) ^J52 -> 1.157117276 | K53: 1.123851278 | L53: 1.091541646 | M53: 1.060160883 | N53: 1.0296 | O53: 1
E55: =E$44 -> Reconciliation (in-year values) - Bioresources | F55: =F$44 -> 0 | G55: £m | H55: 0 | I55: 0 | J55: 0 | K55: 0 | L55: 0 | M55: 0 | N55: 0 | O55: 0
E56: =E$53 -> Discount factor - Bioresources | F56: =F$53 -> 0 | G56: Factor | H56: 0 | I56: 0 | J56: 1.157117276 | K56: 1.123851278 | L56: 1.091541646 | M56: 1.060160883 | N56: 1.0296 | O56: 1
E57: Discounted reconciliation (in-year values) Bioresources | G57: £m | K57: =K56*K55 -> 0 | L57: =L56*L55 -> 0 | M57: =M56*M55 -> 0 | N57: =N56*N55 -> 0 | O57: =O56*O55 -> 0
E59: =E$57 -> Discounted reconciliation (in-year values) Bioresources | F59: =F$57 -> 0 | G59: £m | H59: 0 | I59: 0 | J59: 0 | K59: 0 | L59: 0 | M59: 0 | N59: 0 | O59: 0
E60: Total value of reconciliation (31 March 2025 present values): Bioresources | G60: £m | H60: =SUM(K59:O59) -> 0

Sheet Dummy
A1: =RIGHT(CELL("filename", $A$1), LEN(CELL("filename", $A$1)) - SEARCH("]", CELL("filename", $A$1))) -> Dummy
J2: =Time!J$22 -> 2020-03-31 | K2: =Time!K$22 -> 2021-03-31 | L2: =Time!L$22 -> 2022-03-31 | M2: =Time!M$22 -> 2023-03-31 | N2: =Time!N$22 -> 2024-03-31 | O2: =Time!O$22 -> 2025-03-31 | P2: =Time!P$22 -> 2026-03-31
J3: =Time!J$58 -> Pre Fcst | K3: =Time!K$58 -> Forecast | L3: =Time!L$58 -> Forecast | M3: =Time!M$58 -> Forecast | N3: =Time!N$58 -> Forecast | O3: =Time!O$58 -> Forecast | P3: =Time!P$58 -> Post-Fcst
E4: =Time!E$86 -> Financial Year Ending | J4: =Time!J$86 -> 2020 | K4: =Time!K$86 -> 2021 | L4: =Time!L$86 -> 2022 | M4: =Time!M$86 -> 2023 | N4: =Time!N$86 -> 2024 | O4: =Time!O$86 -> 2025 | P4: =Time!P$86 -> 2026
E5: =Time!E$10 -> Model column counter | F5: Constant | G5: Unit | H5: Total | J5: =Time!J$10 -> 1 | K5: =Time!K$10 -> 2 | L5: =Time!L$10 -> 3 | M5: =Time!M$10 -> 4 | N5: =Time!N$10 -> 5 | O5: =Time!O$10 -> 6 | P5: =Time!P$10 -> 7
A7: COST OF DEBT CALCULATION BASED ON INDEX OUTTURN
E8: Company-specific adjustment flag | F8: =IF(InpC!$F$68="YES",1,0) -> 0 | G8: Flag | K8: =$F$8 -> 0 | L8: =$F$8 -> 0 | M8: 0 | N8: 0 | O8: 0
E9: =InpC!E62 -> Company-specific adjustment (new debt) | F9: =InpC!F62 -> 0 | G9: ='Cost of Debt'!G47 -> Percentage | K9: =$F$9 -> 0 | L9: =$F$9 -> 0 | M9: 0 | N9: 0 | O9: 0
E10: =InpC!E63 -> Company-specific adjustment (embedded debt) | F10: =InpC!$F$63 -> 0 | G10: ='Cost of Debt'!G48 -> Percentage | K10: =$F$10 -> 0 | L10: =$F$10 -> 0 | M10: =$F$10 -> 0 | N10: =$F$10 -> 0 | O10: =$F$10 -> 0
E11: ='Cost of Debt'!E48 -> Extending trailing average rate | F11: ='Cost of Debt'!F48 -> 0 | G11: ='Cost of Debt'!G48 -> Percentage | H11: ='Cost of Debt'!H48 -> 0 | I11: ='Cost of Debt'!I48 -> 0 | J11: ='Cost of Debt'!J48 -> 0 | K11: ='Cost of Debt'!K48 -> 0.0001370035635 | L11: ='Cost of Debt'!L48 -> 0.001058672666 | M11: ='Cost of Debt'!M48 -> 0.006449758176 | N11: ='Cost of Debt'!N48 -> 0.01357052126 | O11: ='Cost of Debt'!O48 -> 0.0187642307 | P11: ='Cost of Debt'!P48 -> 0
E12: Extending trailing average rate (after any CSA adjustments) | G12: Percentage | K12: =K11+(K8*K9) -> 0.0001370035635 | L12: =L11+(L8*L9) -> 0.001058672666 | M12: 0.006449758176 | N12: 0.01357052126 | O12: 0.0187642307 | P12: 0
E13: ='RCV and post 2020 investment'!E86 -> Dummy New debt for return | F13: ='RCV and post 2020 investment'!F86 -> 0 | G13: ='RCV and post 2020 investment'!G86 -> £m | H13: ='RCV and post 2020 investment'!H86 -> 0 | I13: ='RCV and post 2020 investment'!I86 -> 0 | J13: ='RCV and post 2020 investment'!J86 -> 0 | K13: ='RCV and post 2020 investment'!K86 -> 0 | L13: ='RCV and post 2020 investment'!L86 -> 0 | M13: ='RCV and post 2020 investment'!M86 -> 0 | N13: ='RCV and post 2020 investment'!N86 -> 0 | O13: ='RCV and post 2020 investment'!O86 -> 0 | P13: ='RCV and post 2020 investment'!P52 -> 0
E14: Dummy extending trailing average interest cost | G14: £m | H14: =SUM(J14:O14) -> 0 | J14: =J11 * J13 -> 0 | K14: =K12 * K13 -> 0 | L14: =L12 * L13 -> 0 | M14: 0 | N14: 0 | O14: 0 | P14: 0
E16: ='RCV and post 2020 investment'!E90 -> Dummy Embedded debt for return | F16: ='RCV and post 2020 investment'!F56 -> 0 | G16: ='RCV and post 2020 investment'!G56 -> £m | H16: ='RCV and post 2020 investment'!H90 -> 0 | I16: ='RCV and post 2020 investment'!I56 -> 0 | J16: ='RCV and post 2020 investment'!J56 -> 0 | K16: ='RCV and post 2020 investment'!K90 -> 0 | L16: ='RCV and post 2020 investment'!L90 -> 0 | M16: ='RCV and post 2020 investment'!M90 -> 0 | N16: ='RCV and post 2020 investment'!N90 -> 0 | O16: ='RCV and post 2020 investment'!O90 -> 0 | P16: ='RCV and post 2020 investment'!P56 -> 0
E17: =InpR!E$37 -> Allowed sector embedded debt cost (not inc. CSA) - final determination (CPIH real) | F17: =InpR!F$37 -> 0 | G17: =InpR!G$37 -> percentage | H17: =InpR!H$37 -> 0 | I17: =InpR!I$37 -> 0 | J17: =InpR!J$37 -> 0 | K17: =InpR!K$37 -> 0.0242 | L17: =InpR!L$37 -> 0.0242 | M17: =InpR!M$37 -> 0.0242 | N17: =InpR!N$37 -> 0.0242 | O17: =InpR!O$37 -> 0.0242 | P17: =InpR!P$37 -> 0
E18: Allowed sector embedded debt cost (after any CSA adjustments) | K18: =K17+(K8*K10) -> 0.0242 | L18: =L17+(L8*L10) -> 0.0242 | M18: 0.0242 | N18: 0.0242 | O18: 0.0242
E19: Dummy Embedded debt interest cost | G19: £m | H19: =SUM(J19:O19) -> 0 | J19: =J16 * J17 -> 0 | K19: =K16 * K18 -> 0 | L19: =L16 * L18 -> 0 | M19: 0 | N19: 0 | O19: 0 | P19: =P16 * P17 -> 0
E21: Dummy outturn allowed new debt cost (CPIH real) | F21: 0 | G21: Percentage | K21: =K12 -> 0.0001370035635 | L21: =L12 -> 0.001058672666 | M21: 0.006449758176 | N21: 0.01357052126 | O21: 0.0187642307
E22: Dummy allowed embedded debt cost (CPIH real) | F22: 0 | G22: Percentage | K22: =K18 -> 0.0242 | L22: =L18 -> 0.0242 | M22: 0.0242 | N22: 0.0242 | O22: 0.0242 | P22: =P17 -> 0
E23: Ratio of new to embedded debt for outturn cost of debt allowance | F23: 0 | G23: Percentage | K23: =InpR!K56 -> 0.04 | L23: =InpR!L56 -> 0.12 | M23: =InpR!M56 -> 0.2 | N23: =InpR!N56 -> 0.28 | O23: =InpR!O56 -> 0.36
E24: Dummy outturn allowed cost of overall debt (CPIH real) | F24: 0 | G24: Percentage | K24: =(K23*K21)+(1-K23)*K22 -> 0.02323748014 | L24: =(L23*L21)+(1-L23)*L22 -> 0.02142304072 | M24: =(M23*M21)+(1-M23)*M22 -> 0.02064995164 | N24: =(N23*N21)+(1-N23)*N22 -> 0.02122374595 | O24: =(O23*O21)+(1-O23)*O22 -> 0.02224312305
E25: CPIH inflation (long-term assumption) | F25: 0 | G25: Percentage | K25: =InpR!K58 -> 0.02 | L25: =InpR!L58 -> 0.02 | M25: =InpR!M58 -> 0.02 | N25: =InpR!N58 -> 0.02 | O25: =InpR!O58 -> 0.02
E26: Dummy outturn allowed cost of overall debt (Nominal) | F26: 0 | G26: Percentage | K26: =(1+K24)*(1+K25)-1 -> 0.04370222975 | L26: =(1+L24)*(1+L25)-1 -> 0.04185150153 | M26: =(1+M24)*(1+M25)-1 -> 0.04106295067 | N26: =(1+N24)*(1+N25)-1 -> 0.04164822087 | O26: =(1+O24)*(1+O25)-1 -> 0.04268798551
E28: =E$14 -> Dummy extending trailing average interest cost | F28: 0 | G28: £m | H28: 0 | I28: 0 | J28: 0 | K28: 0 | L28: 0 | M28: 0 | N28: 0 | O28: 0 | P28: 0
E29: =E$19 -> Dummy Embedded debt interest cost | F29: =F$19 -> 0 | G29: =G$19 -> £m | H29: 0 | I29: 0 | J29: 0 | K29: 0 | L29: 0 | M29: 0 | N29: 0 | O29: 0 | P29: 0
E30: Dummy outturn debt allowance | G30: £m | H30: =SUM(J30:O30) -> 0 | J30: =SUM(J28:J29) -> 0 | K30: 0 | L30: 0 | M30: 0 | N30: 0 | O30: 0 | P30: 0
A32: FD ALLOWANCE
E33: =InpC!E49 -> Notional % of 'new' debt over period | F33: =InpC!F49 -> 0.2 | G33: =InpC!G49 -> percentage | K33: =$F$33 -> 0.2 | L33: =$F$33 -> 0.2 | M33: 0.2 | N33: 0.2 | O33: 0.2 | P33: =InpR!P36 -> 0
E34: =InpR!E36 -> Allowed sector new debt cost (not inc. CSA) - final determination (CPIH real) | F34: =InpR!F36 -> 0 | G34: =InpR!G36 -> percentage | H34: =InpR!H36 -> 0 | I34: =InpR!I36 -> 0 | J34: =InpR!J36 -> 0 | K34: =InpR!K36 -> 0.0053 | L34: =InpR!L36 -> 0.0053 | M34: =InpR!M36 -> 0.0053 | N34: =InpR!N36 -> 0.0053 | O34: =InpR!O36 -> 0.0053 | P34: =P13 -> 0
E35: Allowed sector cost of new debt (after any CSA adjustments) | K35: =K34+(K8*K9) -> 0.0053 | L35: =L34+(L8*L9) -> 0.0053 | M35: =M34+(M8*M9) -> 0.0053 | N35: =N34+(N8*N9) -> 0.0053 | O35: =O34+(O8*O9) -> 0.0053
E36: =InpR!E37 -> Allowed sector embedded debt cost (not inc. CSA) - final determination (CPIH real) | F36: =InpR!F37 -> 0 | G36: =InpR!G37 -> percentage | H36: =InpR!H37 -> 0 | I36: =InpR!I37 -> 0 | J36: =InpR!J37 -> 0 | K36: =InpR!K37 -> 0.0242 | L36: =InpR!L37 -> 0.0242 | M36: =InpR!M37 -> 0.0242 | N36: =InpR!N37 -> 0.0242 | O36: =InpR!O37 -> 0.0242 | P36: =P33*P34 -> 0
E37: Allowed sector cost of embedded debt (after any CSA adjustments) | K37: =K36+(K8*K10) -> 0.0242 | L37: =L36+(L8*L10) -> 0.0242 | M37: =M36+(M8*M10) -> 0.0242 | N37: =N36+(N8*N10) -> 0.0242 | O37: =O36+(O8*O10) -> 0.0242
E38: ='RCV and post 2020 investment'!E84 -> Dummy Notional debt | F38: ='RCV and post 2020 investment'!F67 -> 0 | G38: ='RCV and post 2020 investment'!G67 -> £m | H38: ='RCV and post 2020 investment'!H84 -> 0 | I38: ='RCV and post 2020 investment'!I67 -> 0 | J38: ='RCV and post 2020 investment'!J67 -> 0 | K38: ='RCV and post 2020 investment'!K84 -> 0 | L38: ='RCV and post 2020 investment'!L84 -> 0 | M38: ='RCV and post 2020 investment'!M84 -> 0 | N38: ='RCV and post 2020 investment'!N84 -> 0 | O38: ='RCV and post 2020 investment'!O84 -> 0
E39: Dummy initial cost of debt allowance | G39: £m | I39: =I$14 -> 0 | K39: =(K38 * $K33 * K35) + (K38 * (1-$K33) * K37) -> 0 | L39: =(L38 * $K33 * L35) + (L38 * (1-$K33) * L37) -> 0 | M39: 0 | N39: 0 | O39: 0 | P39: =(P38 * $F33 * P34) + (P38 * (1-$F33) * P36) -> 0
P40: =P14 -> 0
A41: RECONCILIATION ADJUSTMENTS | P41: =P39-P40 -> 0
E42: =E$30 -> Dummy outturn debt allowance | F42: =F$30 -> 0 | G42: £m | H42: 0 | I42: 0 | J42: 0 | K42: 0 | L42: 0 | M42: 0 | N42: 0 | O42: 0
E43: =E$39 -> Dummy initial cost of debt allowance | F43: =F$39 -> 0 | G43: £m | H43: 0 | I43: 0 | J43: 0 | K43: 0 | L43: 0 | M43: 0 | N43: 0 | O43: 0
E44: Reconciliation (in-year values) - Dummy | G44: £m | H44: =SUM(J44:O44) -> 0 | J44: =J42-J43 -> 0 | K44: 0 | L44: 0 | M44: 0 | N44: 0 | O44: 0
E46: =InpC!E$59 -> PV base date | F46: =InpC!F$59 -> 2025-03-31 | G46: =InpC!G$59 -> date
E47: =InpC!E$60 -> Days in a year | F47: =InpC!F$60 -> 365 | G47: =InpC!G$60 -> days
E48: =Time!E$22 -> Model Period END | F48: =Time!F$22 -> 0 | G48: =Time!G$22 -> date | H48: =Time!H$22 -> 00:00:00 | I48: =Time!I$22 -> 00:00:00 | J48: =Time!J$22 -> 2020-03-31 | K48: =Time!K$22 -> 2021-03-31 | L48: =Time!L$22 -> 2022-03-31 | M48: =Time!M$22 -> 2023-03-31 | N48: =Time!N$22 -> 2024-03-31 | O48: =Time!O$22 -> 2025-03-31 | P48: =Time!P$22 -> 2026-03-31
E49: Years from valuation date - Dummy | G49: years | J49: =( ( J48 - $F46 ) / $F47 ) * -1 -> 5.002739726 | K49: 4.002739726 | L49: 3.002739726 | M49: 2.002739726 | N49: 1 | O49: 0
E51: =InpC!E54 -> PR19 appointee allowed return on capital (CPIH-deflated using long-term assumption) | F51: =InpC!F54 -> 0.0296 | G51: =InpC!G54 -> percentage | K51: =$F$51 -> 0.0296 | L51: =$F$51 -> 0.0296 | M51: 0.0296 | N51: 0.0296 | O51: 0.0296
E52: =E$49 -> Years from valuation date - Dummy | F52: =F$49 -> 0 | G52: years | H52: 0 | I52: 0 | J52: 5.002739726 | K52: 4.002739726 | L52: 3.002739726 | M52: 2.002739726 | N52: 1 | O52: 0
E53: Discount factor - Dummy | G53: Factor | J53: =(1+$F51) ^J52 -> 1.157117276 | K53: 1.123851278 | L53: 1.091541646 | M53: 1.060160883 | N53: 1.0296 | O53: 1
E55: =E$44 -> Reconciliation (in-year values) - Dummy | F55: =F$44 -> 0 | G55: £m | H55: 0 | I55: 0 | J55: 0 | K55: 0 | L55: 0 | M55: 0 | N55: 0 | O55: 0
E56: =E$53 -> Discount factor - Dummy | F56: =F$53 -> 0 | G56: Factor | H56: 0 | I56: 0 | J56: 1.157117276 | K56: 1.123851278 | L56: 1.091541646 | M56: 1.060160883 | N56: 1.0296 | O56: 1
E57: Discounted reconciliation (in-year values) Dummy | G57: £m | K57: =K56*K55 -> 0 | L57: =L56*L55 -> 0 | M57: =M56*M55 -> 0 | N57: =N56*N55 -> 0 | O57: =O56*O55 -> 0
E59: =E$57 -> Discounted reconciliation (in-year values) Dummy | F59: =F$57 -> 0 | G59: £m | H59: 0 | I59: 0 | J59: 0 | K59: 0 | L59: 0 | M59: 0 | N59: 0 | O59: 0
E60: Total value of reconciliation (31 March 2025 present values): Dummy | G60: £m | H60: =SUM(K59:O59) -> 0

Sheet Output
A1: =RIGHT(CELL("filename", $A$1), LEN(CELL("filename", $A$1)) - SEARCH("]", CELL("filename", $A$1))) -> Output
J2: =Time!J22 -> 2020-03-31 | K2: =Time!K22 -> 2021-03-31 | L2: =Time!L22 -> 2022-03-31 | M2: =Time!M22 -> 2023-03-31 | N2: =Time!N22 -> 2024-03-31 | O2: =Time!O22 -> 2025-03-31 | P2: =Time!P22 -> 2026-03-31
J3: =Time!J58 -> Pre Fcst | K3: =Time!K58 -> Forecast | L3: =Time!L58 -> Forecast | M3: =Time!M58 -> Forecast | N3: =Time!N58 -> Forecast | O3: =Time!O58 -> Forecast | P3: =Time!P58 -> Post-Fcst
J4: =Time!J86 -> 2020 | K4: =Time!K86 -> 2021 | L4: =Time!L86 -> 2022 | M4: =Time!M86 -> 2023 | N4: =Time!N86 -> 2024 | O4: =Time!O86 -> 2025 | P4: =Time!P86 -> 2026
F5: Constant | G5: Unit | H5: Total | J5: =Time!J5 -> 1 | K5: =Time!K5 -> 2 | L5: =Time!L5 -> 3 | M5: =Time!M5 -> 4 | N5: =Time!N5 -> 5 | O5: =Time!O5 -> 6 | P5: =Time!P5 -> 7
A7: Total revenue adjustments applied as part of PR24
E9: Outturn nominal weighted average cost of debt - Water resources | G9: % | K9: ='Water resources'!K26 -> 0.04370222975 | L9: ='Water resources'!L26 -> 0.04185150153 | M9: ='Water resources'!M26 -> 0.04106295067 | N9: ='Water resources'!N26 -> 0.04164822087 | O9: ='Water resources'!O26 -> 0.04268798551
E10: Outturn nominal weighted average cost of debt - Water network plus | G10: % | K10: ='Water network +'!K26 -> 0.04370222975 | L10: ='Water network +'!L26 -> 0.04185150153 | M10: ='Water network +'!M26 -> 0.04106295067 | N10: ='Water network +'!N26 -> 0.04164822087 | O10: ='Water network +'!O26 -> 0.04268798551
E11: Outturn nominal weighted average cost of debt - Wastewater network plus | G11: % | K11: ='Wastewater network +'!K26 -> 0.04370222975 | L11: ='Wastewater network +'!L26 -> 0.04185150153 | M11: ='Wastewater network +'!M26 -> 0.04106295067 | N11: ='Wastewater network +'!N26 -> 0.04164822087 | O11: ='Wastewater network +'!O26 -> 0.04268798551
E12: Outturn nominal weighted average cost of debt - Bioresources | G12: % | K12: =Bioresources!K26 -> 0.04370222975 | L12: =Bioresources!L26 -> 0.04185150153 | M12: =Bioresources!M26 -> 0.04106295067 | N12: =Bioresources!N26 -> 0.04164822087 | O12: =Bioresources!O26 -> 0.04268798551
E13: Outturn nominal weighted average cost of debt - Dummy | G13: % | K13: =Dummy!K26 -> 0.04370222975 | L13: =Dummy!L26 -> 0.04185150153 | M13: =Dummy!M26 -> 0.04106295067 | N13: =Dummy!N26 -> 0.04164822087 | O13: =Dummy!O26 -> 0.04268798551
E15: Revenue adjustment from new debt reconciliation - Water resources | G15: £m, CPIH-deflated 2017/18 prices, 2024/25 present values | K15: ='Water resources'!K59 -> 0.2565947129 | L15: ='Water resources'!L59 -> 0.1018286159 | M15: ='Water resources'!M59 -> 0.02612992954 | N15: ='Water resources'!N59 -> 0.1026683572 | O15: ='Water resources'!O59 -> 0.2459739391
E16: Revenue adjustment from new debt reconciliation - Water network plus | G16: £m, CPIH-deflated 2017/18 prices, 2024/25 present values | K16: ='Water network +'!K59 -> 2.030510375 | L16: ='Water network +'!L59 -> 0.7399703751 | M16: ='Water network +'!M59 -> 0.1720920027 | N16: ='Water network +'!N59 -> 0.600059371 | O16: ='Water network +'!O59 -> 1.338666387
E17: Revenue adjustment from new debt reconciliation - Wastewater network plus | G17: £m, CPIH-deflated 2017/18 prices, 2024/25 present values | K17: ='Wastewater network +'!K59 -> 0 | L17: ='Wastewater network +'!L59 -> 0 | M17: ='Wastewater network +'!M59 -> 0 | N17: ='Wastewater network +'!N59 -> 0 | O17: ='Wastewater network +'!O59 -> 0
E18: Revenue adjustment from new debt reconciliation - Bioresources | G18: £m, CPIH-deflated 2017/18 prices, 2024/25 present values | K18: =Bioresources!K59 -> 0 | L18: =Bioresources!L59 -> 0 | M18: =Bioresources!M59 -> 0 | N18: =Bioresources!N59 -> 0 | O18: =Bioresources!O59 -> 0
E19: Revenue adjustment from new debt reconciliation - Dummy | G19: £m, CPIH-deflated 2017/18 prices, 2024/25 present values | K19: =Dummy!K59 -> 0 | L19: =Dummy!L59 -> 0 | M19: =Dummy!M59 -> 0 | N19: =Dummy!N59 -> 0 | O19: =Dummy!O59 -> 0
